DIRECTORATE,SECTION,DIVISON,VENDOR_NAME,VENDOR_SITE_ID,PAYMENT_DATE,VOUCHER_NO,AMOUNT,IRRECOVERABLE VATE,PURPOSE_OF_SPEND,PROCUREMENT_CLASSIFICATION
"Environmental Protection, Housing Standards, Licensing, Emergency Planning",Environmental Protection,Public Protection and Streetride,A W LYMN,132,04/08/2020,3511371,"1,300.00",0.00,Communities & Place,Default
Mental Health Support,Mental Health - Mental Health Support,Mental Health,AARONS SPECIALIST UNIT,1128474,04/08/2020,3511355,"1,197.00",0.00,People Services - Adults and Health,Healthcare Services
Strategic Housing,Housing and Advice,City Development & Growth,ADFAN LIMITED,470777,04/08/2020,3511505,690.00,0.00,Communities & Place,Travel and Food and Lodging and Entertai
Strategic Housing,Housing and Advice,City Development & Growth,ADFAN LIMITED,470777,04/08/2020,3511493,540.00,0.00,Communities & Place,Travel and Food and Lodging and Entertai
Strategic Housing,Housing and Advice,City Development & Growth,ADFAN LIMITED,470777,04/08/2020,3511545,840.00,0.00,Communities & Place,Travel and Food and Lodging and Entertai
Strategic Housing,Housing and Advice,City Development & Growth,ADFAN LIMITED,470777,04/08/2020,3511544,840.00,0.00,Communities & Place,Travel and Food and Lodging and Entertai
Strategic Housing,Housing and Advice,City Development & Growth,ADFAN LIMITED,470777,04/08/2020,3511543,660.00,0.00,Communities & Place,Travel and Food and Lodging and Entertai
Shared Lives,Community Support - Shared Lives,Community Support,AGATA B DLUGOSZ,1115469,04/08/2020,3510357,804.64,0.00,N/A,N/A
"Highways, Gounds Maintenance and Flood Defence","Highways Maintenance, Street Lighting and Flood Defence",Public Protection and Streetride,AGGREGATE INDUSTRIES UK LTD,117850,04/08/2020,3511342,"1,301.81",0.00,Communities & Place,Building and Construction Machinery and
"Highways, Gounds Maintenance and Flood Defence","Highways Maintenance, Street Lighting and Flood Defence",Public Protection and Streetride,AGGREGATE INDUSTRIES UK LTD,117850,04/08/2020,3511341,939.91,0.00,Communities & Place,Building and Construction Machinery and
"Highways, Gounds Maintenance and Flood Defence","Highways Maintenance, Street Lighting and Flood Defence",Public Protection and Streetride,AGGREGATE INDUSTRIES UK LTD,117850,04/08/2020,3511340,"1,263.28",0.00,Communities & Place,Building and Construction Machinery and
"Highways, Gounds Maintenance and Flood Defence","Highways Maintenance, Street Lighting and Flood Defence",Public Protection and Streetride,AGGREGATE INDUSTRIES UK LTD,117850,04/08/2020,3511473,899.07,0.00,Communities & Place,Building and Construction Machinery and
"Highways, Gounds Maintenance and Flood Defence","Highways Maintenance, Street Lighting and Flood Defence",Public Protection and Streetride,AGGREGATE INDUSTRIES UK LTD,117850,04/08/2020,3511406,965.24,0.00,Communities & Place,Building and Construction Machinery and
"Highways, Gounds Maintenance and Flood Defence","Highways Maintenance, Street Lighting and Flood Defence",Public Protection and Streetride,AGGREGATE INDUSTRIES UK LTD,117850,04/08/2020,3511404,502.54,0.00,Communities & Place,Building and Construction Machinery and
Corporate,Corporate Resources Other,Corporate,ALLSIGNS,11671,04/08/2020,3511580,"1,300.00",0.00,Corporate,Structures and Building and Construction
Emergency Planning,Emergency Planning,Commissioning,AMBER LODGE NURSING HOME,289,04/08/2020,3511239,"19,996.78",0.00,N/A,N/A
Strategic Housing,Retained Housing Revenue Account,City Development & Growth,AMBER VALLEY BOROUGH COUNCIL,1159475,04/08/2020,3511459,"1,456.88",0.00,Communities & Place,Politics and Civic Affairs Services
Emergency Planning,Emergency Planning,Commissioning,ANCHOR TRUST,1335472,04/08/2020,3511236,"20,496.70",0.00,N/A,N/A
Leisure,Leisure,"Leisure, Culture and Tourism",ANDERSON ELECTRICAL TRADE LIMITED,126048,04/08/2020,3511336,"2,180.00",0.00,Communities & Place,Building and Construction and Maintenanc
Highways Assest and Engineering,Engineering,Planning & Transportation,ASSET MANAGEMENT CONSULTING LTD,1366474,04/08/2020,3511602,650.00,0.00,N/A,N/A
Highways Assest and Engineering,Engineering,Planning & Transportation,ASSET MANAGEMENT CONSULTING LTD,1366474,04/08/2020,3511599,650.00,0.00,N/A,N/A
"Highways, Gounds Maintenance and Flood Defence","Highways Maintenance, Street Lighting and Flood Defence",Public Protection and Streetride,ASSET MANAGEMENT CONSULTING LTD,1366474,04/08/2020,3511600,650.00,0.00,N/A,N/A
Parks & Healthy Living,Parks & Outdoor Recreation,"Leisure, Culture and Tourism",ATLOW CONTRACTING LTD,423402,04/08/2020,3509575,"3,540.00",0.00,Communities & Place,Environmental Services
Parks & Healthy Living,Parks & Outdoor Recreation,"Leisure, Culture and Tourism",ATLOW CONTRACTING LTD,423402,04/08/2020,3509575,"4,260.00",0.00,Communities & Place,Environmental Services
Parks & Healthy Living,Parks & Outdoor Recreation,"Leisure, Culture and Tourism",ATLOW CONTRACTING LTD,423402,04/08/2020,3509575,"4,355.80",0.00,Communities & Place,Environmental Services
Corporate,Corporate Resources Other,Corporate,AV IT MEDIA LTD,899479,04/08/2020,3511579,"2,850.00",0.00,Corporate,Printing and Photographic and Audio and
"Culture, Business Development & Tourism",Libraries,"Leisure, Culture and Tourism",BIBLIOGRAPHIC DATA SERVICES LTD,1277473,04/08/2020,3510561,"1,021.83",0.00,Communities & Place,Education and Training Services
Regeneration and Major Projects,Service Financed Capital Schemes,City Development & Growth,BLACK APRICOT CREATIVE,400444,04/08/2020,3511374,"1,120.00",0.00,Communities & Place,Management and Business Professionals an
Emergency Planning,Emergency Planning,Commissioning,BLUEBELL PARK CARE HOME,115431,04/08/2020,3510603,"31,994.85",0.00,N/A,N/A
Emergency Planning,Emergency Planning,Commissioning,BROOKFIELDS PNH LTD,405,04/08/2020,3511436,"17,997.10",0.00,N/A,N/A
Digital Services & Customer Management,Digital Services,Digital Services & Customer Management,BT PLC,1025473,04/08/2020,3498362,"1,048.68",0.00,N/A,N/A
Traffic & Transportation,Traffic and Transport other,Planning & Transportation,BT PLC,1025473,04/08/2020,3504880,"2,067.00",0.00,N/A,N/A
Leisure,Leisure,"Leisure, Culture and Tourism",BUNZL CLEANING AND HYGIENE SUPPLIES,961498,04/08/2020,3510566,"1,436.50",0.00,Communities & Place,Chemicals including Bio Chemicals and Ga
Integrated Services,Agency Placements,Non-Schools,BY THE BRIDGE LTD,1109490,04/08/2020,3510493,"3,794.40",0.00,N/A,N/A
Integrated Services,Agency Placements,Non-Schools,BY THE BRIDGE LTD,1109490,04/08/2020,3510493,"3,996.40",0.00,N/A,N/A
Integrated Services,Agency Placements,Non-Schools,BY THE BRIDGE LTD,1109490,04/08/2020,3510493,"3,794.40",0.00,N/A,N/A
Integrated Services,Agency Placements,Non-Schools,BY THE BRIDGE LTD,1109490,04/08/2020,3510493,"3,996.40",0.00,N/A,N/A
Integrated Services,Agency Placements,Non-Schools,BY THE BRIDGE LTD,1109490,04/08/2020,3510493,"3,794.40",0.00,N/A,N/A
Integrated Services,Agency Placements,Non-Schools,BY THE BRIDGE LTD,1109490,04/08/2020,3510493,"3,794.40",0.00,N/A,N/A
Integrated Services,Agency Placements,Non-Schools,BY THE BRIDGE LTD,1109490,04/08/2020,3510493,"3,794.40",0.00,N/A,N/A
Integrated Services,Agency Placements,Non-Schools,BY THE BRIDGE LTD,1109490,04/08/2020,3510493,"3,794.40",0.00,N/A,N/A
Integrated Services,Agency Placements,Non-Schools,BY THE BRIDGE LTD,1109490,04/08/2020,3510493,"3,794.40",0.00,N/A,N/A
Integrated Services,Agency Placements,Non-Schools,BY THE BRIDGE LTD,1109490,04/08/2020,3510493,"3,794.40",0.00,N/A,N/A
Integrated Services,Agency Placements,Non-Schools,BY THE BRIDGE LTD,1109490,04/08/2020,3510493,"3,996.40",0.00,N/A,N/A
Integrated Services,Agency Placements,Non-Schools,BY THE BRIDGE LTD,1109490,04/08/2020,3510493,"3,996.40",0.00,N/A,N/A
Integrated Services,Agency Placements,Non-Schools,BY THE BRIDGE LTD,1109490,04/08/2020,3510493,"3,996.40",0.00,N/A,N/A
Integrated Services,Agency Placements,Non-Schools,BY THE BRIDGE LTD,1109490,04/08/2020,3510493,"3,794.40",0.00,N/A,N/A
Integrated Services,Agency Placements,Non-Schools,BY THE BRIDGE LTD,1109490,04/08/2020,3510493,"3,794.40",0.00,N/A,N/A
Integrated Services,Agency Placements,Non-Schools,BY THE BRIDGE LTD,1109490,04/08/2020,3510493,813.09,0.00,N/A,N/A
Integrated Services,Agency Placements,Non-Schools,BY THE BRIDGE LTD,1109490,04/08/2020,3510493,"3,140.03",0.00,N/A,N/A
Integrated Services,Agency Placements,Non-Schools,BY THE BRIDGE LTD,1109490,04/08/2020,3510493,"3,794.40",0.00,N/A,N/A
Integrated Services,Agency Placements,Non-Schools,BY THE BRIDGE LTD,1109490,04/08/2020,3510493,"3,794.40",0.00,N/A,N/A
Integrated Services,Agency Placements,Non-Schools,BY THE BRIDGE LTD,1109490,04/08/2020,3510493,"3,996.40",0.00,N/A,N/A
Integrated Services,Agency Placements,Non-Schools,BY THE BRIDGE LTD,1109490,04/08/2020,3510493,"3,996.40",0.00,N/A,N/A
Integrated Services,Agency Placements,Non-Schools,BY THE BRIDGE LTD,1109490,04/08/2020,3510493,"3,996.40",0.00,N/A,N/A
Integrated Services,Agency Placements,Non-Schools,BY THE BRIDGE LTD,1109490,04/08/2020,3510493,"4,216.00",0.00,N/A,N/A
Integrated Services,Agency Placements,Non-Schools,BY THE BRIDGE LTD,1109490,04/08/2020,3510493,"5,529.00",0.00,N/A,N/A
Integrated Services,Agency Placements,Non-Schools,BY THE BRIDGE LTD,1109490,04/08/2020,3510493,"3,760.00",0.00,N/A,N/A
Integrated Services,Agency Placements,Non-Schools,BY THE BRIDGE LTD,1109490,04/08/2020,3510493,"5,580.00",0.00,N/A,N/A
Integrated Services,Agency Placements,Non-Schools,BY THE BRIDGE LTD,1109490,04/08/2020,3510493,"6,102.00",0.00,N/A,N/A
Integrated Services,Agency Placements,Non-Schools,BY THE BRIDGE LTD,1109490,04/08/2020,3510493,"3,794.40",0.00,N/A,N/A
Integrated Services,Agency Placements,Non-Schools,BY THE BRIDGE LTD,1109490,04/08/2020,3510493,"3,794.40",0.00,N/A,N/A
Integrated Services,Agency Placements,Non-Schools,BY THE BRIDGE LTD,1109490,04/08/2020,3510493,"3,996.40",0.00,N/A,N/A
Integrated Services,Agency Placements,Non-Schools,BY THE BRIDGE LTD,1109490,04/08/2020,3510493,"5,448.21",0.00,N/A,N/A
Integrated Services,Agency Placements,Non-Schools,BY THE BRIDGE LTD,1109490,04/08/2020,3510493,"1,219.63",0.00,N/A,N/A
Integrated Services,Agency Placements,Non-Schools,BY THE BRIDGE LTD,1109490,04/08/2020,3510493,"1,219.63",0.00,N/A,N/A
Integrated Services,Agency Placements,Non-Schools,BY THE BRIDGE LTD,1109490,04/08/2020,3510493,"1,284.56",0.00,N/A,N/A
Integrated Services,Agency Placements,Non-Schools,BY THE BRIDGE LTD,1109490,04/08/2020,3510493,"2,574.77",0.00,N/A,N/A
Integrated Services,Agency Placements,Non-Schools,BY THE BRIDGE LTD,1109490,04/08/2020,3510493,"3,794.40",0.00,N/A,N/A
Integrated Services,Agency Placements,Non-Schools,BY THE BRIDGE LTD,1109490,04/08/2020,3510493,"3,794.40",0.00,N/A,N/A
Integrated Services,Agency Placements,Non-Schools,BY THE BRIDGE LTD,1109490,04/08/2020,3510493,"1,712.74",0.00,N/A,N/A
Integrated Services,Agency Placements,Non-Schools,BY THE BRIDGE LTD,1109490,04/08/2020,3510493,"2,168.23",0.00,N/A,N/A
Integrated Services,Agency Placements,Non-Schools,BY THE BRIDGE LTD,1109490,04/08/2020,3510493,"3,687.40",0.00,N/A,N/A
Integrated Services,Agency Placements,Non-Schools,BY THE BRIDGE LTD,1109490,04/08/2020,3510493,"2,574.77",0.00,N/A,N/A
Integrated Services,Agency Placements,Non-Schools,BY THE BRIDGE LTD,1109490,04/08/2020,3510493,"2,711.84",0.00,N/A,N/A
Emergency Planning,Emergency Planning,Commissioning,CASTLE PARK NURSING HOME,668,04/08/2020,3510173,"19,996.78",0.00,N/A,N/A
Emergency Planning,Emergency Planning,Commissioning,CAVISTA LTD,1335470,04/08/2020,3510605,"9,998.39",0.00,N/A,N/A
Physical Support,Community Support - Physical Support,Community Support,CEDAR HOUSE EXTRA CARE DCS,537474,04/08/2020,3509936,613.20,0.00,N/A,N/A
Physical Support,Community Support - Physical Support,Community Support,CEDAR HOUSE EXTRA CARE DCS,537474,04/08/2020,3510088,563.68,0.00,N/A,N/A
Emergency Planning,Emergency Planning,Commissioning,CHANGING LIVES UK QUALITY CARE LTD,1335468,04/08/2020,3509755,"1,000.00",0.00,N/A,N/A
Commissioning - Schools Block,Recoupment - Independent Special School Fees,Schools Block,CHEADLE ROYAL SCHOOL PRIORY,1280474,04/08/2020,3503661,962.50,0.00,N/A,N/A
Neighbourhoods,Neighbourhoods,Neighbourhoods,CHELLASTON LEISURE LTD,1358471,04/08/2020,3511709,"75,256.96",0.00,N/A,N/A
Emergency Planning,Emergency Planning,Commissioning,CHESAPEAKE HOUSE,1207470,04/08/2020,3511753,"5,499.11",0.00,N/A,N/A
Emergency Planning,Emergency Planning,Commissioning,CHESTNUT VIEW,1360475,04/08/2020,3511450,"8,998.55",0.00,N/A,N/A
"Highways, Gounds Maintenance and Flood Defence","Highways Maintenance, Street Lighting and Flood Defence",Public Protection and Streetride,CHUBB FIRE AND SECURITY LTD,941485,04/08/2020,3510563,"1,982.34",0.00,N/A,N/A
Digital Services & Customer Management,Digital Services,Digital Services & Customer Management,CIVICA UK LTD,44729,04/08/2020,3510567,"6,851.75",0.00,Corporate Resources,Engineering and Research and Technology
Children and Young People,Children and Young People,Children and Young People,CLB SURVEYS LTD,475396,04/08/2020,3509613,"1,800.00",0.00,Transforming Cities,Structures and Building and Construction
"Waste, Street Cleansing & Fleet",Cleansing,Public Protection and Streetride,DANLINE INTERNATIONAL LTD,55670,04/08/2020,3510575,"1,352.50",0.00,Communities & Place,Cleaning Equipment and Supplies
Adults Health and Housing,Adults Health and Housing,Adults Health and Housing,DEERAY CONTRACTS LTD,14161,04/08/2020,3509739,700.00,0.00,UPRN 10000H&B - Estates Pride - General,Building and Construction and Maintenanc
Adults Health and Housing,Adults Health and Housing,Adults Health and Housing,DEERAY CONTRACTS LTD,14161,04/08/2020,3509739,"1,142.00",0.00,UPRN 10000H&B - Estates Pride - General,Building and Construction and Maintenanc
Adults Health and Housing,Adults Health and Housing,Adults Health and Housing,DEERAY CONTRACTS LTD,14161,04/08/2020,3509738,"3,168.00",0.00,UPRN 10000H&B - Estates Pride - General,Building and Construction and Maintenanc
Adults Health and Housing,Adults Health and Housing,Adults Health and Housing,DEERAY CONTRACTS LTD,14161,04/08/2020,3509738,"2,000.00",0.00,UPRN 10000H&B - Estates Pride - General,Building and Construction and Maintenanc
"Waste, Street Cleansing & Fleet",Stores Road Depot & Fleet Management,Public Protection and Streetride,DENNIS EAGLE LTD,1121,04/08/2020,3511632,593.43,0.00,Communities & Place,Commercial and Military and Private Vehi
"Waste, Street Cleansing & Fleet",Stores Road Depot & Fleet Management,Public Protection and Streetride,DENNIS EAGLE LTD,1121,04/08/2020,3511571,"1,089.32",0.00,Communities & Place,Commercial and Military and Private Vehi
Commissioning,School Organisation & Provision,Non-Schools,DERBY CITY BSF LIMITED,127009,04/08/2020,3511564,"5,084.37",0.00,N/A,N/A
Commissioning,School Organisation & Provision,Non-Schools,DERBY CITY BSF LIMITED,127009,04/08/2020,3511564,"3,929.30",0.00,N/A,N/A
Commissioning,School Organisation & Provision,Non-Schools,DERBY CITY BSF LIMITED,127009,04/08/2020,3511564,"449,312.56",0.00,N/A,N/A
Commissioning,School Organisation & Provision,Non-Schools,DERBY CITY BSF LIMITED,127009,04/08/2020,3511564,"1,598.00",0.00,N/A,N/A
Commissioning,School Organisation & Provision,Non-Schools,DERBY CITY BSF LIMITED,127009,04/08/2020,3511564,"1,655.00",0.00,N/A,N/A
Commissioning,School Organisation & Provision,Non-Schools,DERBY CITY BSF LIMITED,127009,04/08/2020,3511564,"7,367.33",0.00,N/A,N/A
Commissioning,School Organisation & Provision,Non-Schools,DERBY CITY BSF LIMITED,127009,04/08/2020,3511564,919.58,0.00,N/A,N/A
Commissioning,School Organisation & Provision,Non-Schools,DERBY CITY BSF LIMITED,127009,04/08/2020,3511564,"8,473.75",0.00,N/A,N/A
Early Help & Children�s Safeguarding,Children's Safeguarding Reception Services,Non-Schools,DERBY GUESTHOUSE LTD,255426,04/08/2020,3510593,756.00,0.00,People Services - Children & Young People,Travel and Food and Lodging and Entertai
Early Help & Children�s Safeguarding,Children's Safeguarding Services Locality 1/5,Non-Schools,DERBY GUESTHOUSE LTD,255426,04/08/2020,3509629,840.00,0.00,People Services - Children & Young People,Travel and Food and Lodging and Entertai
Early Help & Children�s Safeguarding,Children's Safeguarding Services Locality 3/4,Non-Schools,DERBY GUESTHOUSE LTD,255426,04/08/2020,3501740,980.00,0.00,People Services - Children & Young People,Travel and Food and Lodging and Entertai
Early Help & Children�s Safeguarding,Children's Safeguarding Services Locality 3/4,Non-Schools,DERBY GUESTHOUSE LTD,255426,04/08/2020,3511552,980.00,0.00,People Services - Children & Young People,Travel and Food and Lodging and Entertai
Early Help & Children�s Safeguarding,Children's Safeguarding Services Locality 3/4,Non-Schools,DERBY GUESTHOUSE LTD,255426,04/08/2020,3501728,980.00,0.00,People Services - Children & Young People,Travel and Food and Lodging and Entertai
Property Design & Maintenance,Building - Repairs & Maintenance,Property,DERBY HOMES LTD,1076486,04/08/2020,3476123,"1,100,000.00",0.00,N/A,N/A
Strategic Housing,Housing and Advice,City Development & Growth,DERBY HOMES LTD,1078471,04/08/2020,3510560,"245,000.00",0.00,Communities & Place,Building and Construction and Maintenanc
Economic Development,DEGF,City Development & Growth,DERBY MUSEUMS,1158491,04/08/2020,3511445,"5,121.00",0.00,Communities & Place,Management and Business Professionals an
Learning Disability Support,Community Support - Learning Disability Support,Community Support,DERBYSHIRE CARE SERVICES,388459,04/08/2020,3509796,562.40,0.00,N/A,N/A
Learning Disability Support,Community Support - Learning Disability Support,Community Support,DERBYSHIRE CARE SERVICES,388459,04/08/2020,3510011,"1,002.88",0.00,N/A,N/A
Learning Disability Support,Community Support - Learning Disability Support,Community Support,DERBYSHIRE CARE SERVICES,388459,04/08/2020,3510111,801.32,0.00,N/A,N/A
Learning Disability Support,Community Support - Learning Disability Support,Community Support,DERBYSHIRE CARE SERVICES,388459,04/08/2020,3509798,799.62,0.00,N/A,N/A
Mental Health Support,Community Support - Mental Health Support,Community Support,DERBYSHIRE CARE SERVICES,388459,04/08/2020,3510064,572.16,0.00,N/A,N/A
Mental Health Support,Mental Health - Mental Health Support,Mental Health,DERBYSHIRE CARE SERVICES,388459,04/08/2020,3509959,"3,509.12",0.00,N/A,N/A
Mental Health Support,Mental Health - Mental Health Support,Mental Health,DERBYSHIRE CARE SERVICES,388459,04/08/2020,3509760,"3,509.12",0.00,N/A,N/A
Mental Health Support,Mental Health - Mental Health Support,Mental Health,DERBYSHIRE CARE SERVICES,388459,04/08/2020,3509800,848.08,0.00,N/A,N/A
Physical Support,Community Support - Physical Support,Community Support,DERBYSHIRE CARE SERVICES,388459,04/08/2020,3510019,692.00,0.00,N/A,N/A
Physical Support,Community Support - Physical Support,Community Support,DERBYSHIRE CARE SERVICES,388459,04/08/2020,3509804,658.08,0.00,N/A,N/A
Physical Support,Community Support - Physical Support,Community Support,DERBYSHIRE CARE SERVICES,388459,04/08/2020,3509759,619.26,0.00,N/A,N/A
Physical Support,Community Support - Physical Support,Community Support,DERBYSHIRE CARE SERVICES,388459,04/08/2020,3509758,538.04,0.00,N/A,N/A
Physical Support,Community Support - Physical Support,Community Support,DERBYSHIRE CARE SERVICES,388459,04/08/2020,3510118,897.32,0.00,N/A,N/A
Physical Support,Community Support - Physical Support,Community Support,DERBYSHIRE CARE SERVICES,388459,04/08/2020,3509919,897.32,0.00,N/A,N/A
Physical Support,Community Support - Physical Support,Community Support,DERBYSHIRE CARE SERVICES,388459,04/08/2020,3509860,658.08,0.00,N/A,N/A
Physical Support,Community Support - Physical Support,Community Support,DERBYSHIRE CARE SERVICES,388459,04/08/2020,3509859,619.26,0.00,N/A,N/A
Physical Support,Community Support - Physical Support,Community Support,DERBYSHIRE CARE SERVICES,388459,04/08/2020,3510021,726.48,0.00,N/A,N/A
Physical Support,Community Support - Physical Support,Community Support,DERBYSHIRE CARE SERVICES,388459,04/08/2020,3509810,726.48,0.00,N/A,N/A
Physical Support,Community Support - Physical Support,Community Support,DERBYSHIRE CARE SERVICES,388459,04/08/2020,3509917,753.39,0.00,N/A,N/A
Physical Support,Community Support - Physical Support,Community Support,DERBYSHIRE CARE SERVICES,388459,04/08/2020,3510009,"1,139.48",0.00,N/A,N/A
Physical Support,Community Support - Physical Support,Community Support,DERBYSHIRE CARE SERVICES,388459,04/08/2020,3510008,"1,133.24",0.00,N/A,N/A
Physical Support,Community Support - Physical Support,Community Support,DERBYSHIRE CARE SERVICES,388459,04/08/2020,3510007,"1,090.76",0.00,N/A,N/A
Physical Support,Community Support - Physical Support,Community Support,DERBYSHIRE CARE SERVICES,388459,04/08/2020,3510006,975.66,0.00,N/A,N/A
Physical Support,Community Support - Physical Support,Community Support,DERBYSHIRE CARE SERVICES,388459,04/08/2020,3509795,544.08,0.00,N/A,N/A
Physical Support,Community Support - Physical Support,Community Support,DERBYSHIRE CARE SERVICES,388459,04/08/2020,3510165,670.75,0.00,N/A,N/A
Physical Support,Community Support - Physical Support,Community Support,DERBYSHIRE CARE SERVICES,388459,04/08/2020,3510164,627.64,0.00,N/A,N/A
Physical Support,Community Support - Physical Support,Community Support,DERBYSHIRE CARE SERVICES,388459,04/08/2020,3510163,535.18,0.00,N/A,N/A
Physical Support,Community Support - Physical Support,Community Support,DERBYSHIRE CARE SERVICES,388459,04/08/2020,3510162,504.60,0.00,N/A,N/A
Physical Support,Community Support - Physical Support,Community Support,DERBYSHIRE CARE SERVICES,388459,04/08/2020,3509958,"1,076.38",0.00,N/A,N/A
Physical Support,Community Support - Physical Support,Community Support,DERBYSHIRE CARE SERVICES,388459,04/08/2020,3510109,996.86,0.00,N/A,N/A
Physical Support,Community Support - Physical Support,Community Support,DERBYSHIRE CARE SERVICES,388459,04/08/2020,3510108,581.76,0.00,N/A,N/A
Physical Support,Community Support - Physical Support,Community Support,DERBYSHIRE CARE SERVICES,388459,04/08/2020,3509910,"1,046.89",0.00,N/A,N/A
Physical Support,Community Support - Physical Support,Community Support,DERBYSHIRE CARE SERVICES,388459,04/08/2020,3509909,975.66,0.00,N/A,N/A
Physical Support,Community Support - Physical Support,Community Support,DERBYSHIRE CARE SERVICES,388459,04/08/2020,3509908,737.16,0.00,N/A,N/A
Physical Support,Community Support - Physical Support,Community Support,DERBYSHIRE CARE SERVICES,388459,04/08/2020,3509907,522.06,0.00,N/A,N/A
Physical Support,Community Support - Physical Support,Community Support,DERBYSHIRE CARE SERVICES,388459,04/08/2020,3510060,"1,090.76",0.00,N/A,N/A
Physical Support,Community Support - Physical Support,Community Support,DERBYSHIRE CARE SERVICES,388459,04/08/2020,3510059,"1,066.08",0.00,N/A,N/A
Physical Support,Community Support - Physical Support,Community Support,DERBYSHIRE CARE SERVICES,388459,04/08/2020,3510058,"1,066.08",0.00,N/A,N/A
Physical Support,Community Support - Physical Support,Community Support,DERBYSHIRE CARE SERVICES,388459,04/08/2020,3509853,"1,042.04",0.00,N/A,N/A
Physical Support,Community Support - Physical Support,Community Support,DERBYSHIRE CARE SERVICES,388459,04/08/2020,3509849,"1,066.08",0.00,N/A,N/A
Physical Support,Community Support - Physical Support,Community Support,DERBYSHIRE CARE SERVICES,388459,04/08/2020,3509848,"1,042.04",0.00,N/A,N/A
Physical Support,Community Support - Physical Support,Community Support,DERBYSHIRE CARE SERVICES,388459,04/08/2020,3509847,"1,042.04",0.00,N/A,N/A
Physical Support,Community Support - Physical Support,Community Support,DERBYSHIRE CARE SERVICES,388459,04/08/2020,3510002,"1,185.08",0.00,N/A,N/A
Physical Support,Community Support - Physical Support,Community Support,DERBYSHIRE CARE SERVICES,388459,04/08/2020,3510001,"1,066.08",0.00,N/A,N/A
Physical Support,Community Support - Physical Support,Community Support,DERBYSHIRE CARE SERVICES,388459,04/08/2020,3510000,"1,042.04",0.00,N/A,N/A
Physical Support,Community Support - Physical Support,Community Support,DERBYSHIRE CARE SERVICES,388459,04/08/2020,3509791,"1,042.04",0.00,N/A,N/A
Physical Support,Community Support - Physical Support,Community Support,DERBYSHIRE CARE SERVICES,388459,04/08/2020,3509790,"1,042.04",0.00,N/A,N/A
Physical Support,Community Support - Physical Support,Community Support,DERBYSHIRE CARE SERVICES,388459,04/08/2020,3509789,954.60,0.00,N/A,N/A
Physical Support,Community Support - Physical Support,Community Support,DERBYSHIRE CARE SERVICES,388459,04/08/2020,3509788,929.10,0.00,N/A,N/A
Physical Support,Community Support - Physical Support,Community Support,DERBYSHIRE CARE SERVICES,388459,04/08/2020,3510157,"1,139.48",0.00,N/A,N/A
Physical Support,Community Support - Physical Support,Community Support,DERBYSHIRE CARE SERVICES,388459,04/08/2020,3510156,"1,139.48",0.00,N/A,N/A
Physical Support,Community Support - Physical Support,Community Support,DERBYSHIRE CARE SERVICES,388459,04/08/2020,3510155,737.16,0.00,N/A,N/A
Physical Support,Community Support - Physical Support,Community Support,DERBYSHIRE CARE SERVICES,388459,04/08/2020,3510154,726.48,0.00,N/A,N/A
Physical Support,Community Support - Physical Support,Community Support,DERBYSHIRE CARE SERVICES,388459,04/08/2020,3509954,"1,042.04",0.00,N/A,N/A
Physical Support,Community Support - Physical Support,Community Support,DERBYSHIRE CARE SERVICES,388459,04/08/2020,3509953,837.90,0.00,N/A,N/A
Physical Support,Community Support - Physical Support,Community Support,DERBYSHIRE CARE SERVICES,388459,04/08/2020,3509952,814.32,0.00,N/A,N/A
Physical Support,Community Support - Physical Support,Community Support,DERBYSHIRE CARE SERVICES,388459,04/08/2020,3509951,737.16,0.00,N/A,N/A
Physical Support,Community Support - Physical Support,Community Support,DERBYSHIRE CARE SERVICES,388459,04/08/2020,3509950,694.95,0.00,N/A,N/A
Physical Support,Community Support - Physical Support,Community Support,DERBYSHIRE CARE SERVICES,388459,04/08/2020,3509949,649.32,0.00,N/A,N/A
Physical Support,Community Support - Physical Support,Community Support,DERBYSHIRE CARE SERVICES,388459,04/08/2020,3509948,572.16,0.00,N/A,N/A
Physical Support,Community Support - Physical Support,Community Support,DERBYSHIRE CARE SERVICES,388459,04/08/2020,3510104,"1,185.08",0.00,N/A,N/A
Physical Support,Community Support - Physical Support,Community Support,DERBYSHIRE CARE SERVICES,388459,04/08/2020,3510103,891.48,0.00,N/A,N/A
Physical Support,Community Support - Physical Support,Community Support,DERBYSHIRE CARE SERVICES,388459,04/08/2020,3510102,891.48,0.00,N/A,N/A
Physical Support,Community Support - Physical Support,Community Support,DERBYSHIRE CARE SERVICES,388459,04/08/2020,3510101,875.88,0.00,N/A,N/A
Physical Support,Community Support - Physical Support,Community Support,DERBYSHIRE CARE SERVICES,388459,04/08/2020,3510100,762.76,0.00,N/A,N/A
Physical Support,Community Support - Physical Support,Community Support,DERBYSHIRE CARE SERVICES,388459,04/08/2020,3510099,710.12,0.00,N/A,N/A
Physical Support,Community Support - Physical Support,Community Support,DERBYSHIRE CARE SERVICES,388459,04/08/2020,3509901,887.72,0.00,N/A,N/A
Physical Support,Community Support - Physical Support,Community Support,DERBYSHIRE CARE SERVICES,388459,04/08/2020,3509900,887.72,0.00,N/A,N/A
Physical Support,Community Support - Physical Support,Community Support,DERBYSHIRE CARE SERVICES,388459,04/08/2020,3509899,810.70,0.00,N/A,N/A
Physical Support,Community Support - Physical Support,Community Support,DERBYSHIRE CARE SERVICES,388459,04/08/2020,3509898,780.71,0.00,N/A,N/A
Physical Support,Community Support - Physical Support,Community Support,DERBYSHIRE CARE SERVICES,388459,04/08/2020,3509897,722.72,0.00,N/A,N/A
Physical Support,Community Support - Physical Support,Community Support,DERBYSHIRE CARE SERVICES,388459,04/08/2020,3510055,622.76,0.00,N/A,N/A
Physical Support,Community Support - Physical Support,Community Support,DERBYSHIRE CARE SERVICES,388459,04/08/2020,3510010,"1,139.48",0.00,N/A,N/A
Physical Support,Community Support - Physical Support,Community Support,DERBYSHIRE CARE SERVICES,388459,04/08/2020,3510166,"1,062.63",0.00,N/A,N/A
Physical Support,Community Support - Physical Support,Community Support,DERBYSHIRE CARE SERVICES,388459,04/08/2020,3510061,"1,062.63",0.00,N/A,N/A
Physical Support,Community Support - Physical Support,Community Support,DERBYSHIRE CARE SERVICES,388459,04/08/2020,3509962,"1,155.32",0.00,N/A,N/A
Physical Support,Community Support - Physical Support,Community Support,DERBYSHIRE CARE SERVICES,388459,04/08/2020,3509861,"1,149.76",0.00,N/A,N/A
Sensory Support,Community Support - Sensory Support,Community Support,DERBYSHIRE CARE SERVICES,388459,04/08/2020,3510168,"1,063.74",0.00,N/A,N/A
Sensory Support,Community Support - Sensory Support,Community Support,DERBYSHIRE CARE SERVICES,388459,04/08/2020,3510110,"1,063.74",0.00,N/A,N/A
Support with Memory and Cognition,Community Support - Support with Memory and Cognition,Community Support,DERBYSHIRE CARE SERVICES,388459,04/08/2020,3510113,690.78,0.00,N/A,N/A
Support with Memory and Cognition,Community Support - Support with Memory and Cognition,Community Support,DERBYSHIRE CARE SERVICES,388459,04/08/2020,3510112,690.78,0.00,N/A,N/A
Non Delegated Schools Budget,Non Delegated School Expenditure,Schools Block,DERBYSHIRE COUNTY COUNCIL,1349508,04/08/2020,3511698,894.00,0.00,N/A,N/A
Learning Disability Support,Transitions and Ordinary Lives - Learning Disability Support,Transitions and Ordinary Lives,DERBYSHIRE HOME CARE LTD,388460,04/08/2020,3510297,"6,644.80",0.00,N/A,N/A
Learning Disability Support,Transitions and Ordinary Lives - Learning Disability Support,Transitions and Ordinary Lives,DERBYSHIRE HOME CARE LTD,388460,04/08/2020,3510296,"2,726.64",0.00,N/A,N/A
Learning Disability Support,Community Support - Learning Disability Support,Community Support,DISABILITY DIRECT,62169,04/08/2020,3511388,528.48,0.00,People Services - Adults and Health,Financial and Insurance Services
Economic Development,DEGF,City Development & Growth,DK INTERNATIONAL UK LTD,1374468,04/08/2020,3511448,"2,000.00",0.00,N/A,N/A
Emergency Planning,Emergency Planning,Commissioning,DOUGLAS COURT RESIDENTIAL HOME,1599,04/08/2020,3511235,"21,496.54",0.00,N/A,N/A
Leisure,"Leisure - Management,Sales, Marketing & Catering","Leisure, Culture and Tourism",EDEN FARM LTD,238423,04/08/2020,3509707,522.45,0.00,Communities & Place,Food Beverage and Tobacco Products-Beverages
Mental Health Support,Mental Health - Mental Health Support,Mental Health,ELLIE SUNRISE HEALTHCARE LTD,1230479,04/08/2020,3509940,"1,619.92",0.00,N/A,N/A
Mental Health Support,Mental Health - Mental Health Support,Mental Health,ELLIE SUNRISE HEALTHCARE LTD,1230479,04/08/2020,3509886,"1,619.92",0.00,N/A,N/A
Physical Support,Community Support - Physical Support,Community Support,ELLIE SUNRISE HEALTHCARE LTD,1230479,04/08/2020,3510091,622.76,0.00,N/A,N/A
Physical Support,Community Support - Physical Support,Community Support,ELLIE SUNRISE HEALTHCARE LTD,1230479,04/08/2020,3510050,622.76,0.00,N/A,N/A
Emergency Planning,Emergency Planning,Commissioning,ELVASTON LODGE RESIDENTIAL HOME,1399,04/08/2020,3510174,"21,996.46",0.00,N/A,N/A
Non Delegated Schools Budget,Non Delegated School Expenditure,Schools Block,EQUAL EDUCATION LIMITED,1007479,04/08/2020,3510580,"4,750.00",0.00,People Services - Children & Young People,Education and Training Services
Physical Support,Community Support - Physical Support,Community Support,ETIQUETTE RECRUITMENT AND STAFFING LTD,1152476,04/08/2020,3509988,"1,420.92",0.00,N/A,N/A
Physical Support,Community Support - Physical Support,Community Support,ETIQUETTE RECRUITMENT AND STAFFING LTD,1152476,04/08/2020,3510142,"1,238.52",0.00,N/A,N/A
Physical Support,Community Support - Physical Support,Community Support,ETIQUETTE RECRUITMENT AND STAFFING LTD,1152476,04/08/2020,3509887,726.48,0.00,N/A,N/A
Physical Support,Community Support - Physical Support,Community Support,ETIQUETTE RECRUITMENT AND STAFFING LTD,1152476,04/08/2020,3509839,"1,042.04",0.00,N/A,N/A
Physical Support,Community Support - Physical Support,Community Support,ETIQUETTE RECRUITMENT AND STAFFING LTD,1152476,04/08/2020,3509838,996.36,0.00,N/A,N/A
Physical Support,Community Support - Physical Support,Community Support,ETIQUETTE RECRUITMENT AND STAFFING LTD,1152476,04/08/2020,3509777,"1,042.04",0.00,N/A,N/A
Physical Support,Community Support - Physical Support,Community Support,ETIQUETTE RECRUITMENT AND STAFFING LTD,1152476,04/08/2020,3509776,"1,042.04",0.00,N/A,N/A
Physical Support,Community Support - Physical Support,Community Support,ETIQUETTE RECRUITMENT AND STAFFING LTD,1152476,04/08/2020,3510067,"1,139.48",0.00,N/A,N/A
Physical Support,Community Support - Physical Support,Community Support,ETIQUETTE RECRUITMENT AND STAFFING LTD,1152476,04/08/2020,3510051,"1,139.48",0.00,N/A,N/A
Physical Support,Community Support - Physical Support,Community Support,ETIQUETTE RECRUITMENT AND STAFFING LTD,1152476,04/08/2020,3509837,"1,262.56",0.00,N/A,N/A
"Trading Standards, Food and Safety, Bereavement Services and Building Consultanc",Bereavement Services,Public Protection and Streetride,FACULTATIEVE TECHNOLOGIES,1528,04/08/2020,3511366,709.59,0.00,Communities & Place,Politics and Civic Affairs Services
Emergency Planning,Emergency Planning,Commissioning,FARRIESS COURT,282,04/08/2020,3511237,"12,997.91",0.00,N/A,N/A
Financial Services,Business Support,Financial Services,FINANCIAL DATA MANAGEMENT LTD,1559,04/08/2020,3511719,"34,437.69",0.00,Corporate Resources,Paper Materials and Products
Control Accounts,Control Accounts,Control Accounts,FIRS PRIMARY SCHOOL,727454,04/08/2020,3511710,"6,876.00",0.00,Cash Income Code Error,Education and Training Services
Learning Disability Support,Community Support - Learning Disability Support,Community Support,FOSSE HEALTHCARE LTD,448402,04/08/2020,3510140,547.20,0.00,N/A,N/A
Learning Disability Support,Community Support - Learning Disability Support,Community Support,FOSSE HEALTHCARE LTD,448402,04/08/2020,3510090,"1,090.24",0.00,N/A,N/A
Learning Disability Support,Community Support - Learning Disability Support,Community Support,FOSSE HEALTHCARE LTD,448402,04/08/2020,3509840,"1,023.69",0.00,N/A,N/A
Learning Disability Support,Transitions and Ordinary Lives - Learning Disability Support,Transitions and Ordinary Lives,FOSSE HEALTHCARE LTD,448402,04/08/2020,3509780,696.90,0.00,N/A,N/A
Learning Disability Support,Transitions and Ordinary Lives - Learning Disability Support,Transitions and Ordinary Lives,FOSSE HEALTHCARE LTD,448402,04/08/2020,3510093,696.90,0.00,N/A,N/A
Mental Health Support,Community Support - Mental Health Support,Community Support,FOSSE HEALTHCARE LTD,448402,04/08/2020,3509779,"1,360.00",0.00,N/A,N/A
Mental Health Support,Community Support - Mental Health Support,Community Support,FOSSE HEALTHCARE LTD,448402,04/08/2020,3510146,"1,360.00",0.00,N/A,N/A
Mental Health Support,Community Support - Mental Health Support,Community Support,FOSSE HEALTHCARE LTD,448402,04/08/2020,3510092,821.41,0.00,N/A,N/A
Mental Health Support,Mental Health - Mental Health Support,Mental Health,FOSSE HEALTHCARE LTD,448402,04/08/2020,3509891,"1,034.70",0.00,N/A,N/A
Mental Health Support,Mental Health - Mental Health Support,Mental Health,FOSSE HEALTHCARE LTD,448402,04/08/2020,3510052,"1,034.70",0.00,N/A,N/A
Mental Health Support,Mental Health - Mental Health Support,Mental Health,FOSSE HEALTHCARE LTD,448402,04/08/2020,3509890,581.76,0.00,N/A,N/A
Physical Support,Community Support - Physical Support,Community Support,FOSSE HEALTHCARE LTD,448402,04/08/2020,3509928,922.96,0.00,N/A,N/A
Physical Support,Community Support - Physical Support,Community Support,FOSSE HEALTHCARE LTD,448402,04/08/2020,3509927,922.96,0.00,N/A,N/A
Physical Support,Community Support - Physical Support,Community Support,FOSSE HEALTHCARE LTD,448402,04/08/2020,3509987,"1,367.55",0.00,N/A,N/A
Physical Support,Community Support - Physical Support,Community Support,FOSSE HEALTHCARE LTD,448402,04/08/2020,3509986,"1,367.55",0.00,N/A,N/A
Physical Support,Community Support - Physical Support,Community Support,FOSSE HEALTHCARE LTD,448402,04/08/2020,3510137,"1,034.70",0.00,N/A,N/A
Physical Support,Community Support - Physical Support,Community Support,FOSSE HEALTHCARE LTD,448402,04/08/2020,3510049,891.60,0.00,N/A,N/A
Physical Support,Community Support - Physical Support,Community Support,FOSSE HEALTHCARE LTD,448402,04/08/2020,3510039,525.73,0.00,N/A,N/A
Physical Support,Community Support - Physical Support,Community Support,FOSSE HEALTHCARE LTD,448402,04/08/2020,3509834,"1,238.52",0.00,N/A,N/A
Physical Support,Community Support - Physical Support,Community Support,FOSSE HEALTHCARE LTD,448402,04/08/2020,3509833,"1,066.08",0.00,N/A,N/A
Physical Support,Community Support - Physical Support,Community Support,FOSSE HEALTHCARE LTD,448402,04/08/2020,3509832,"1,066.08",0.00,N/A,N/A
Physical Support,Community Support - Physical Support,Community Support,FOSSE HEALTHCARE LTD,448402,04/08/2020,3509831,"1,039.52",0.00,N/A,N/A
Physical Support,Community Support - Physical Support,Community Support,FOSSE HEALTHCARE LTD,448402,04/08/2020,3509828,931.57,0.00,N/A,N/A
Physical Support,Community Support - Physical Support,Community Support,FOSSE HEALTHCARE LTD,448402,04/08/2020,3509827,864.92,0.00,N/A,N/A
Physical Support,Community Support - Physical Support,Community Support,FOSSE HEALTHCARE LTD,448402,04/08/2020,3509826,778.24,0.00,N/A,N/A
Physical Support,Community Support - Physical Support,Community Support,FOSSE HEALTHCARE LTD,448402,04/08/2020,3509825,596.44,0.00,N/A,N/A
Physical Support,Community Support - Physical Support,Community Support,FOSSE HEALTHCARE LTD,448402,04/08/2020,3509824,552.67,0.00,N/A,N/A
Physical Support,Community Support - Physical Support,Community Support,FOSSE HEALTHCARE LTD,448402,04/08/2020,3509823,550.38,0.00,N/A,N/A
Physical Support,Community Support - Physical Support,Community Support,FOSSE HEALTHCARE LTD,448402,04/08/2020,3509984,787.28,0.00,N/A,N/A
Physical Support,Community Support - Physical Support,Community Support,FOSSE HEALTHCARE LTD,448402,04/08/2020,3509983,734.78,0.00,N/A,N/A
Physical Support,Community Support - Physical Support,Community Support,FOSSE HEALTHCARE LTD,448402,04/08/2020,3509982,704.37,0.00,N/A,N/A
Physical Support,Community Support - Physical Support,Community Support,FOSSE HEALTHCARE LTD,448402,04/08/2020,3509981,512.15,0.00,N/A,N/A
Physical Support,Community Support - Physical Support,Community Support,FOSSE HEALTHCARE LTD,448402,04/08/2020,3509980,505.53,0.00,N/A,N/A
Physical Support,Community Support - Physical Support,Community Support,FOSSE HEALTHCARE LTD,448402,04/08/2020,3509774,"1,191.46",0.00,N/A,N/A
Physical Support,Community Support - Physical Support,Community Support,FOSSE HEALTHCARE LTD,448402,04/08/2020,3509773,"1,139.48",0.00,N/A,N/A
Physical Support,Community Support - Physical Support,Community Support,FOSSE HEALTHCARE LTD,448402,04/08/2020,3509772,968.64,0.00,N/A,N/A
Physical Support,Community Support - Physical Support,Community Support,FOSSE HEALTHCARE LTD,448402,04/08/2020,3509771,968.64,0.00,N/A,N/A
Physical Support,Community Support - Physical Support,Community Support,FOSSE HEALTHCARE LTD,448402,04/08/2020,3509770,823.92,0.00,N/A,N/A
Physical Support,Community Support - Physical Support,Community Support,FOSSE HEALTHCARE LTD,448402,04/08/2020,3509769,726.48,0.00,N/A,N/A
Physical Support,Community Support - Physical Support,Community Support,FOSSE HEALTHCARE LTD,448402,04/08/2020,3509768,581.76,0.00,N/A,N/A
Physical Support,Community Support - Physical Support,Community Support,FOSSE HEALTHCARE LTD,448402,04/08/2020,3509767,574.48,0.00,N/A,N/A
Physical Support,Community Support - Physical Support,Community Support,FOSSE HEALTHCARE LTD,448402,04/08/2020,3510136,"1,086.36",0.00,N/A,N/A
Physical Support,Community Support - Physical Support,Community Support,FOSSE HEALTHCARE LTD,448402,04/08/2020,3510130,953.87,0.00,N/A,N/A
Physical Support,Community Support - Physical Support,Community Support,FOSSE HEALTHCARE LTD,448402,04/08/2020,3510129,704.37,0.00,N/A,N/A
Physical Support,Community Support - Physical Support,Community Support,FOSSE HEALTHCARE LTD,448402,04/08/2020,3509937,"1,091.83",0.00,N/A,N/A
Physical Support,Community Support - Physical Support,Community Support,FOSSE HEALTHCARE LTD,448402,04/08/2020,3509931,962.36,0.00,N/A,N/A
Physical Support,Community Support - Physical Support,Community Support,FOSSE HEALTHCARE LTD,448402,04/08/2020,3509930,670.12,0.00,N/A,N/A
Physical Support,Community Support - Physical Support,Community Support,FOSSE HEALTHCARE LTD,448402,04/08/2020,3510089,"1,006.32",0.00,N/A,N/A
Physical Support,Community Support - Physical Support,Community Support,FOSSE HEALTHCARE LTD,448402,04/08/2020,3510085,864.92,0.00,N/A,N/A
Physical Support,Community Support - Physical Support,Community Support,FOSSE HEALTHCARE LTD,448402,04/08/2020,3510084,726.48,0.00,N/A,N/A
Physical Support,Community Support - Physical Support,Community Support,FOSSE HEALTHCARE LTD,448402,04/08/2020,3510083,592.77,0.00,N/A,N/A
Physical Support,Community Support - Physical Support,Community Support,FOSSE HEALTHCARE LTD,448402,04/08/2020,3509884,"1,164.16",0.00,N/A,N/A
Physical Support,Community Support - Physical Support,Community Support,FOSSE HEALTHCARE LTD,448402,04/08/2020,3509883,"1,132.14",0.00,N/A,N/A
Physical Support,Community Support - Physical Support,Community Support,FOSSE HEALTHCARE LTD,448402,04/08/2020,3509882,"1,066.08",0.00,N/A,N/A
Physical Support,Community Support - Physical Support,Community Support,FOSSE HEALTHCARE LTD,448402,04/08/2020,3509881,"1,042.04",0.00,N/A,N/A
Physical Support,Community Support - Physical Support,Community Support,FOSSE HEALTHCARE LTD,448402,04/08/2020,3509874,884.72,0.00,N/A,N/A
Physical Support,Community Support - Physical Support,Community Support,FOSSE HEALTHCARE LTD,448402,04/08/2020,3509873,823.92,0.00,N/A,N/A
Physical Support,Community Support - Physical Support,Community Support,FOSSE HEALTHCARE LTD,448402,04/08/2020,3509872,524.69,0.00,N/A,N/A
Physical Support,Community Support - Physical Support,Community Support,FOSSE HEALTHCARE LTD,448402,04/08/2020,3510048,"1,132.14",0.00,N/A,N/A
Physical Support,Community Support - Physical Support,Community Support,FOSSE HEALTHCARE LTD,448402,04/08/2020,3510042,962.36,0.00,N/A,N/A
Physical Support,Community Support - Physical Support,Community Support,FOSSE HEALTHCARE LTD,448402,04/08/2020,3510041,626.87,0.00,N/A,N/A
Physical Support,Community Support - Physical Support,Community Support,FOSSE HEALTHCARE LTD,448402,04/08/2020,3510040,573.20,0.00,N/A,N/A
Physical Support,Community Support - Physical Support,Community Support,FOSSE HEALTHCARE LTD,448402,04/08/2020,3510033,"1,066.08",0.00,N/A,N/A
Physical Support,Community Support - Physical Support,Community Support,FOSSE HEALTHCARE LTD,448402,04/08/2020,3510032,823.92,0.00,N/A,N/A
Physical Support,Community Support - Physical Support,Community Support,FOSSE HEALTHCARE LTD,448402,04/08/2020,3510031,655.40,0.00,N/A,N/A
Physical Support,Community Support - Physical Support,Community Support,FOSSE HEALTHCARE LTD,448402,04/08/2020,3509819,859.92,0.00,N/A,N/A
Physical Support,Community Support - Physical Support,Community Support,FOSSE HEALTHCARE LTD,448402,04/08/2020,3509975,504.60,0.00,N/A,N/A
Physical Support,Community Support - Physical Support,Community Support,FOSSE HEALTHCARE LTD,448402,04/08/2020,3510127,"1,066.08",0.00,N/A,N/A
Support with Memory and Cognition,Community Support - Support with Memory and Cognition,Community Support,FOSSE HEALTHCARE LTD,448402,04/08/2020,3510145,629.47,0.00,N/A,N/A
Support with Memory and Cognition,Community Support - Support with Memory and Cognition,Community Support,FOSSE HEALTHCARE LTD,448402,04/08/2020,3509943,649.32,0.00,N/A,N/A
Children and Young People,Children and Young People,Children and Young People,FREETHS LLP,821453,04/08/2020,3504249,"2,041.00",0.00,Air Quality Improvement Project,Management and Business Professionals an
Children and Young People,Children and Young People,Children and Young People,FREETHS LLP,821453,04/08/2020,3504249,"2,041.00",0.00,Air Quality Improvement Project,Management and Business Professionals an
Neighbourhoods,Neighbourhoods,Neighbourhoods,FREETHS LLP,821453,04/08/2020,3504249,"2,041.00",0.00,Castleward Enhancement of Public Square,Management and Business Professionals an
Parks & Healthy Living,Parks & Outdoor Recreation,"Leisure, Culture and Tourism",GB SPORT AND LEISURE,892486,04/08/2020,3509083,530.00,0.00,Communities & Place,Sports and Recreational Equipment and Su
Traffic & Transportation,Traffic and Transport other,Planning & Transportation,GENIE TERUEL ABELLAR,1182470,04/08/2020,3511241,736.56,0.00,N/A,N/A
Neighbourhoods,Neighbourhoods,Neighbourhoods,GROUND CONTROL LTD,147353,04/08/2020,3509576,"38,680.46",0.00,Our City Our River - Package 1,Building and Construction and Maintenanc
Emergency Planning,Emergency Planning,Commissioning,HC ONE OVAL LTD,826445,04/08/2020,3509744,"19,996.78",0.00,N/A,N/A
Emergency Planning,Emergency Planning,Commissioning,HC ONE OVAL LTD,826445,04/08/2020,3509743,"19,996.78",0.00,N/A,N/A
Economic Development,Connect Project,City Development & Growth,HI SPEC FACILITIES SUPPORT COMPANY PLC,46169,04/08/2020,3509555,827.26,0.00,Communities & Place,Industrial Cleaning Services
Economic Development,Connect Project,City Development & Growth,HI SPEC FACILITIES SUPPORT COMPANY PLC,46169,04/08/2020,3509555,636.44,0.00,Communities & Place,Industrial Cleaning Services
Economic Development,Connect Project,City Development & Growth,HI SPEC FACILITIES SUPPORT COMPANY PLC,46169,04/08/2020,3509555,509.06,0.00,Communities & Place,Industrial Cleaning Services
Economic Development,Connect Project,City Development & Growth,HI SPEC FACILITIES SUPPORT COMPANY PLC,46169,04/08/2020,3509555,"1,018.12",0.00,Communities & Place,Industrial Cleaning Services
Economic Development,Connect Project,City Development & Growth,HI SPEC FACILITIES SUPPORT COMPANY PLC,46169,04/08/2020,3509555,509.06,0.00,Communities & Place,Industrial Cleaning Services
Economic Development,Connect Project,City Development & Growth,HI SPEC FACILITIES SUPPORT COMPANY PLC,46169,04/08/2020,3509555,"1,018.12",0.00,Communities & Place,Industrial Cleaning Services
Early Help & Children�s Safeguarding,Children's Safeguarding Services Locality 3/4,Non-Schools,HILBROKE HOUSE LTD,1002472,04/08/2020,3509603,780.00,0.00,People Services - Children & Young People,Travel and Food and Lodging and Entertai
Emergency Planning,Emergency Planning,Commissioning,HOLLY TREE LODGE,1736,04/08/2020,3511449,"13,497.83",0.00,N/A,N/A
Digital Services & Customer Management,Digital Services,Digital Services & Customer Management,INTERTEK NTA,982470,04/08/2020,3510573,"2,100.00",0.00,Corporate Resources,Information Technology Broadcasting and
Neighbourhoods,Neighbourhoods,Neighbourhoods,JENOPTIK TRAFFIC SOLUTIONS UK LTD,1185479,04/08/2020,3499364,"109,671.00",0.00,A52 Strategic Transport Scheme,Defense and Law Enforcement and Security
Neighbourhoods,Neighbourhoods,Neighbourhoods,JENOPTIK TRAFFIC SOLUTIONS UK LTD,1185479,04/08/2020,3504220,"3,190.00",0.00,Highways Infrastructure,Defense and Law Enforcement and Security
Social Care Activities,Mental Health - Social Care Activities,Mental Health,JJG CONSULTANTS LTD,122909,04/08/2020,3509618,600.00,0.00,People Services - Adults and Health,Education and Training Services
Property Design & Maintenance,Building - Repairs & Maintenance,Property,KATAPULT LTD,2082,04/08/2020,3509665,645.00,0.00,Corporate Resources,Editorial and Design and Graphic and Fin
Property Design & Maintenance,Building - Repairs & Maintenance,Property,KATAPULT LTD,2082,04/08/2020,3509665,"7,350.00",0.00,Corporate Resources,Editorial and Design and Graphic and Fin
Property Design & Maintenance,Building - Repairs & Maintenance,Property,KATAPULT LTD,2082,04/08/2020,3509665,855.00,0.00,Corporate Resources,Editorial and Design and Graphic and Fin
Non Delegated Schools Budget,Non Delegated School Expenditure,Schools Block,KIDZGROVE DAYCARE,1370468,04/08/2020,3511721,600.00,0.00,N/A,N/A
Emergency Planning,Emergency Planning,Commissioning,KIWI HOUSE,471382,04/08/2020,3510608,"38,993.72",0.00,N/A,N/A
Learning Disability Support,Transitions and Ordinary Lives - Learning Disability Support,Transitions and Ordinary Lives,LIFEWAYS COMMUNITY CARE LTD,1069476,04/08/2020,3510126,"7,329.52",0.00,N/A,N/A
Emergency Planning,Emergency Planning,Commissioning,LINDEN CARE HOME DERBY LTD,1335476,04/08/2020,3511234,"7,998.71",0.00,N/A,N/A
Economic Development,DEGF,City Development & Growth,LITTLE ANGELS DAY NURSERY,576451,04/08/2020,3511447,"2,108.00",0.00,N/A,N/A
Emergency Planning,Emergency Planning,Commissioning,LIVERSAGE TRUST,1346523,04/08/2020,3510295,"19,996.78",0.00,N/A,N/A
"Waste, Street Cleansing & Fleet",Cleansing,Public Protection and Streetride,MACHINE MART LTD,2550,04/08/2020,3499353,669.00,0.00,Communities & Place,Structures and Building and Construction
Non Delegated Schools Budget,Non Delegated School Expenditure,Schools Block,MARY SWANWICK PRIMARY SCHOOL,740444,04/08/2020,3511700,"1,050.00",0.00,N/A,N/A
Corporate,Corporate Resources Other,Corporate,MATRIX SCM LTD,822477,04/08/2020,3511568,"86,646.74",0.00,Corporate,Management and Business Professionals an
Emergency Planning,Emergency Planning,Commissioning,MERCY CARE CENTRE,1334473,04/08/2020,3509745,"24,995.97",0.00,N/A,N/A
Digital Services & Customer Management,Digital Services,Digital Services & Customer Management,METACOMPLIANCE LTD,1020477,04/08/2020,3511409,"7,210.00",0.00,Corporate Resources,Information Technology Broadcasting and
Emergency Planning,Emergency Planning,Commissioning,METHODIST HOMES,1337478,04/08/2020,3510607,"29,995.17",0.00,N/A,N/A
Non Delegated Schools Budget,Non Delegated School Expenditure,Schools Block,MURRAY PARK COMMUNITY SCHOOL,3446,04/08/2020,3511707,"1,100.00",0.00,People Services - Children & Young People,Organizations and Clubs-Clubs
Public Health,Adults,Public Health,NHS DERBY AND DERBYSHIRE CCG,1112514,04/08/2020,3509597,"2,908.74",0.00,People Services - Adults and Health,Healthcare Services
Commissioning,School Organisation & Provision,Non-Schools,NOEL BAKER ACADEMY,595442,04/08/2020,3511723,"2,894.02",0.00,N/A,N/A
"Highways, Gounds Maintenance and Flood Defence",Grounds Maintenance,Public Protection and Streetride,NOMIX ENVIRO LTD,1283474,04/08/2020,3507843,"4,256.00",0.00,Communities & Place,Chemicals including Bio Chemicals and Ga
Non Delegated Schools Budget,Non Delegated School Expenditure,Schools Block,NOTTINGHAM COLLEGE,829451,04/08/2020,3499466,"12,646.00",0.00,People Services - Children & Young People,Education and Training Services
Non Delegated Schools Budget,Non Delegated School Expenditure,Schools Block,NOTTINGHAM COLLEGE,829451,04/08/2020,3499464,"25,292.00",0.00,People Services - Children & Young People,Education and Training Services
Learning Disability Support,Community Support - Learning Disability Support,Community Support,NOTTINGHAM COMMUNITY HOUSING ASSOCIATION,388472,04/08/2020,3509814,937.44,0.00,N/A,N/A
Learning Disability Support,Community Support - Learning Disability Support,Community Support,NOTTINGHAM COMMUNITY HOUSING ASSOCIATION,388472,04/08/2020,3509972,535.68,0.00,N/A,N/A
Strategic Asset Management,Strategic Asset Management,Property,NPOWER LTD,3526,04/08/2020,3511546,795.98,0.00,N/A,N/A
Learning Disability Support,Community Support - Learning Disability Support,Community Support,OAKLANDS SUPPORT LIMITED,1056472,04/08/2020,3511478,869.25,0.00,People Services - Adults and Health,Healthcare Services
Learning Disability Support,Transitions and Ordinary Lives - Learning Disability Support,Transitions and Ordinary Lives,OAKLANDS SUPPORT LIMITED,1056472,04/08/2020,3511484,"2,242.96",0.00,People Services - Adults and Health,Healthcare Services
Learning Disability Support,Transitions and Ordinary Lives - Learning Disability Support,Transitions and Ordinary Lives,OAKLANDS SUPPORT LIMITED,1056472,04/08/2020,3511483,"2,701.76",0.00,People Services - Adults and Health,Healthcare Services
Learning Disability Support,Transitions and Ordinary Lives - Learning Disability Support,Transitions and Ordinary Lives,OAKLANDS SUPPORT LIMITED,1056472,04/08/2020,3511477,"2,701.76",0.00,People Services - Adults and Health,Healthcare Services
Learning Disability Support,Transitions and Ordinary Lives - Learning Disability Support,Transitions and Ordinary Lives,OAKLANDS SUPPORT LIMITED,1056472,04/08/2020,3511475,741.12,0.00,People Services - Adults and Health,Healthcare Services
Learning Disability Support,Transitions and Ordinary Lives - Learning Disability Support,Transitions and Ordinary Lives,OAKLANDS SUPPORT LIMITED,1056472,04/08/2020,3511474,"2,701.76",0.00,People Services - Adults and Health,Healthcare Services
"Waste, Street Cleansing & Fleet",Stores Road Depot & Fleet Management,Public Protection and Streetride,PACE FUELCARE,474148,04/08/2020,3510583,"31,542.00",0.00,Communities & Place,Fuels and Fuel Additives and Lubricants
Physical Support,Community Support - Physical Support,Community Support,PARKLANDS VIEW EXTRA CARE DCS,471242,04/08/2020,3509845,"1,035.36",0.00,N/A,N/A
Physical Support,Community Support - Physical Support,Community Support,PARKLANDS VIEW EXTRA CARE DCS,471242,04/08/2020,3509844,"1,031.07",0.00,N/A,N/A
Physical Support,Community Support - Physical Support,Community Support,PARKLANDS VIEW EXTRA CARE DCS,471242,04/08/2020,3509830,"1,420.00",0.00,N/A,N/A
Physical Support,Community Support - Physical Support,Community Support,PARKLANDS VIEW EXTRA CARE DCS,471242,04/08/2020,3509829,781.20,0.00,N/A,N/A
Physical Support,Community Support - Physical Support,Community Support,PARKLANDS VIEW EXTRA CARE DCS,471242,04/08/2020,3509784,"1,374.76",0.00,N/A,N/A
Physical Support,Community Support - Physical Support,Community Support,PARKLANDS VIEW EXTRA CARE DCS,471242,04/08/2020,3509783,"1,367.40",0.00,N/A,N/A
Physical Support,Community Support - Physical Support,Community Support,PARKLANDS VIEW EXTRA CARE DCS,471242,04/08/2020,3509947,"1,374.76",0.00,N/A,N/A
Physical Support,Community Support - Physical Support,Community Support,PARKLANDS VIEW EXTRA CARE DCS,471242,04/08/2020,3509945,"1,380.48",0.00,N/A,N/A
Physical Support,Community Support - Physical Support,Community Support,PARKLANDS VIEW EXTRA CARE DCS,471242,04/08/2020,3509944,"1,369.44",0.00,N/A,N/A
Physical Support,Community Support - Physical Support,Community Support,PARKLANDS VIEW EXTRA CARE DCS,471242,04/08/2020,3509935,"1,420.00",0.00,N/A,N/A
Physical Support,Community Support - Physical Support,Community Support,PARKLANDS VIEW EXTRA CARE DCS,471242,04/08/2020,3510086,778.34,0.00,N/A,N/A
Physical Support,Community Support - Physical Support,Community Support,PARKLANDS VIEW EXTRA CARE DCS,471242,04/08/2020,3509895,"1,380.48",0.00,N/A,N/A
Physical Support,Community Support - Physical Support,Community Support,PARKLANDS VIEW EXTRA CARE DCS,471242,04/08/2020,3509879,"1,425.96",0.00,N/A,N/A
Physical Support,Community Support - Physical Support,Community Support,PARKLANDS VIEW EXTRA CARE DCS,471242,04/08/2020,3509878,"1,425.96",0.00,N/A,N/A
Physical Support,Community Support - Physical Support,Community Support,PARKLANDS VIEW EXTRA CARE DCS,471242,04/08/2020,3509877,"1,425.96",0.00,N/A,N/A
Physical Support,Community Support - Physical Support,Community Support,PARKLANDS VIEW EXTRA CARE DCS,471242,04/08/2020,3510046,"1,420.00",0.00,N/A,N/A
Physical Support,Community Support - Physical Support,Community Support,PARKLANDS VIEW EXTRA CARE DCS,471242,04/08/2020,3509997,"1,367.40",0.00,N/A,N/A
Physical Support,Community Support - Physical Support,Community Support,PARKLANDS VIEW EXTRA CARE DCS,471242,04/08/2020,3509782,"1,031.07",0.00,N/A,N/A
Physical Support,Community Support - Physical Support,Community Support,PARKLANDS VIEW EXTRA CARE DCS,471242,04/08/2020,3510150,"1,369.44",0.00,N/A,N/A
Physical Support,Community Support - Physical Support,Community Support,PARKLANDS VIEW EXTRA CARE DCS,471242,04/08/2020,3510134,"1,380.48",0.00,N/A,N/A
Physical Support,Community Support - Physical Support,Community Support,PARKLANDS VIEW EXTRA CARE DCS,471242,04/08/2020,3510133,"1,374.76",0.00,N/A,N/A
Physical Support,Community Support - Physical Support,Community Support,PARKLANDS VIEW EXTRA CARE DCS,471242,04/08/2020,3509946,"1,374.76",0.00,N/A,N/A
Physical Support,Community Support - Physical Support,Community Support,PARKLANDS VIEW EXTRA CARE DCS,471242,04/08/2020,3510094,"1,035.36",0.00,N/A,N/A
Physical Support,Community Support - Physical Support,Community Support,PARKLANDS VIEW EXTRA CARE DCS,471242,04/08/2020,3509894,"1,380.48",0.00,N/A,N/A
Physical Support,Community Support - Physical Support,Community Support,PARKLANDS VIEW EXTRA CARE DCS,471242,04/08/2020,3510045,781.20,0.00,N/A,N/A
Physical Support,Community Support - Physical Support,Community Support,PARKLANDS VIEW EXTRA CARE DCS,471242,04/08/2020,3510044,778.34,0.00,N/A,N/A
Digital Services & Customer Management,Customer Management,Digital Services & Customer Management,PAYPOINT PAYMENT SERVICES LTD,1128473,04/08/2020,3511736,"2,943.36",0.00,N/A,N/A
Integrated Services,Residential Children's Homes,Non-Schools,PEVERIL DECORATORS LTD,1347477,04/08/2020,3511390,"1,937.00",0.00,N/A,N/A
Leisure,Leisure,"Leisure, Culture and Tourism",PPL PRS LTD,771442,04/08/2020,3511382,"4,996.91",0.00,Communities & Place,Travel and Food and Lodging and Entertai
Digital Services & Customer Management,Digital Services,Digital Services & Customer Management,PRO DBA LTD,889471,04/08/2020,3511408,"5,351.26",0.00,Corporate Resources,Information Technology Broadcasting and
Emergency Planning,Emergency Planning,Commissioning,QUALITY CARE EM LTD,1281484,04/08/2020,3509737,"9,498.47",0.00,People Services - Adults and Health,Healthcare Services
Adults Health and Housing,Adults Health and Housing,Adults Health and Housing,REDACTED - PERSONAL DATA,1126486,04/08/2020,3509729,"5,000.00",0.00,N/A,N/A
Commissioning,Commissioned Providers,Non-Schools,REDACTED - PERSONAL DATA,905485,04/08/2020,3509752,"1,120.00",0.00,N/A,N/A
Commissioning,Commissioned Providers,Non-Schools,REDACTED - PERSONAL DATA,388439,04/08/2020,3509751,"1,120.00",0.00,N/A,N/A
Early Help & Children�s Safeguarding,Children's Safeguarding Services Locality 1/5,Non-Schools,REDACTED - PERSONAL DATA,425400,04/08/2020,3510678,614.05,0.00,N/A,N/A
Early Help & Children�s Safeguarding,Children's Safeguarding Services Locality 1/5,Non-Schools,REDACTED - PERSONAL DATA,1210469,04/08/2020,3510689,506.40,0.00,N/A,N/A
Early Help & Children�s Safeguarding,Children's Safeguarding Services Locality 1/5,Non-Schools,REDACTED - PERSONAL DATA,1300473,04/08/2020,3510624,634.48,0.00,N/A,N/A
Early Help & Children�s Safeguarding,Children's Safeguarding Services Locality 2,Non-Schools,REDACTED - PERSONAL DATA,1160470,04/08/2020,3509331,510.00,0.00,N/A,N/A
Early Help & Children�s Safeguarding,Children's Safeguarding Services Locality 2,Non-Schools,REDACTED - PERSONAL DATA,1006470,04/08/2020,3511588,510.00,0.00,N/A,N/A
Early Help & Children�s Safeguarding,Children's Safeguarding Services Locality 2,Non-Schools,REDACTED - PERSONAL DATA,273400,04/08/2020,3511581,"2,900.00",0.00,N/A,N/A
Early Help & Children�s Safeguarding,Children's Safeguarding Services Locality 2,Non-Schools,REDACTED - PERSONAL DATA,586442,04/08/2020,3511582,945.00,0.00,N/A,N/A
Early Help & Children�s Safeguarding,Children's Safeguarding Services Locality 2,Non-Schools,REDACTED - PERSONAL DATA,1045476,04/08/2020,3511592,550.00,0.00,N/A,N/A
Early Help & Children�s Safeguarding,Children's Safeguarding Services Locality 2,Non-Schools,REDACTED - PERSONAL DATA,12681,04/08/2020,3511593,600.00,0.00,People Services - Children & Young People,Management and Business Professionals an
Early Help & Children�s Safeguarding,Children's Safeguarding Services Locality 2,Non-Schools,REDACTED - PERSONAL DATA,470832,04/08/2020,3509333,590.00,0.00,N/A,N/A
Early Help & Children�s Safeguarding,Children's Safeguarding Services Locality 2,Non-Schools,REDACTED - PERSONAL DATA,470832,04/08/2020,3509332,590.00,0.00,N/A,N/A
Integrated Services,Children In Care,Non-Schools,REDACTED - PERSONAL DATA,1279470,04/08/2020,3510620,836.54,0.00,N/A,N/A
Integrated Services,Children In Care,Non-Schools,REDACTED - PERSONAL DATA,1364500,04/08/2020,3511320,753.00,0.00,N/A,N/A
Integrated Services,Children In Care,Non-Schools,REDACTED - PERSONAL DATA,1340469,04/08/2020,3511319,"1,000.00",0.00,N/A,N/A
Integrated Services,Children In Care,Non-Schools,REDACTED - PERSONAL DATA,1359496,04/08/2020,3511272,709.08,0.00,N/A,N/A
Learning Disability Support,Transitions and Ordinary Lives - Learning Disability Support,Transitions and Ordinary Lives,REDACTED - PERSONAL DATA,496484,04/08/2020,3510489,"1,121.44",0.00,N/A,N/A
Learning Disability Support,Transitions and Ordinary Lives - Learning Disability Support,Transitions and Ordinary Lives,REDACTED - PERSONAL DATA,496486,04/08/2020,3510376,603.48,0.00,N/A,N/A
Learning Disability Support,Transitions and Ordinary Lives - Learning Disability Support,Transitions and Ordinary Lives,REDACTED - PERSONAL DATA,1049470,04/08/2020,3510353,"1,460.44",0.00,N/A,N/A
Learning Disability Support,Transitions and Ordinary Lives - Learning Disability Support,Transitions and Ordinary Lives,REDACTED - PERSONAL DATA,496444,04/08/2020,3510336,"1,180.44",0.00,N/A,N/A
Learning Disability Support,Transitions and Ordinary Lives - Learning Disability Support,Transitions and Ordinary Lives,REDACTED - PERSONAL DATA,715474,04/08/2020,3510430,"1,460.44",0.00,N/A,N/A
Learning Disability Support,Transitions and Ordinary Lives - Learning Disability Support,Transitions and Ordinary Lives,REDACTED - PERSONAL DATA,971481,04/08/2020,3510313,"1,121.44",0.00,N/A,N/A
Mental Health Support,Mental Health - Mental Health Support,Mental Health,REDACTED - PERSONAL DATA,496477,04/08/2020,3510467,603.48,0.00,N/A,N/A
Mental Health Support,Mental Health - Mental Health Support,Mental Health,REDACTED - PERSONAL DATA,1213480,04/08/2020,3510372,"1,947.33",0.00,N/A,N/A
Mental Health Support,Mental Health - Mental Health Support,Mental Health,REDACTED - PERSONAL DATA,496467,04/08/2020,3510298,"2,596.44",0.00,N/A,N/A
Shared Lives,Community Support - Shared Lives,Community Support,REDACTED - PERSONAL DATA,496461,04/08/2020,3510470,"2,357.68",0.00,N/A,N/A
Shared Lives,Community Support - Shared Lives,Community Support,REDACTED - PERSONAL DATA,496463,04/08/2020,3510441,"1,460.44",0.00,N/A,N/A
Shared Lives,Community Support - Shared Lives,Community Support,REDACTED - PERSONAL DATA,1123477,04/08/2020,3510369,"1,460.44",0.00,N/A,N/A
Shared Lives,Community Support - Shared Lives,Community Support,REDACTED - PERSONAL DATA,1123477,04/08/2020,3510458,"1,460.44",0.00,N/A,N/A
Shared Lives,Community Support - Shared Lives,Community Support,REDACTED - PERSONAL DATA,1168483,04/08/2020,3510459,905.16,0.00,N/A,N/A
Shared Lives,Community Support - Shared Lives,Community Support,REDACTED - PERSONAL DATA,1254475,04/08/2020,3510464,550.92,0.00,N/A,N/A
Shared Lives,Community Support - Shared Lives,Community Support,REDACTED - PERSONAL DATA,537466,04/08/2020,3510338,"3,906.88",0.00,N/A,N/A
Shared Lives,Community Support - Shared Lives,Community Support,REDACTED - PERSONAL DATA,929470,04/08/2020,3510446,"2,046.00",0.00,N/A,N/A
Shared Lives,Community Support - Shared Lives,Community Support,REDACTED - PERSONAL DATA,1037473,04/08/2020,3510454,828.48,0.00,N/A,N/A
Shared Lives,Community Support - Shared Lives,Community Support,REDACTED - PERSONAL DATA,1037473,04/08/2020,3510484,603.48,0.00,N/A,N/A
Shared Lives,Community Support - Shared Lives,Community Support,REDACTED - PERSONAL DATA,496455,04/08/2020,3510468,"1,096.84",0.00,N/A,N/A
Shared Lives,Community Support - Shared Lives,Community Support,REDACTED - PERSONAL DATA,496455,04/08/2020,3510302,"1,121.44",0.00,N/A,N/A
Shared Lives,Community Support - Shared Lives,Community Support,REDACTED - PERSONAL DATA,496484,04/08/2020,3510340,"1,460.44",0.00,N/A,N/A
Shared Lives,Community Support - Shared Lives,Community Support,REDACTED - PERSONAL DATA,496475,04/08/2020,3510385,"1,460.44",0.00,N/A,N/A
Shared Lives,Community Support - Shared Lives,Community Support,REDACTED - PERSONAL DATA,496475,04/08/2020,3510443,680.02,0.00,N/A,N/A
Shared Lives,Community Support - Shared Lives,Community Support,REDACTED - PERSONAL DATA,496486,04/08/2020,3510349,"1,460.44",0.00,N/A,N/A
Shared Lives,Community Support - Shared Lives,Community Support,REDACTED - PERSONAL DATA,496469,04/08/2020,3510328,"1,460.44",0.00,N/A,N/A
Shared Lives,Community Support - Shared Lives,Community Support,REDACTED - PERSONAL DATA,496469,04/08/2020,3510421,"1,460.44",0.00,N/A,N/A
Shared Lives,Community Support - Shared Lives,Community Support,REDACTED - PERSONAL DATA,1022474,04/08/2020,3510409,"1,460.44",0.00,N/A,N/A
Shared Lives,Community Support - Shared Lives,Community Support,REDACTED - PERSONAL DATA,1022474,04/08/2020,3510451,"1,460.44",0.00,N/A,N/A
Shared Lives,Community Support - Shared Lives,Community Support,REDACTED - PERSONAL DATA,1022474,04/08/2020,3510389,"1,460.44",0.00,N/A,N/A
Shared Lives,Community Support - Shared Lives,Community Support,REDACTED - PERSONAL DATA,560446,04/08/2020,3510360,"1,460.44",0.00,N/A,N/A
Shared Lives,Community Support - Shared Lives,Community Support,REDACTED - PERSONAL DATA,1123472,04/08/2020,3510412,"1,460.44",0.00,N/A,N/A
Shared Lives,Community Support - Shared Lives,Community Support,REDACTED - PERSONAL DATA,785446,04/08/2020,3510482,"1,460.44",0.00,N/A,N/A
Shared Lives,Community Support - Shared Lives,Community Support,REDACTED - PERSONAL DATA,496467,04/08/2020,3510347,"1,460.44",0.00,N/A,N/A
Shared Lives,Community Support - Shared Lives,Community Support,REDACTED - PERSONAL DATA,496468,04/08/2020,3510440,"1,195.96",0.00,N/A,N/A
Shared Lives,Community Support - Shared Lives,Community Support,REDACTED - PERSONAL DATA,715474,04/08/2020,3510417,618.20,0.00,N/A,N/A
Shared Lives,Community Support - Shared Lives,Community Support,REDACTED - PERSONAL DATA,496472,04/08/2020,3510450,603.48,0.00,N/A,N/A
Shared Lives,Community Support - Shared Lives,Community Support,REDACTED - PERSONAL DATA,927477,04/08/2020,3510435,"1,005.80",0.00,N/A,N/A
Shared Lives,Community Support - Shared Lives,Community Support,REDACTED - PERSONAL DATA,927477,04/08/2020,3510331,603.48,0.00,N/A,N/A
Shared Lives,Community Support - Shared Lives,Community Support,REDACTED - PERSONAL DATA,496445,04/08/2020,3510356,603.48,0.00,N/A,N/A
Shared Lives,Community Support - Shared Lives,Community Support,REDACTED - PERSONAL DATA,496445,04/08/2020,3510308,"2,190.68",0.00,N/A,N/A
Shared Lives,Community Support - Shared Lives,Community Support,REDACTED - PERSONAL DATA,496445,04/08/2020,3510330,741.84,0.00,N/A,N/A
Shared Lives,Community Support - Shared Lives,Community Support,REDACTED - PERSONAL DATA,883472,04/08/2020,3510466,603.48,0.00,N/A,N/A
Shared Lives,Community Support - Shared Lives,Community Support,REDACTED - PERSONAL DATA,612448,04/08/2020,3510407,603.48,0.00,N/A,N/A
Social Care Activities,Community Support - Social Care Activities,Community Support,REDACTED - PERSONAL DATA,1371486,04/08/2020,3509732,"1,551.92",0.00,N/A,N/A
Non Delegated Schools Budget,Non Delegated School Expenditure,Schools Block,REDHILL ACADEMY TRUST,1033475,04/08/2020,3511699,600.00,0.00,N/A,N/A
Neighbourhoods,Neighbourhoods,Neighbourhoods,REDIWELD RUBBER AND PLASTICS LTD,28890,04/08/2020,3511387,528.90,0.00,N/A,N/A
Parks & Healthy Living,Parks & Outdoor Recreation,"Leisure, Culture and Tourism",REDTREE LTD,7637,04/08/2020,3511496,674.00,0.00,Communities & Place,Editorial and Design and Graphic and Fin
Senior Management,Senior Management,Senior Management,REFUGE,8986,04/08/2020,3511604,"99,953.00",0.00,People Services - Adults and Health,Politics and Civic Affairs Services
Parks & Healthy Living,Parks & Outdoor Recreation,"Leisure, Culture and Tourism",REPLAY MAINTENANCE LTD,17971,04/08/2020,3504946,"3,455.00",0.00,Communities & Place,Farming Fishing Forestry and Wildlife Co
Non Delegated Schools Budget,Non Delegated School Expenditure,Schools Block,RIDGEWAY INFANT SCHOOL,170354,04/08/2020,3509573,"36,268.75",0.00,N/A,N/A
Economic Development,Economic Regeneration,City Development & Growth,ROYAL MAIL GROUP PLC,963476,04/08/2020,3510591,787.00,0.00,N/A,N/A
Integrated Services,Youth Offending Service,Non-Schools,SHARED SERVICES CONNECTED LTD,769444,04/08/2020,3510570,"12,684.00",0.00,People Services - Children & Young People,Healthcare Services
Integrated Services,Youth Offending Service,Non-Schools,SHARED SERVICES CONNECTED LTD,769444,04/08/2020,3510568,"6,741.00",0.00,People Services - Children & Young People,Healthcare Services
Non Delegated Schools Budget,Non Delegated School Expenditure,Schools Block,SHAW EDUCATION TRUST,1339468,04/08/2020,3509148,"48,035.42",0.00,N/A,N/A
Property Design & Maintenance,Building - Repairs & Maintenance,Property,SHOWSEC INTERNATIONAL LTD,4772,04/08/2020,3509374,"6,518.40",0.00,Corporate Resources,Defense and Law Enforcement and Security
Property Design & Maintenance,Building - Repairs & Maintenance,Property,SHOWSEC INTERNATIONAL LTD,4772,04/08/2020,3509374,"2,910.00",0.00,Corporate Resources,Defense and Law Enforcement and Security
Property Design & Maintenance,Building - Repairs & Maintenance,Property,SHOWSEC INTERNATIONAL LTD,4772,04/08/2020,3509374,"1,884.72",0.00,Corporate Resources,Defense and Law Enforcement and Security
Property Design & Maintenance,Building - Repairs & Maintenance,Property,SHOWSEC INTERNATIONAL LTD,4772,04/08/2020,3509374,"1,570.50",0.00,Corporate Resources,Defense and Law Enforcement and Security
Leisure,"Leisure - Management,Sales, Marketing & Catering","Leisure, Culture and Tourism",SIEMENS FINANCIAL SERVICES LIMITED,861446,04/08/2020,3507050,"1,393.86",0.00,Communities & Place,Building and Construction Machinery and
Non Delegated Schools Budget,Non Delegated School Expenditure,Schools Block,ST PETERS EARLY YEARS,1368480,04/08/2020,3511722,600.00,0.00,N/A,N/A
Integrated Services,Agency Placements,Non-Schools,SUNBEAM FOSTERING AGENCY LTD,123953,04/08/2020,3510596,"3,411.43",0.00,People Services - Children & Young People,Politics and Civic Affairs Services
Integrated Services,Agency Placements,Non-Schools,SUNBEAM FOSTERING AGENCY LTD,123953,04/08/2020,3510597,"3,411.43",0.00,People Services - Children & Young People,Politics and Civic Affairs Services
"Highways, Gounds Maintenance and Flood Defence","Highways Maintenance, Street Lighting and Flood Defence",Public Protection and Streetride,TARBY CONSTRUCTION LTD,194477,04/08/2020,3509717,"3,404.00",0.00,Communities & Place,Structures and Building and Construction
Learning & Inclusion,Inclusion & Intervention,Non-Schools,TEACHING PERSONNEL LTD,5067,04/08/2020,3449209,"1,440.00",0.00,People Services - Children & Young People,Education and Training Services
Non Delegated Schools Budget,Non Delegated School Expenditure,Schools Block,TEACHING PERSONNEL LTD,5067,04/08/2020,3510581,"2,526.00",0.00,People Services - Children & Young People,Education and Training Services
Non Delegated Schools Budget,Non Delegated School Expenditure,Schools Block,TEACHING PERSONNEL LTD,5067,04/08/2020,3510581,"1,509.00",0.00,People Services - Children & Young People,Education and Training Services
"Waste, Street Cleansing & Fleet",Stores Road Depot & Fleet Management,Public Protection and Streetride,TERBERG MATEC UK,915483,04/08/2020,3509085,750.37,0.00,Communities & Place,Commercial and Military and Private Vehi
Non Delegated Schools Budget,Non Delegated School Expenditure,Schools Block,THE ENTHUSIASM TRUST,997486,04/08/2020,3510574,"2,000.00",0.00,People Services - Children & Young People,Politics and Civic Affairs Services
Leisure,"Leisure - Management,Sales, Marketing & Catering","Leisure, Culture and Tourism",THE KNIFE FORK AND SPOON CATERING CO LIMITED,1120479,04/08/2020,3509704,660.00,0.00,Communities & Place,Travel and Food and Lodging and Entertai
Emergency Planning,Emergency Planning,Commissioning,THE VILLAS CARE HOMES LTD,1336470,04/08/2020,3511437,"7,998.71",0.00,N/A,N/A
Chief Executives,Chief Executives,Chief Executives,THOMAS LISTER LTD,103118,04/08/2020,3509559,"5,325.00",0.00,UPRN 10150 - Our City Our River,Management and Business Professionals an
Regeneration and Major Projects,Regeneration Projects,City Development & Growth,THOMAS LISTER LTD,103118,04/08/2020,3504584,"10,350.00",0.00,Communities & Place,Management and Business Professionals an
Regeneration and Major Projects,Service Financed Capital Schemes,City Development & Growth,THOMAS LISTER LTD,103118,04/08/2020,3509559,"5,325.00",0.00,Communities & Place,Management and Business Professionals an
Non Delegated Schools Budget,Non Delegated School Expenditure,Schools Block,TINY TOTS DAY NURSERY ROTHERHAM LTD,1368479,04/08/2020,3511720,600.00,0.00,N/A,N/A
Learning Disability Support,Transitions and Ordinary Lives - Learning Disability Support,Transitions and Ordinary Lives,TURNING POINT,388485,04/08/2020,3509802,"3,930.64",0.00,N/A,N/A
Learning Disability Support,Transitions and Ordinary Lives - Learning Disability Support,Transitions and Ordinary Lives,TURNING POINT,388485,04/08/2020,3509961,701.90,0.00,N/A,N/A
Learning Disability Support,Transitions and Ordinary Lives - Learning Disability Support,Transitions and Ordinary Lives,TURNING POINT,388485,04/08/2020,3510069,"3,228.74",0.00,N/A,N/A
Commissioning,Commissioned Providers,Non-Schools,UMBRELLA DERBY AND DERBYSHIRE,915471,04/08/2020,3511686,"8,252.62",0.00,People Services - Children & Young People,Management and Business Professionals an
Learning Disability Support,Transitions and Ordinary Lives - Learning Disability Support,Transitions and Ordinary Lives,UNITED RESPONSE,1232483,04/08/2020,3509925,"10,038.96",0.00,N/A,N/A
Learning Disability Support,Transitions and Ordinary Lives - Learning Disability Support,Transitions and Ordinary Lives,VOYAGE LTD,388487,04/08/2020,3510116,"1,296.00",0.00,N/A,N/A
Early Help & Children�s Safeguarding,Early Help Children Centres Locality 3/4,Non-Schools,WATER PLUS LIMITED,1034471,04/08/2020,3509720,558.11,0.00,N/A,N/A
Emergency Planning,Emergency Planning,Commissioning,WESTERN HOUSE,124289,04/08/2020,3510606,"2,499.60",0.00,N/A,N/A
Emergency Planning,Emergency Planning,Commissioning,WESTERN MOUNT LODGE,1152483,04/08/2020,3509736,"8,998.55",0.00,N/A,N/A
Emergency Planning,Emergency Planning,Commissioning,WESTSIDE NURSING HOME,1329496,04/08/2020,3509742,"12,997.91",0.00,N/A,N/A
"Waste, Street Cleansing & Fleet",Stores Road Depot & Fleet Management,Public Protection and Streetride,WURTH UK LTD,5279,04/08/2020,3511373,699.11,0.00,Communities & Place,Industrial Manufacturing and Processing
Adults Health and Housing,Adults Health and Housing,Adults Health and Housing,WW PROPERTIES UK LIMITED,1238476,04/08/2020,3509549,"90,748.65",0.00,Parliament Street,Management and Business Professionals an
Emergency Planning,Emergency Planning,Commissioning,YEWS RESIDENTIAL HOME,5291,04/08/2020,3510294,"10,308.54",0.00,People Services - Adults and Health,Healthcare Services
Emergency Planning,Emergency Planning,Commissioning,YEWS RESIDENTIAL HOME,5291,04/08/2020,3510293,"19,996.78",0.00,People Services - Adults and Health,Healthcare Services
Integrated Services,Agency Placements,Non-Schools,YOUNG FOUNDATIONS LTD,1132470,04/08/2020,3510595,"24,808.86",0.00,People Services - Children & Young People,Healthcare Services
Property Design & Maintenance,Building - Repairs & Maintenance,Property,ABBACAS CONSULTING LTD,188279,06/08/2020,3511972,"3,379.95",0.00,N/A,N/A
Property Design & Maintenance,Building - Repairs & Maintenance,Property,ADT FIRE AND SECURITY PLC,188268,06/08/2020,3511963,591.83,0.00,N/A,N/A
Property Design & Maintenance,Building - Repairs & Maintenance,Property,ADT FIRE AND SECURITY PLC,188268,06/08/2020,3511959,992.16,0.00,N/A,N/A
"Highways, Gounds Maintenance and Flood Defence","Highways Maintenance, Street Lighting and Flood Defence",Public Protection and Streetride,AGGREGATE INDUSTRIES UK LTD,117850,06/08/2020,3512010,885.22,0.00,Communities & Place,Building and Construction Machinery and
"Highways, Gounds Maintenance and Flood Defence","Highways Maintenance, Street Lighting and Flood Defence",Public Protection and Streetride,AGGREGATE INDUSTRIES UK LTD,117850,06/08/2020,3512009,624.33,0.00,Communities & Place,Building and Construction Machinery and
"Highways, Gounds Maintenance and Flood Defence","Highways Maintenance, Street Lighting and Flood Defence",Public Protection and Streetride,AGGREGATE INDUSTRIES UK LTD,117850,06/08/2020,3512013,"1,017.33",0.00,Communities & Place,Building and Construction Machinery and
"Highways, Gounds Maintenance and Flood Defence","Highways Maintenance, Street Lighting and Flood Defence",Public Protection and Streetride,AGGREGATE INDUSTRIES UK LTD,117850,06/08/2020,3512010,678.12,0.00,Communities & Place,Building and Construction Machinery and
"Waste, Street Cleansing & Fleet",Cleansing,Public Protection and Streetride,AMA SUPPLIES LTD,285,06/08/2020,3512096,884.60,0.00,Communities & Place,Apparel and Luggage and Personal Care Pr-Clothing
"Waste, Street Cleansing & Fleet",Cleansing,Public Protection and Streetride,AMA SUPPLIES LTD,285,06/08/2020,3512071,"1,598.40",0.00,Communities & Place,Apparel and Luggage and Personal Care Pr-Clothing
"Waste, Street Cleansing & Fleet",Cleansing,Public Protection and Streetride,AMA SUPPLIES LTD,285,06/08/2020,3512062,895.14,0.00,Communities & Place,Apparel and Luggage and Personal Care Pr-Clothing
Traffic & Transportation,Traffic and Transport other,Planning & Transportation,ARRIVA MIDLANDS LTD,864451,06/08/2020,3509304,"1,732.28",0.00,N/A,N/A
Neighbourhoods,Neighbourhoods,Neighbourhoods,ARRIVING LTD,217400,06/08/2020,3512061,"1,700.00",0.00,Highways Infrastructure,Commercial and Military and Private Vehi
Neighbourhoods,Neighbourhoods,Neighbourhoods,ARRIVING LTD,217400,06/08/2020,3512060,"1,700.00",0.00,Highways Infrastructure,Commercial and Military and Private Vehi
Neighbourhoods,Neighbourhoods,Neighbourhoods,ARRIVING LTD,217400,06/08/2020,3512059,"2,280.00",0.00,Highways Infrastructure,Commercial and Military and Private Vehi
Neighbourhoods,Neighbourhoods,Neighbourhoods,ARRIVING LTD,217400,06/08/2020,3512058,"1,255.00",0.00,Highways Infrastructure,Commercial and Military and Private Vehi
Learning & Inclusion,Adult Learning - SFA,Non-Schools,ARTCORE,81349,06/08/2020,3512107,"4,000.00",0.00,People Services - Children & Young People,Travel and Food and Lodging and Entertai
Parks & Healthy Living,Parks & Outdoor Recreation,"Leisure, Culture and Tourism",ATLOW CONTRACTING LTD,423402,06/08/2020,3511865,"1,835.70",0.00,Communities & Place,Environmental Services
Parks & Healthy Living,Parks & Outdoor Recreation,"Leisure, Culture and Tourism",ATLOW CONTRACTING LTD,423402,06/08/2020,3511865,542.85,0.00,Communities & Place,Environmental Services
Learning & Inclusion,Adult Learning - SFA,Non-Schools,BABY PEOPLE LTD,114887,06/08/2020,3512108,"14,650.00",0.00,People Services - Children & Young People,Education and Training Services
"Trading Standards, Food and Safety, Bereavement Services and Building Consultanc",Bereavement Services,Public Protection and Streetride,BT PLC,1025473,06/08/2020,3509315,570.56,0.00,N/A,N/A
Leisure,Leisure,"Leisure, Culture and Tourism",BUNZL CLEANING AND HYGIENE SUPPLIES,961498,06/08/2020,3511516,500.60,0.00,Communities & Place,Chemicals including Bio Chemicals and Ga
Integrated Services,Youth Offending Service,Non-Schools,CACI LTD,944,06/08/2020,3504846,"1,800.00",0.00,People Services - Children & Young People,Management and Business Professionals an-Business administration services
Integrated Services,Youth Offending Service,Non-Schools,CACI LTD,944,06/08/2020,3504846,"1,800.00",0.00,People Services - Children & Young People,Management and Business Professionals an
Integrated Services,Youth Offending Service,Non-Schools,CACI LTD,944,06/08/2020,3504846,"2,700.00",0.00,People Services - Children & Young People,Management and Business Professionals an-Business administration services
Integrated Services,Youth Offending Service,Non-Schools,CACI LTD,944,06/08/2020,3504846,"2,700.00",0.00,People Services - Children & Young People,Management and Business Professionals an
Financial Services,Benefits and Exchequer Services,Financial Services,CAPITA BUSINESS SERVICES LTD,7754,06/08/2020,3511681,"2,600.00",0.00,Corporate Resources,Information Technology Broadcasting and
Digital Services & Customer Management,Digital Services,Digital Services & Customer Management,CDW LTD,465403,06/08/2020,3511422,"13,898.09",0.00,Corporate Resources,Information Technology Broadcasting and
Financial Services,Accountancy,Financial Services,CDW LTD,465403,06/08/2020,3510564,"1,109.64",0.00,Corporate Resources,Information Technology Broadcasting and
"Trading Standards, Food and Safety, Bereavement Services and Building Consultanc",Trading Standards,Public Protection and Streetride,CHARTERED TRADING STANDARDS INSTITUTE,431402,06/08/2020,3509612,724.00,0.00,Communities & Place,Education and Training Services
"Trading Standards, Food and Safety, Bereavement Services and Building Consultanc",Trading Standards,Public Protection and Streetride,CHARTERED TRADING STANDARDS INSTITUTE,431402,06/08/2020,3509611,724.00,0.00,Communities & Place,Education and Training Services
Corporate,Corporate Resources Other,Corporate,CHARTWELLS,1044472,06/08/2020,3503700,"27,538.90",0.00,Corporate,Travel and Food and Lodging and Entertai
Facilities Management,Catering,Property,CHARTWELLS,1044472,06/08/2020,3503700,"16,269.10",0.00,Corporate Resources,Travel and Food and Lodging and Entertai
Leisure,Leisure,"Leisure, Culture and Tourism",CITY SIGNS PRINT AND DESIGN LTD,1277474,06/08/2020,3511369,"2,259.72",0.00,Communities & Place,Printing and Photographic and Audio and
"Legal, Procurement and Democratic Services",Democracy - Electoral Services/ Land Charges,"Legal, Procurement and Democratic Services",CIVICA UK LTD,44729,06/08/2020,3512030,"5,000.00",0.00,Corporate Resources,Engineering and Research and Technology
"Legal, Procurement and Democratic Services",Democracy - Electoral Services/ Land Charges,"Legal, Procurement and Democratic Services",CIVICA UK LTD,44729,06/08/2020,3512030,"7,540.00",0.00,Corporate Resources,Engineering and Research and Technology
Property Design & Maintenance,Building - Repairs & Maintenance,Property,CLYMAC LTD,187927,06/08/2020,3511960,"2,734.08",0.00,N/A,N/A
Property Design & Maintenance,Building - Repairs & Maintenance,Property,CLYMAC LTD,187927,06/08/2020,3511975,"3,888.00",0.00,N/A,N/A
Digital Services & Customer Management,Digital Services,Digital Services & Customer Management,COMPUTER AIDED DEVELOPMENT CORPORATION LTD,393397,06/08/2020,3511412,"1,550.00",0.00,Corporate Resources,Engineering and Research and Technology
Resources,Resources,Resources,COMPUTER AIDED DEVELOPMENT CORPORATION LTD,393397,06/08/2020,3511412,900.00,0.00,Major IT Systems Developments,Engineering and Research and Technology
"Environmental Protection, Housing Standards, Licensing, Emergency Planning",Environmental Protection,Public Protection and Streetride,CROWFOOT KENNELS LTD,134352,06/08/2020,3511346,"3,910.00",0.00,Communities & Place,Farming Fishing Forestry and Wildlife Co
"Waste, Street Cleansing & Fleet",Stores Road Depot & Fleet Management,Public Protection and Streetride,DAYS RENTAL LTD,104744,06/08/2020,3511871,670.60,0.00,Communities & Place,Transportation and Storage and Mail Serv
Non Delegated Schools Budget,Non Delegated School Expenditure,Schools Block,DCG,1254471,06/08/2020,3512033,"344,000.00",0.00,People Services - Children & Young People,Education and Training Services
Strategic Housing,Housing Revenue Account,City Development & Growth,DERBY HOMES LTD,1078471,06/08/2020,3464041,"10,560,000.00",0.00,Communities & Place,Building and Construction and Maintenanc
Strategic Housing,Housing Revenue Account,City Development & Growth,DERBY HOMES LTD,1078471,06/08/2020,3464041,"16,938,000.00",0.00,Communities & Place,Building and Construction and Maintenanc
Strategic Housing,Retained Housing Revenue Account,City Development & Growth,DERBY HOMES LTD,1078471,06/08/2020,3464041,"25,207.00",0.00,Communities & Place,Building and Construction and Maintenanc
Strategic Housing,Retained Housing Revenue Account,City Development & Growth,DERBY HOMES LTD,1078471,06/08/2020,3464041,"191,753.00",0.00,Communities & Place,Building and Construction and Maintenanc
Strategic Housing,Retained Housing Revenue Account,City Development & Growth,DERBY HOMES LTD,1078471,06/08/2020,3464041,"1,036,000.00",0.00,Communities & Place,Building and Construction and Maintenanc
Strategic Housing,Retained Housing Revenue Account,City Development & Growth,DERBY HOMES LTD,1078471,06/08/2020,3464041,"295,000.00",0.00,Communities & Place,Building and Construction and Maintenanc
Strategic Housing,Retained Housing Revenue Account,City Development & Growth,DERBY HOMES LTD,1078471,06/08/2020,3464041,"69,000.00",0.00,Communities & Place,Building and Construction and Maintenanc
Strategic Housing,Retained Housing Revenue Account,City Development & Growth,DERBY HOMES LTD,1078471,06/08/2020,3464041,"54,604.00",0.00,Communities & Place,Building and Construction and Maintenanc
Strategic Housing,Retained Housing Revenue Account,City Development & Growth,DERBY HOMES LTD,1078471,06/08/2020,3464041,"30,059.00",0.00,Communities & Place,Building and Construction and Maintenanc
Learning & Inclusion,Adult Learning - SFA,Non-Schools,DERBY QUAD LTD,7833,06/08/2020,3512109,"23,057.25",0.00,People Services - Children & Young People,Travel and Food and Lodging and Entertai
Commissioning,School Organisation & Provision,Non-Schools,DERBY SCHOOLS SOLUTIONS LIMITED,8266,06/08/2020,3512026,"1,835.84",0.00,N/A,N/A
Commissioning,School Organisation & Provision,Non-Schools,DERBY SCHOOLS SOLUTIONS LIMITED,8266,06/08/2020,3512026,562.54,0.00,N/A,N/A
Commissioning,School Organisation & Provision,Non-Schools,DERBY SCHOOLS SOLUTIONS LIMITED,8266,06/08/2020,3512026,770.89,0.00,N/A,N/A
Commissioning,School Organisation & Provision,Non-Schools,DERBY SCHOOLS SOLUTIONS LIMITED,8266,06/08/2020,3512026,"1,743.64",0.00,N/A,N/A
Commissioning,School Organisation & Provision,Non-Schools,DERBY SCHOOLS SOLUTIONS LIMITED,8266,06/08/2020,3512026,717.79,0.00,N/A,N/A
Commissioning,School Organisation & Provision,Non-Schools,DERBY SCHOOLS SOLUTIONS LIMITED,8266,06/08/2020,3512026,"1,241.42",0.00,N/A,N/A
Commissioning,School Organisation & Provision,Non-Schools,DERBY SCHOOLS SOLUTIONS LIMITED,8266,06/08/2020,3512026,678.83,0.00,N/A,N/A
Commissioning,School Organisation & Provision,Non-Schools,DERBY SCHOOLS SOLUTIONS LIMITED,8266,06/08/2020,3512026,"1,782.25",0.00,N/A,N/A
Commissioning,School Organisation & Provision,Non-Schools,DERBY SCHOOLS SOLUTIONS LIMITED,8266,06/08/2020,3512026,741.48,0.00,N/A,N/A
Commissioning,School Organisation & Provision,Non-Schools,DERBY SCHOOLS SOLUTIONS LIMITED,8266,06/08/2020,3512026,"1,590.64",0.00,N/A,N/A
Commissioning,School Organisation & Provision,Non-Schools,DERBY SCHOOLS SOLUTIONS LIMITED,8266,06/08/2020,3512026,"2,249.06",0.00,N/A,N/A
Commissioning,School Organisation & Provision,Non-Schools,DERBY SCHOOLS SOLUTIONS LIMITED,8266,06/08/2020,3512026,"1,091.07",0.00,N/A,N/A
Commissioning,School Organisation & Provision,Non-Schools,DERBY SCHOOLS SOLUTIONS LIMITED,8266,06/08/2020,3512026,632.06,0.00,N/A,N/A
Commissioning,School Organisation & Provision,Non-Schools,DERBY SCHOOLS SOLUTIONS LIMITED,8266,06/08/2020,3512026,"426,622.83",0.00,N/A,N/A
Learning & Inclusion,Adult Learning - SFA,Non-Schools,DERBY THEATRE,1011491,06/08/2020,3512106,"1,500.00",0.00,People Services - Children & Young People,Travel and Food and Lodging and Entertai
"Waste, Street Cleansing & Fleet",Stores Road Depot & Fleet Management,Public Protection and Streetride,DERBYSHIRE COUNTY COUNCIL,12566,06/08/2020,3511870,"1,676.62",0.00,Communities & Place,Environmental Services
Parks & Healthy Living,Parks & Outdoor Recreation,"Leisure, Culture and Tourism",DERBYSHIRE WILDLIFE TRUST,1230,06/08/2020,3511491,"9,225.00",0.00,Communities & Place,Editorial and Design and Graphic and Fin
Highways Assest and Engineering,Engineering,Planning & Transportation,DERWENT FENCING LTD,279396,06/08/2020,3480681,"2,900.00",0.00,Communities & Place,Structures and Building and Construction
"Legal, Procurement and Democratic Services",Insurance,"Legal, Procurement and Democratic Services",EIO PLC,9857,06/08/2020,3509145,"2,018.12",0.00,N/A,N/A
Facilities Management,Accommodation Buildings,Property,EMS SECURITY SERVICES LTD,471442,06/08/2020,3512086,"16,920.00",0.00,Corporate Resources,Defense and Law Enforcement and Security
Facilities Management,Accommodation Buildings,Property,EMS SECURITY SERVICES LTD,471442,06/08/2020,3512085,"6,821.11",0.00,Corporate Resources,Defense and Law Enforcement and Security
Facilities Management,Accommodation Buildings,Property,EMS SECURITY SERVICES LTD,471442,06/08/2020,3512084,"2,516.43",0.00,Corporate Resources,Defense and Law Enforcement and Security
Parks & Healthy Living,Parks & Outdoor Recreation,"Leisure, Culture and Tourism",EMS SECURITY SERVICES LTD,471442,06/08/2020,3511674,894.04,0.00,Communities & Place,Defense and Law Enforcement and Security
Regeneration and Major Projects,Markets,City Development & Growth,EMS SECURITY SERVICES LTD,471442,06/08/2020,3511654,"3,052.80",0.00,Communities & Place,Defense and Law Enforcement and Security
Regeneration and Major Projects,Markets,City Development & Growth,EMS SECURITY SERVICES LTD,471442,06/08/2020,3511653,504.80,0.00,Communities & Place,Defense and Law Enforcement and Security
Regeneration and Major Projects,Markets,City Development & Growth,EMS SECURITY SERVICES LTD,471442,06/08/2020,3511651,"3,319.92",0.00,Communities & Place,Defense and Law Enforcement and Security
Strategic Housing,Retained Housing Revenue Account,City Development & Growth,EMS SECURITY SERVICES LTD,471442,06/08/2020,3511863,"5,461.76",0.00,Communities & Place,Defense and Law Enforcement and Security
Strategic Housing,Retained Housing Revenue Account,City Development & Growth,EMS SECURITY SERVICES LTD,471442,06/08/2020,3511863,"1,605.44",0.00,Communities & Place,Defense and Law Enforcement and Security
"Trading Standards, Food and Safety, Bereavement Services and Building Consultanc",Bereavement Services,Public Protection and Streetride,EMS SECURITY SERVICES LTD,471442,06/08/2020,3511657,509.34,0.00,Communities & Place,Defense and Law Enforcement and Security
"Trading Standards, Food and Safety, Bereavement Services and Building Consultanc",Bereavement Services,Public Protection and Streetride,EMS SECURITY SERVICES LTD,471442,06/08/2020,3511655,641.08,0.00,Communities & Place,Defense and Law Enforcement and Security
"Waste, Street Cleansing & Fleet",Stores Road Depot & Fleet Management,Public Protection and Streetride,EMS SECURITY SERVICES LTD,471442,06/08/2020,3494061,"5,145.68",0.00,Communities & Place,Defense and Law Enforcement and Security
Learning & Inclusion,Inclusion & Intervention,Non-Schools,ENHANCE EHC LIMITED,473655,06/08/2020,3509666,"2,531.25",0.00,People Services - Children & Young People,Education and Training Services
Property Design & Maintenance,Building - Repairs & Maintenance,Property,EVENTMEN LIMITED,1364490,06/08/2020,3512019,750.00,0.00,N/A,N/A
Property Design & Maintenance,Building - Repairs & Maintenance,Property,EVENTMEN LIMITED,1364490,06/08/2020,3512019,720.00,0.00,N/A,N/A
Property Design & Maintenance,Building - Repairs & Maintenance,Property,EVENTMEN LIMITED,1364490,06/08/2020,3512019,"1,684.80",0.00,N/A,N/A
Neighbourhoods,Neighbourhoods,Neighbourhoods,FAITHFUL AND GOULD LIMITED,945490,06/08/2020,3511978,"5,729.54",0.00,N/A,N/A
Chief Executives,Chief Executives,Chief Executives,FISHER GERMAN LLP,929474,06/08/2020,3503748,"1,129.39",0.00,UPRN 10150 - Our City Our River,Building and Construction and Maintenanc
Traffic & Transportation,Parking Services,Planning & Transportation,FLOWBIRD SMART CITY UK LIMITED,981474,06/08/2020,3512070,"3,375.12",0.00,Communities & Place,Printing and Photographic and Audio and
Neighbourhoods,Neighbourhoods,Neighbourhoods,FOSSE CONTRACTS LTD,188239,06/08/2020,3511411,"4,760.00",0.00,Chellaston Park,Building and Construction and Maintenanc
Regeneration and Major Projects,Regeneration Projects,City Development & Growth,G2V RECRUITMENT GROUP LIMITED,886471,06/08/2020,3509710,"5,312.50",0.00,Communities & Place,Management and Business Professionals an
Learning Disability Support,Community Support - Learning Disability Support,Community Support,GELDARD AND SON LIMITED,1144470,06/08/2020,3511988,"2,744.00",0.00,People Services - Adults and Health,Healthcare Services
Neighbourhoods,Neighbourhoods,Neighbourhoods,GELDARDS LLP,398399,06/08/2020,3508261,"6,814.00",0.00,UPRN 01761B - Becket Well,Management and Business Professionals an
Leisure,Leisure,"Leisure, Culture and Tourism",GENIUS WITHIN CIC,1053468,06/08/2020,3511643,525.00,0.00,Communities & Place,Education and Training Services
"Waste, Street Cleansing & Fleet",Stores Road Depot & Fleet Management,Public Protection and Streetride,GO PLANT FLEET SERVICES LTD,746443,06/08/2020,3511985,"4,207.32",0.00,Communities & Place,Transportation and Storage and Mail Serv
"Waste, Street Cleansing & Fleet",Stores Road Depot & Fleet Management,Public Protection and Streetride,GO PLANT FLEET SERVICES LTD,746443,06/08/2020,3512045,"3,935.88",0.00,Communities & Place,Transportation and Storage and Mail Serv
"Waste, Street Cleansing & Fleet",Stores Road Depot & Fleet Management,Public Protection and Streetride,GO PLANT FLEET SERVICES LTD,746443,06/08/2020,3511874,"4,207.32",0.00,Communities & Place,Transportation and Storage and Mail Serv
"Highways, Gounds Maintenance and Flood Defence","Highways Maintenance, Street Lighting and Flood Defence",Public Protection and Streetride,GTM GO TRAFFIC MANAGEMENT,200402,06/08/2020,3511509,595.00,0.00,Communities & Place,Defense and Law Enforcement and Security
Neighbourhoods,Neighbourhoods,Neighbourhoods,GTM GO TRAFFIC MANAGEMENT,200402,06/08/2020,3511507,900.00,0.00,MULTIPLE - Network Management - Local Traffic Management,Defense and Law Enforcement and Security
Social Care Activities,Mental Health - Social Care Activities,Mental Health,HANDLING MOVEMENT AND ERGONOMICS LTD,1825,06/08/2020,3512024,"1,500.00",0.00,People Services - Adults and Health,Education and Training Services
Strategic Asset Management,Strategic Asset Management,Property,HAYS SPECIALIST RECRUITMENT LTD,1852,06/08/2020,3509001,"3,581.37",0.00,Corporate Resources,Transportation and Storage and Mail Serv-Storage
Human Resources and Organisational Development,Occupational Health,Human Resources and Organisational Development,HEALTHWORK,1305476,06/08/2020,3512042,"3,047.60",0.00,Corporate Resources,Healthcare Services
Human Resources and Organisational Development,Human Resources,Human Resources and Organisational Development,HEMMING GROUP LTD,936490,06/08/2020,3512022,"4,500.00",0.00,Corporate Resources,Published Products
Human Resources and Organisational Development,Human Resources,Human Resources and Organisational Development,HEMMING GROUP LTD,936490,06/08/2020,3512021,"7,000.00",0.00,Corporate Resources,Published Products
Commissioning,Early Years Sufficiency & Access,Non-Schools,HEMPSALL CONSULTANCIES LTD,994471,06/08/2020,3511486,"1,380.00",0.00,People Services - Children & Young People,Politics and Civic Affairs Services
Commissioning,Early Years Sufficiency & Access,Non-Schools,HEMPSALL CONSULTANCIES LTD,994471,06/08/2020,3511486,"2,070.00",0.00,People Services - Children & Young People,Politics and Civic Affairs Services
Economic Development,Connect Project,City Development & Growth,HI SPEC FACILITIES SUPPORT COMPANY PLC,46169,06/08/2020,3511876,509.06,0.00,Communities & Place,Industrial Cleaning Services
Economic Development,Connect Project,City Development & Growth,HI SPEC FACILITIES SUPPORT COMPANY PLC,46169,06/08/2020,3511876,827.26,0.00,Communities & Place,Industrial Cleaning Services
Economic Development,Connect Project,City Development & Growth,HI SPEC FACILITIES SUPPORT COMPANY PLC,46169,06/08/2020,3511876,"1,018.12",0.00,Communities & Place,Industrial Cleaning Services
Economic Development,Connect Project,City Development & Growth,HI SPEC FACILITIES SUPPORT COMPANY PLC,46169,06/08/2020,3511876,509.06,0.00,Communities & Place,Industrial Cleaning Services
Economic Development,Connect Project,City Development & Growth,HI SPEC FACILITIES SUPPORT COMPANY PLC,46169,06/08/2020,3511876,636.44,0.00,Communities & Place,Industrial Cleaning Services
Economic Development,Economic Regeneration,City Development & Growth,HI SPEC FACILITIES SUPPORT COMPANY PLC,46169,06/08/2020,3511876,"1,018.12",0.00,Communities & Place,Industrial Cleaning Services
Early Help & Children�s Safeguarding,Children's Safeguarding Reception Services,Non-Schools,HILBROKE HOUSE LTD,1002472,06/08/2020,3512023,819.00,0.00,People Services - Children & Young People,Travel and Food and Lodging and Entertai
Leisure,"Leisure - Management,Sales, Marketing & Catering","Leisure, Culture and Tourism",IN PROFESSIONAL DEVELOPMENT LIMITED,1316482,06/08/2020,3511620,"1,250.00",0.00,Communities & Place,Education and Training Services
Traffic & Transportation,Traffic and Transport other,Planning & Transportation,JACK MOODY LANDSCAPING AND CIVIL ENGINEERING LTD,227390,06/08/2020,3511548,"1,570.00",0.00,Communities & Place,Structures and Building and Construction
"Highways, Gounds Maintenance and Flood Defence","Highways Maintenance, Street Lighting and Flood Defence",Public Protection and Streetride,JC BALLS AND SONS,164349,06/08/2020,3511633,"2,754.00",0.00,Communities & Place,Building and Construction Machinery and
"Highways, Gounds Maintenance and Flood Defence","Highways Maintenance, Street Lighting and Flood Defence",Public Protection and Streetride,JC BALLS AND SONS,164349,06/08/2020,3511631,"5,868.00",0.00,Communities & Place,Building and Construction Machinery and
Property Design & Maintenance,Building - Repairs & Maintenance,Property,JOHN E WRIGHT & CO LTD,2190,06/08/2020,3511351,"3,510.00",0.00,Corporate Resources,Printing and Photographic and Audio and
Property Design & Maintenance,Building - Repairs & Maintenance,Property,JOHN E WRIGHT & CO LTD,2190,06/08/2020,3511351,"13,390.00",0.00,Corporate Resources,Printing and Photographic and Audio and
Property Design & Maintenance,Building - Repairs & Maintenance,Property,KATAPULT LTD,2082,06/08/2020,3511880,"1,350.00",0.00,Corporate Resources,Editorial and Design and Graphic and Fin
Early Help & Children�s Safeguarding,Children's Safeguarding Services Locality 2,Non-Schools,LEXTOX DRUG AND ALCOHOL TESTING,188563,06/08/2020,3499791,848.00,0.00,People Services - Children & Young People,Management and Business Professionals an
"Highways, Gounds Maintenance and Flood Defence",Grounds Maintenance,Public Protection and Streetride,LODGE TYRES CO LTD,186856,06/08/2020,3511673,761.40,0.00,Communities & Place,Commercial and Military and Private Vehi
"Waste, Street Cleansing & Fleet",Stores Road Depot & Fleet Management,Public Protection and Streetride,LODGE TYRES CO LTD,186856,06/08/2020,3512020,"5,818.30",0.00,Communities & Place,Commercial and Military and Private Vehi
"Trading Standards, Food and Safety, Bereavement Services and Building Consultanc",Bereavement Services,Public Protection and Streetride,LYN OAKES LTD,124169,06/08/2020,3512037,698.80,0.00,Communities & Place,Musical Instruments and Games and Toys a
"Highways, Gounds Maintenance and Flood Defence",Grounds Maintenance,Public Protection and Streetride,MAGFERN RECYCLING 2018 LTD,956474,06/08/2020,3512073,536.40,0.00,Communities & Place,Environmental Services
"Environmental Protection, Housing Standards, Licensing, Emergency Planning",Environmental Protection,Public Protection and Streetride,MALLARD CONSULTANCY LTD,122472,06/08/2020,3511567,999.00,0.00,Communities & Place,Education and Training Services
Integrated Services,Children In Care,Non-Schools,MANOR HALL ACADEMY TRUST,698467,06/08/2020,3498330,"1,855.00",0.00,People Services - Children & Young People,Public Utilities and Public Sector Relat
Integrated Services,Children In Care,Non-Schools,MANOR HALL ACADEMY TRUST,698467,06/08/2020,3498329,"1,590.00",0.00,People Services - Children & Young People,Public Utilities and Public Sector Relat
Integrated Services,Children In Care,Non-Schools,MANOR HALL ACADEMY TRUST,698467,06/08/2020,3498328,"1,590.00",0.00,People Services - Children & Young People,Public Utilities and Public Sector Relat
Strategic Housing,Housing and Advice,City Development & Growth,MASON ELECTRONICS LTD,2440,06/08/2020,3512016,874.00,0.00,Communities & Place,Electronic Components and Supplies
"Waste, Street Cleansing & Fleet",Refuse Collection,Public Protection and Streetride,MGB PLASTICS,1026472,06/08/2020,3512049,"13,440.00",0.00,Communities & Place,Environmental Services
Learning Disability Support,Community Support - Learning Disability Support,Community Support,OAKLANDS SUPPORT LIMITED,1056472,06/08/2020,3511482,"3,377.92",0.00,People Services - Adults and Health,Healthcare Services
Learning Disability Support,Community Support - Learning Disability Support,Community Support,OAKLANDS SUPPORT LIMITED,1056472,06/08/2020,3511479,"9,196.93",0.00,People Services - Adults and Health,Healthcare Services
Learning Disability Support,Community Support - Learning Disability Support,Community Support,OAKLANDS SUPPORT LIMITED,1056472,06/08/2020,3511479,"9,196.73",0.00,People Services - Adults and Health,Healthcare Services
Physical Support,Community Support - Physical Support,Community Support,OAKLANDS SUPPORT LIMITED,1056472,06/08/2020,3511481,"1,447.68",0.00,People Services - Adults and Health,Healthcare Services
Property Design & Maintenance,Building - Repairs & Maintenance,Property,PERFECT CIRCLE JV LTD,605451,06/08/2020,3511965,550.00,0.00,N/A,N/A
Neighbourhoods,Neighbourhoods,Neighbourhoods,PICK EVERARD,1239471,06/08/2020,3511968,"2,893.41",0.00,N/A,N/A
Neighbourhoods,Neighbourhoods,Neighbourhoods,PICK EVERARD,1239471,06/08/2020,3511967,"3,893.41",0.00,N/A,N/A
Property Design & Maintenance,Building - Repairs & Maintenance,Property,PPL PRS LTD,771442,06/08/2020,3511683,"1,001.40",0.00,Corporate Resources,Travel and Food and Lodging and Entertai
Adults Health and Housing,Adults Health and Housing,Adults Health and Housing,PRISM MEDICAL UK,899482,06/08/2020,3504607,"1,650.90",0.00,REFCUS - Disabled Facilities Grant 96 Act,Medical Equipment and Accessories and Su
Neighbourhoods,Neighbourhoods,Neighbourhoods,Q-FREE (BRISTOL) UK  LTD,827442,06/08/2020,3511597,"3,700.00",0.00,Highways Infrastructure,Transportation and Storage and Mail Serv
Learning Disability Support,Community Support - Learning Disability Support,Community Support,REDACTED - PERSONAL DATA,126291,06/08/2020,3511945,"2,202.88",0.00,N/A,N/A
Learning Disability Support,Community Support - Learning Disability Support,Community Support,REDACTED - PERSONAL DATA,126291,06/08/2020,3511926,550.72,0.00,N/A,N/A
Learning Disability Support,Community Support - Learning Disability Support,Community Support,REDACTED - PERSONAL DATA,126291,06/08/2020,3511909,"2,202.88",0.00,N/A,N/A
Learning Disability Support,Community Support - Learning Disability Support,Community Support,REDACTED - PERSONAL DATA,897492,06/08/2020,3511946,589.92,0.00,N/A,N/A
Mental Health Support,Mental Health - Mental Health Support,Mental Health,REDACTED - PERSONAL DATA,385547,06/08/2020,3511954,902.16,0.00,N/A,N/A
Mental Health Support,Mental Health - Mental Health Support,Mental Health,REDACTED - PERSONAL DATA,385547,06/08/2020,3511949,902.16,0.00,N/A,N/A
Mental Health Support,Mental Health - Mental Health Support,Mental Health,REDACTED - PERSONAL DATA,385547,06/08/2020,3511944,902.16,0.00,N/A,N/A
Mental Health Support,Mental Health - Mental Health Support,Mental Health,REDACTED - PERSONAL DATA,385547,06/08/2020,3511942,741.06,0.00,N/A,N/A
Mental Health Support,Mental Health - Mental Health Support,Mental Health,REDACTED - PERSONAL DATA,385547,06/08/2020,3511936,902.16,0.00,N/A,N/A
Mental Health Support,Mental Health - Mental Health Support,Mental Health,REDACTED - PERSONAL DATA,385547,06/08/2020,3511935,902.16,0.00,N/A,N/A
Mental Health Support,Mental Health - Mental Health Support,Mental Health,REDACTED - PERSONAL DATA,385547,06/08/2020,3511924,902.16,0.00,N/A,N/A
Mental Health Support,Mental Health - Mental Health Support,Mental Health,REDACTED - PERSONAL DATA,385547,06/08/2020,3511910,902.16,0.00,N/A,N/A
Social Care Activities,Community Support - Social Care Activities,Community Support,REDACTED - PERSONAL DATA,12,06/08/2020,3509384,581.49,0.00,N/A,N/A
Social Care Activities,Community Support - Social Care Activities,Community Support,REDACTED - PERSONAL DATA,12,06/08/2020,3511423,"2,138.00",0.00,N/A,N/A
Leisure,Leisure,"Leisure, Culture and Tourism",RLSS DIRECT LTD,910498,06/08/2020,3511468,"1,059.00",0.00,Communities & Place,Education and Training Services
Financial Services,Business Support,Financial Services,ROYAL MAIL GROUP PLC,4194,06/08/2020,3511370,"6,364.40",0.00,Corporate Resources,Transportation and Storage and Mail Serv
Neighbourhoods,Neighbourhoods,Neighbourhoods,RUBICON WIGZELL LIMITED,1112505,06/08/2020,3511649,"1,980.00",0.00,A52 Strategic Transport Scheme,Management and Business Professionals an
Neighbourhoods,Neighbourhoods,Neighbourhoods,RUBICON WIGZELL LIMITED,1112505,06/08/2020,3511648,"2,475.00",0.00,A52 Strategic Transport Scheme,Management and Business Professionals an
Human Resources and Organisational Development,Occupational Health,Human Resources and Organisational Development,SAFETY FIRST AID GROUP,84709,06/08/2020,3511882,729.60,0.00,Corporate Resources,Politics and Civic Affairs Services
Human Resources and Organisational Development,Occupational Health,Human Resources and Organisational Development,SAFETY FIRST AID GROUP,84709,06/08/2020,3511881,"1,459.20",0.00,Corporate Resources,Politics and Civic Affairs Services
Facilities Management,Accommodation Buildings,Property,SIEMENS FINANCIAL SERVICES LIMITED,861446,06/08/2020,3499819,773.84,0.00,Corporate Resources,Building and Construction Machinery and
"Highways, Gounds Maintenance and Flood Defence","Highways Maintenance, Street Lighting and Flood Defence",Public Protection and Streetride,TARBY CONSTRUCTION LTD,194477,06/08/2020,3511886,"7,206.00",0.00,Communities & Place,Structures and Building and Construction
"Highways, Gounds Maintenance and Flood Defence","Highways Maintenance, Street Lighting and Flood Defence",Public Protection and Streetride,TARBY CONSTRUCTION LTD,194477,06/08/2020,3509716,"4,125.00",0.00,Communities & Place,Structures and Building and Construction
"Highways, Gounds Maintenance and Flood Defence","Highways Maintenance, Street Lighting and Flood Defence",Public Protection and Streetride,TARBY CONSTRUCTION LTD,194477,06/08/2020,3509716,"3,081.00",0.00,Communities & Place,Structures and Building and Construction
Commissioning,School Organisation & Provision,Non-Schools,THE HARMONY TRUST LTD,874449,06/08/2020,3512112,670.05,0.00,N/A,N/A
Control Accounts,Control Accounts,Control Accounts,UNISON,4930,06/08/2020,3511897,"12,559.57",0.00,N/A,N/A
Property Design & Maintenance,Building - Repairs & Maintenance,Property,WATER PLUS LIMITED,738445,06/08/2020,3511962,"32,840.47",0.00,N/A,N/A
Adults Health and Housing,Adults Health and Housing,Adults Health and Housing,A M PROPERTY SERVICES LTD,121,11/08/2020,3512919,"20,000.00",0.00,REFCUS - Disabled Facilities Grant 96 Act,Building and Construction and Maintenanc
Emergency Planning,Emergency Planning,Commissioning,ABBEYDALE,158,11/08/2020,3514145,"20,496.70",0.00,N/A,N/A
Regeneration and Major Projects,Regeneration Projects,City Development & Growth,AECOM INFRASTRUCTURE AND ENVIRONMENT UK LTD,244421,11/08/2020,3513828,"8,840.71",0.00,Communities & Place,Engineering and Research and Technology
"Highways, Gounds Maintenance and Flood Defence","Highways Maintenance, Street Lighting and Flood Defence",Public Protection and Streetride,AGGREGATE INDUSTRIES UK LTD,117850,11/08/2020,3514263,"1,274.33",0.00,Communities & Place,Building and Construction Machinery and
Traffic & Transportation,Traffic and Transport other,Planning & Transportation,ALBATROSS CARS DERBY LTD,878453,11/08/2020,3513099,"1,035.65",0.00,N/A,N/A
Non Delegated Schools Budget,Non Delegated School Expenditure,Schools Block,ALLESTREE WOODLANDS SCHOOL,125376,11/08/2020,3513943,"5,936.30",0.00,N/A,N/A
Corporate,Corporate Resources Other,Corporate,ALLSIGNS,11671,11/08/2020,3509357,"1,842.75",0.00,Corporate,Structures and Building and Construction
Facilities Management,Cleaning & Caretaking,Property,ANDERSON ELECTRICAL TRADE LIMITED,126048,11/08/2020,3513927,"1,635.00",0.00,Corporate Resources,Building and Construction and Maintenanc
Leisure,Leisure,"Leisure, Culture and Tourism",ANDERSON ELECTRICAL TRADE LIMITED,126048,11/08/2020,3511488,549.00,0.00,Communities & Place,Building and Construction and Maintenanc
Leisure,Leisure,"Leisure, Culture and Tourism",ANDERSON ELECTRICAL TRADE LIMITED,126048,11/08/2020,3511488,549.00,0.00,Communities & Place,Building and Construction and Maintenanc
Leisure,Leisure,"Leisure, Culture and Tourism",ANDERSON ELECTRICAL TRADE LIMITED,126048,11/08/2020,3511488,549.00,0.00,Communities & Place,Building and Construction and Maintenanc
Leisure,Leisure,"Leisure, Culture and Tourism",ANDERSON ELECTRICAL TRADE LIMITED,126048,11/08/2020,3511488,549.00,0.00,Communities & Place,Building and Construction and Maintenanc
Emergency Planning,Emergency Planning,Commissioning,ANNEFIELD HOUSE LTD,1333470,11/08/2020,3513978,"8,498.63",0.00,N/A,N/A
Corporate,Corporate Resources Other,Corporate,ARCO LTD,93,11/08/2020,3512886,569.50,0.00,Corporate,Default
Public Health,Staff Costs & Overheads,Public Health,ASSOCIATION OF DIRECTORS OF PUBLIC HEALTH ADPH,1094488,11/08/2020,3512018,"3,250.00",0.00,People Services - Adults and Health,Organizations and Clubs-Clubs
Corporate,Corporate Resources Other,Corporate,ATLAS ENFORCEMENT LTD,904472,11/08/2020,3512907,960.00,0.00,Corporate,Transportation and Storage and Mail Serv
Corporate,Corporate Resources Other,Corporate,ATLAS ENFORCEMENT LTD,904472,11/08/2020,3512906,"3,360.00",0.00,Corporate,Transportation and Storage and Mail Serv
Corporate,Corporate Resources Other,Corporate,ATLAS ENFORCEMENT LTD,904472,11/08/2020,3512905,"3,360.00",0.00,Corporate,Transportation and Storage and Mail Serv
Corporate,Corporate Resources Other,Corporate,ATLAS ENFORCEMENT LTD,904472,11/08/2020,3512904,"3,360.00",0.00,Corporate,Transportation and Storage and Mail Serv
Corporate,Corporate Resources Other,Corporate,ATLAS ENFORCEMENT LTD,904472,11/08/2020,3512903,"3,360.00",0.00,Corporate,Transportation and Storage and Mail Serv
Corporate,Corporate Resources Other,Corporate,ATLAS ENFORCEMENT LTD,904472,11/08/2020,3512902,"3,600.00",0.00,Corporate,Transportation and Storage and Mail Serv
Corporate,Corporate Resources Other,Corporate,ATLAS ENFORCEMENT LTD,904472,11/08/2020,3512901,"3,360.00",0.00,Corporate,Transportation and Storage and Mail Serv
Corporate,Corporate Resources Other,Corporate,ATLAS ENFORCEMENT LTD,904472,11/08/2020,3512900,"3,360.00",0.00,Corporate,Transportation and Storage and Mail Serv
Corporate,Corporate Resources Other,Corporate,ATLAS ENFORCEMENT LTD,904472,11/08/2020,3512899,"3,360.00",0.00,Corporate,Transportation and Storage and Mail Serv
Corporate,Corporate Resources Other,Corporate,ATLAS ENFORCEMENT LTD,904472,11/08/2020,3512860,"1,680.00",0.00,Corporate,Transportation and Storage and Mail Serv
Corporate,Corporate Resources Other,Corporate,ATLAS ENFORCEMENT LTD,904472,11/08/2020,3512859,"3,840.00",0.00,Corporate,Transportation and Storage and Mail Serv
Corporate,Corporate Resources Other,Corporate,ATLAS ENFORCEMENT LTD,904472,11/08/2020,3512858,"3,600.00",0.00,Corporate,Transportation and Storage and Mail Serv
Corporate,Corporate Resources Other,Corporate,ATLAS ENFORCEMENT LTD,904472,11/08/2020,3512857,"3,360.00",0.00,Corporate,Transportation and Storage and Mail Serv
Corporate,Corporate Resources Other,Corporate,ATLAS ENFORCEMENT LTD,904472,11/08/2020,3512856,"3,360.00",0.00,Corporate,Transportation and Storage and Mail Serv
Regeneration and Major Projects,Regeneration Projects,City Development & Growth,B & K PROPERTY SERVICES LTD,187862,11/08/2020,3514063,"8,898.00",0.00,N/A,N/A
Non Delegated Schools Budget,Non Delegated School Expenditure,Schools Block,BISHOP LONSDALE CE AIDED PRIMARY SCHOOL AND NURSERY,11152,11/08/2020,3513952,"2,038.92",0.00,N/A,N/A
"Culture, Business Development & Tourism",Libraries,"Leisure, Culture and Tourism",BOLINDA UK LTD,200365,11/08/2020,3512897,973.53,0.00,Communities & Place,Published Products
"Culture, Business Development & Tourism",Libraries,"Leisure, Culture and Tourism",BOLINDA UK LTD,200365,11/08/2020,3512897,829.52,0.00,Communities & Place,Published Products
Neighbourhoods,Neighbourhoods,Neighbourhoods,BROWNE JACOBSON LLP,143376,11/08/2020,3512889,"21,825.87",0.00,Cathedral Green,Management and Business Professionals an
Neighbourhoods,Neighbourhoods,Neighbourhoods,BROWNE JACOBSON LLP,143376,11/08/2020,3512889,"21,751.87",0.00,Cathedral Green,Management and Business Professionals an
Parks & Healthy Living,Parks & Outdoor Recreation,"Leisure, Culture and Tourism",BROXAP LTD,411,11/08/2020,3511685,760.00,0.00,Communities & Place,Structures and Building and Construction
"Highways, Gounds Maintenance and Flood Defence","Highways Maintenance, Street Lighting and Flood Defence",Public Protection and Streetride,BUILDBASE LTD,424,11/08/2020,3512029,696.00,0.00,Communities & Place,Structures and Building and Construction
"Waste, Street Cleansing & Fleet",Cleansing,Public Protection and Streetride,BUNZL CLEANING AND HYGIENE SUPPLIES,961498,11/08/2020,3511833,535.46,0.00,Communities & Place,Chemicals including Bio Chemicals and Ga
Economic Development,DEGF,City Development & Growth,BUREAU VAN DIJK ELECTRONIC PUBLISHING LTD,1206482,11/08/2020,3508175,"7,166.00",0.00,Communities & Place,Management and Business Professionals an
Mental Health Support,Mental Health - Mental Health Support,Mental Health,BWA HEALTH AND CARE SERVICE LTD,1089474,11/08/2020,3513125,"1,315.92",0.00,N/A,N/A
Mental Health Support,Mental Health - Mental Health Support,Mental Health,BWA HEALTH AND CARE SERVICE LTD,1089474,11/08/2020,3513191,720.20,0.00,N/A,N/A
Physical Support,Community Support - Physical Support,Community Support,BWA HEALTH AND CARE SERVICE LTD,1089474,11/08/2020,3513742,"2,242.10",0.00,N/A,N/A
Physical Support,Community Support - Physical Support,Community Support,BWA HEALTH AND CARE SERVICE LTD,1089474,11/08/2020,3513737,964.16,0.00,N/A,N/A
Physical Support,Community Support - Physical Support,Community Support,BWA HEALTH AND CARE SERVICE LTD,1089474,11/08/2020,3513271,"2,333.30",0.00,N/A,N/A
Physical Support,Community Support - Physical Support,Community Support,BWA HEALTH AND CARE SERVICE LTD,1089474,11/08/2020,3513270,"2,242.10",0.00,N/A,N/A
Physical Support,Community Support - Physical Support,Community Support,BWA HEALTH AND CARE SERVICE LTD,1089474,11/08/2020,3513661,"1,024.96",0.00,N/A,N/A
Physical Support,Community Support - Physical Support,Community Support,BWA HEALTH AND CARE SERVICE LTD,1089474,11/08/2020,3513427,"2,363.70",0.00,N/A,N/A
Physical Support,Community Support - Physical Support,Community Support,BWA HEALTH AND CARE SERVICE LTD,1089474,11/08/2020,3513741,555.20,0.00,N/A,N/A
Physical Support,Community Support - Physical Support,Community Support,BWA HEALTH AND CARE SERVICE LTD,1089474,11/08/2020,3513269,"4,420.00",0.00,N/A,N/A
Physical Support,Community Support - Physical Support,Community Support,BWA HEALTH AND CARE SERVICE LTD,1089474,11/08/2020,3513423,"4,420.00",0.00,N/A,N/A
Physical Support,Community Support - Physical Support,Community Support,BWA HEALTH AND CARE SERVICE LTD,1089474,11/08/2020,3513580,"3,040.00",0.00,N/A,N/A
Physical Support,Community Support - Physical Support,Community Support,BWA HEALTH AND CARE SERVICE LTD,1089474,11/08/2020,3513579,"3,040.00",0.00,N/A,N/A
Physical Support,Community Support - Physical Support,Community Support,BWA HEALTH AND CARE SERVICE LTD,1089474,11/08/2020,3513740,724.21,0.00,N/A,N/A
Physical Support,Community Support - Physical Support,Community Support,BWA HEALTH AND CARE SERVICE LTD,1089474,11/08/2020,3513510,"1,238.52",0.00,N/A,N/A
Physical Support,Community Support - Physical Support,Community Support,BWA HEALTH AND CARE SERVICE LTD,1089474,11/08/2020,3513509,"1,042.04",0.00,N/A,N/A
Physical Support,Community Support - Physical Support,Community Support,BWA HEALTH AND CARE SERVICE LTD,1089474,11/08/2020,3513508,557.72,0.00,N/A,N/A
Physical Support,Community Support - Physical Support,Community Support,BWA HEALTH AND CARE SERVICE LTD,1089474,11/08/2020,3513276,922.96,0.00,N/A,N/A
Physical Support,Community Support - Physical Support,Community Support,BWA HEALTH AND CARE SERVICE LTD,1089474,11/08/2020,3513662,506.71,0.00,N/A,N/A
Physical Support,Community Support - Physical Support,Community Support,BWA HEALTH AND CARE SERVICE LTD,1089474,11/08/2020,3513430,"1,238.52",0.00,N/A,N/A
Physical Support,Community Support - Physical Support,Community Support,BWA HEALTH AND CARE SERVICE LTD,1089474,11/08/2020,3513424,754.61,0.00,N/A,N/A
Physical Support,Community Support - Physical Support,Community Support,BWA HEALTH AND CARE SERVICE LTD,1089474,11/08/2020,3513359,"1,139.48",0.00,N/A,N/A
Physical Support,Community Support - Physical Support,Community Support,BWA HEALTH AND CARE SERVICE LTD,1089474,11/08/2020,3513666,"1,139.48",0.00,N/A,N/A
Physical Support,Community Support - Physical Support,Community Support,BWA HEALTH AND CARE SERVICE LTD,1089474,11/08/2020,3513665,942.08,0.00,N/A,N/A
Physical Support,Community Support - Physical Support,Community Support,BWA HEALTH AND CARE SERVICE LTD,1089474,11/08/2020,3513189,"1,139.48",0.00,N/A,N/A
Physical Support,Community Support - Physical Support,Community Support,BWA HEALTH AND CARE SERVICE LTD,1089474,11/08/2020,3513358,"1,411.00",0.00,N/A,N/A
Physical Support,Community Support - Physical Support,Community Support,BWA HEALTH AND CARE SERVICE LTD,1089474,11/08/2020,3513357,"1,139.48",0.00,N/A,N/A
Physical Support,Community Support - Physical Support,Community Support,BWA HEALTH AND CARE SERVICE LTD,1089474,11/08/2020,3513356,"1,139.48",0.00,N/A,N/A
Physical Support,Community Support - Physical Support,Community Support,BWA HEALTH AND CARE SERVICE LTD,1089474,11/08/2020,3513355,"1,062.32",0.00,N/A,N/A
Physical Support,Community Support - Physical Support,Community Support,BWA HEALTH AND CARE SERVICE LTD,1089474,11/08/2020,3513507,"1,532.60",0.00,N/A,N/A
Physical Support,Community Support - Physical Support,Community Support,BWA HEALTH AND CARE SERVICE LTD,1089474,11/08/2020,3513275,"1,062.32",0.00,N/A,N/A
Physical Support,Community Support - Physical Support,Community Support,BWA HEALTH AND CARE SERVICE LTD,1089474,11/08/2020,3513274,"1,062.32",0.00,N/A,N/A
Physical Support,Community Support - Physical Support,Community Support,BWA HEALTH AND CARE SERVICE LTD,1089474,11/08/2020,3513428,"1,062.32",0.00,N/A,N/A
Support with Memory and Cognition,Community Support - Support with Memory and Cognition,Community Support,BWA HEALTH AND CARE SERVICE LTD,1089474,11/08/2020,3513124,575.52,0.00,N/A,N/A
Non Delegated Schools Budget,Non Delegated School Expenditure,Schools Block,CHADDESDEN PARK PRIMARY SCHOOL,796447,11/08/2020,3513957,"2,771.84",0.00,People Services - Children & Young People,Education and Training Services
Social Care Activities,Home First - Social Care Activities,Home First,CHADS CARS LTD,717,11/08/2020,3512794,607.40,0.00,People Services - Adults and Health,Transportation and Storage and Mail Serv
Social Care Activities,Home First - Social Care Activities,Home First,CHADS CARS LTD,717,11/08/2020,3512794,594.40,0.00,People Services - Adults and Health,Transportation and Storage and Mail Serv
Traffic & Transportation,Traffic and Transport other,Planning & Transportation,CHELLASTON CARS UK LTD,1007486,11/08/2020,3513039,954.60,0.00,N/A,N/A
Traffic & Transportation,Traffic and Transport other,Planning & Transportation,CHELLASTON CARS UK LTD,1007486,11/08/2020,3513038,"1,000.00",0.00,N/A,N/A
Physical Support,Community Support - Physical Support,Community Support,CHOICE SUPPORT AND CARE SERVICES LTD,1291469,11/08/2020,3513670,680.80,0.00,N/A,N/A
Property Design & Maintenance,Building - Repairs & Maintenance,Property,CHUBB FIRE AND SECURITY LTD,218385,11/08/2020,3514088,544.93,0.00,N/A,N/A
Adults Health and Housing,Adults Health and Housing,Adults Health and Housing,CLOSOMAT LTD,921492,11/08/2020,3511757,"5,167.00",0.00,REFCUS - Disabled Facilities Grant 96 Act,Furniture and Furnishings
Adults Health and Housing,Adults Health and Housing,Adults Health and Housing,CLOSOMAT LTD,921492,11/08/2020,3511757,682.04,0.00,REFCUS - Disabled Facilities Grant 96 Act,Furniture and Furnishings
Traffic & Transportation,Traffic and Transport other,Planning & Transportation,COMMUNITY TRANSPORT FOR TOWN AND COUNTY,180369,11/08/2020,3513017,"4,050.80",0.00,N/A,N/A
Emergency Planning,Emergency Planning,Commissioning,CRAEGMOOR OAKLANDS DERBY PRIORY,119837,11/08/2020,3513981,"3,999.36",0.00,N/A,N/A
Traffic & Transportation,Traffic and Transport other,Planning & Transportation,CROWN CARS Derby LTD,112999,11/08/2020,3513092,813.82,0.00,N/A,N/A
Traffic & Transportation,Traffic and Transport other,Planning & Transportation,CROWN CARS Derby LTD,112999,11/08/2020,3513088,"1,174.50",0.00,N/A,N/A
Traffic & Transportation,Traffic and Transport other,Planning & Transportation,CROWN CARS Derby LTD,112999,11/08/2020,3513067,"2,688.00",0.00,N/A,N/A
Traffic & Transportation,Traffic and Transport other,Planning & Transportation,CROWN CARS Derby LTD,112999,11/08/2020,3513025,"2,491.82",0.00,N/A,N/A
Traffic & Transportation,Traffic and Transport other,Planning & Transportation,CROWN CARS Derby LTD,112999,11/08/2020,3513019,"1,131.46",0.00,N/A,N/A
Traffic & Transportation,Traffic and Transport other,Planning & Transportation,CROWN CARS Derby LTD,112999,11/08/2020,3513006,863.04,0.00,N/A,N/A
Non Delegated Schools Budget,Non Delegated School Expenditure,Schools Block,DERBY DIOCESAN ACADEMY TRUST 2,996477,11/08/2020,3513942,"18,894.08",0.00,N/A,N/A
Physical Support,Community Support - Physical Support,Community Support,DERBYSHIRE CARE SERVICES,388459,11/08/2020,3513561,713.28,0.00,N/A,N/A
Physical Support,Community Support - Physical Support,Community Support,DERBYSHIRE CARE SERVICES,388459,11/08/2020,3513732,871.69,0.00,N/A,N/A
Physical Support,Community Support - Physical Support,Community Support,DERBYSHIRE CARE SERVICES,388459,11/08/2020,3513729,713.28,0.00,N/A,N/A
Physical Support,Community Support - Physical Support,Community Support,DERBYSHIRE CARE SERVICES,388459,11/08/2020,3513326,723.28,0.00,N/A,N/A
Physical Support,Community Support - Physical Support,Community Support,DERBYSHIRE CARE SERVICES,388459,11/08/2020,3513719,733.28,0.00,N/A,N/A
Physical Support,Community Support - Physical Support,Community Support,DERBYSHIRE CARE SERVICES,388459,11/08/2020,3513718,551.13,0.00,N/A,N/A
Physical Support,Community Support - Physical Support,Community Support,DERBYSHIRE CARE SERVICES,388459,11/08/2020,3513496,737.16,0.00,N/A,N/A
Physical Support,Community Support - Physical Support,Community Support,DERBYSHIRE CARE SERVICES,388459,11/08/2020,3513484,534.96,0.00,N/A,N/A
Physical Support,Community Support - Physical Support,Community Support,DERBYSHIRE CARE SERVICES,388459,11/08/2020,3513482,723.28,0.00,N/A,N/A
Physical Support,Community Support - Physical Support,Community Support,DERBYSHIRE CARE SERVICES,388459,11/08/2020,3513481,713.28,0.00,N/A,N/A
Physical Support,Community Support - Physical Support,Community Support,DERBYSHIRE CARE SERVICES,388459,11/08/2020,3513260,871.69,0.00,N/A,N/A
Physical Support,Community Support - Physical Support,Community Support,DERBYSHIRE CARE SERVICES,388459,11/08/2020,3513653,737.16,0.00,N/A,N/A
Physical Support,Community Support - Physical Support,Community Support,DERBYSHIRE CARE SERVICES,388459,11/08/2020,3513169,713.28,0.00,N/A,N/A
Physical Support,Community Support - Physical Support,Community Support,DERBYSHIRE CARE SERVICES,388459,11/08/2020,3513166,713.28,0.00,N/A,N/A
Physical Support,Community Support - Physical Support,Community Support,DERBYSHIRE CARE SERVICES,388459,11/08/2020,3513165,713.28,0.00,N/A,N/A
Physical Support,Community Support - Physical Support,Community Support,DERBYSHIRE CARE SERVICES,388459,11/08/2020,3513633,534.96,0.00,N/A,N/A
Physical Support,Community Support - Physical Support,Community Support,DERBYSHIRE CARE SERVICES,388459,11/08/2020,3513178,"2,855.60",0.00,N/A,N/A
Physical Support,Community Support - Physical Support,Community Support,DERBYSHIRE CARE SERVICES,388459,11/08/2020,3513570,732.90,0.00,N/A,N/A
Mental Health Support,Mental Health - Mental Health Support,Mental Health,DERBYSHIRE COMMUNITY CARE LTD,1152473,11/08/2020,3513448,729.20,0.00,N/A,N/A
Physical Support,Community Support - Physical Support,Community Support,DERBYSHIRE COMMUNITY CARE LTD,1152473,11/08/2020,3513689,581.82,0.00,N/A,N/A
Physical Support,Community Support - Physical Support,Community Support,DERBYSHIRE COMMUNITY CARE LTD,1152473,11/08/2020,3513222,521.02,0.00,N/A,N/A
Physical Support,Community Support - Physical Support,Community Support,DERBYSHIRE COMMUNITY CARE LTD,1152473,11/08/2020,3513691,605.08,0.00,N/A,N/A
Physical Support,Community Support - Physical Support,Community Support,DERBYSHIRE COMMUNITY CARE LTD,1152473,11/08/2020,3513296,830.65,0.00,N/A,N/A
Physical Support,Community Support - Physical Support,Community Support,DERBYSHIRE COMMUNITY CARE LTD,1152473,11/08/2020,3513608,754.20,0.00,N/A,N/A
Physical Support,Community Support - Physical Support,Community Support,DERBYSHIRE COMMUNITY CARE LTD,1152473,11/08/2020,3513140,628.54,0.00,N/A,N/A
Physical Support,Community Support - Physical Support,Community Support,DERBYSHIRE COMMUNITY CARE LTD,1152473,11/08/2020,3513380,"1,178.84",0.00,N/A,N/A
Public Health,Sexual Health,Public Health,DERBYSHIRE COMMUNITY HEALTH SERVICES NHS TRUST,109973,11/08/2020,3511574,"1,321.08",0.00,People Services - Adults and Health,Education and Training Services
Learning Disability Support,Community Support - Learning Disability Support,Community Support,DIMENSIONS UK LTD,388489,11/08/2020,3513261,"1,070.44",0.00,N/A,N/A
Learning Disability Support,Community Support - Learning Disability Support,Community Support,DIMENSIONS UK LTD,388489,11/08/2020,3513420,"1,100.04",0.00,N/A,N/A
Physical Support,Community Support - Physical Support,Community Support,DISABILITY DIRECT,388493,11/08/2020,3513578,769.44,0.00,N/A,N/A
Human Resources and Organisational Development,Human Resources,Human Resources and Organisational Development,DISCLOSURE AND BARRING SERVICE,146440,11/08/2020,3513925,"1,850.00",0.00,Corporate Resources,Politics and Civic Affairs Services
Human Resources and Organisational Development,Human Resources,Human Resources and Organisational Development,EMPLOYMENT LAW SERVICES LIMITED,1370474,11/08/2020,3511402,895.00,0.00,N/A,N/A
Integrated Services,Residential Children's Homes,Non-Schools,EMS SECURITY SERVICES LTD,471442,11/08/2020,3511660,575.24,0.00,People Services - Children & Young People,Defense and Law Enforcement and Security
Regeneration and Major Projects,Markets,City Development & Growth,EMS SECURITY SERVICES LTD,471442,11/08/2020,3511680,580.00,0.00,Communities & Place,Defense and Law Enforcement and Security
Regeneration and Major Projects,Markets,City Development & Growth,EMS SECURITY SERVICES LTD,471442,11/08/2020,3511658,"1,728.94",0.00,Communities & Place,Defense and Law Enforcement and Security
Regeneration and Major Projects,Regeneration Projects,City Development & Growth,EMS SECURITY SERVICES LTD,471442,11/08/2020,3511662,713.36,0.00,Communities & Place,Defense and Law Enforcement and Security
Strategic Asset Management,Strategic Asset Management,Property,EMS SECURITY SERVICES LTD,471442,11/08/2020,3511679,537.00,0.00,Corporate Resources,Defense and Law Enforcement and Security
"Waste, Street Cleansing & Fleet",Stores Road Depot & Fleet Management,Public Protection and Streetride,ENTERPRISE FLEX E RENT LTD,277434,11/08/2020,3512809,"17,002.29",0.00,Communities & Place,Transportation and Storage and Mail Serv-Storage
Digital Services & Customer Management,Customer Management,Digital Services & Customer Management,ESENDEX LTD,260437,11/08/2020,3513926,"3,019.63",0.00,Corporate Resources,Information Technology Broadcasting and
Children and Young People,Children and Young People,Children and Young People,EUROVIA INFRASTRUCTURE LTD,186462,11/08/2020,3512781,"11,938.22",0.00,Asset Management - Land Drainage & Flood Defence,Engineering and Research and Technology
"Trading Standards, Food and Safety, Bereavement Services and Building Consultanc",Bereavement Services,Public Protection and Streetride,FACULTATIEVE TECHNOLOGIES,1528,11/08/2020,3513894,"103,720.00",0.00,Communities & Place,Politics and Civic Affairs Services
"Trading Standards, Food and Safety, Bereavement Services and Building Consultanc",Bereavement Services,Public Protection and Streetride,FACULTATIEVE TECHNOLOGIES,1528,11/08/2020,3513894,960.00,0.00,Communities & Place,Politics and Civic Affairs Services
Traffic & Transportation,Parking Services,Planning & Transportation,FLOWBIRD SMART CITY UK LIMITED,981474,11/08/2020,3512845,"1,779.00",0.00,Communities & Place,Printing and Photographic and Audio and
Public Health,Drugs and Alcohol,Public Health,FRONTIER MEDICAL GROUP,189372,11/08/2020,3512891,"4,890.00",0.00,People Services - Adults and Health,Healthcare Services
"Waste, Street Cleansing & Fleet",Cleansing,Public Protection and Streetride,GRAFFITI REMOVAL LTD,958468,11/08/2020,3509097,"3,531.95",0.00,Communities & Place,Environmental Services
Learning Disability Support,Community Support - Learning Disability Support,Community Support,GREENWICH GARDENS EXTRA CAS DCS,537476,11/08/2020,3513446,698.08,0.00,N/A,N/A
Learning Disability Support,Community Support - Learning Disability Support,Community Support,GREENWICH GARDENS EXTRA CAS DCS,537476,11/08/2020,3513216,"1,221.92",0.00,N/A,N/A
Mental Health Support,Community Support - Mental Health Support,Community Support,GREENWICH GARDENS EXTRA CAS DCS,537476,11/08/2020,3513219,864.92,0.00,N/A,N/A
Mental Health Support,Community Support - Mental Health Support,Community Support,GREENWICH GARDENS EXTRA CAS DCS,537476,11/08/2020,3513604,"1,063.68",0.00,N/A,N/A
Mental Health Support,Community Support - Mental Health Support,Community Support,GREENWICH GARDENS EXTRA CAS DCS,537476,11/08/2020,3513603,622.76,0.00,N/A,N/A
Mental Health Support,Mental Health - Mental Health Support,Mental Health,GREENWICH GARDENS EXTRA CAS DCS,537476,11/08/2020,3513683,596.20,0.00,N/A,N/A
Mental Health Support,Mental Health - Mental Health Support,Mental Health,GREENWICH GARDENS EXTRA CAS DCS,537476,11/08/2020,3513601,636.32,0.00,N/A,N/A
Physical Support,Community Support - Physical Support,Community Support,GREENWICH GARDENS EXTRA CAS DCS,537476,11/08/2020,3513528,787.76,0.00,N/A,N/A
Physical Support,Community Support - Physical Support,Community Support,GREENWICH GARDENS EXTRA CAS DCS,537476,11/08/2020,3513527,525.44,0.00,N/A,N/A
Physical Support,Community Support - Physical Support,Community Support,GREENWICH GARDENS EXTRA CAS DCS,537476,11/08/2020,3513292,683.56,0.00,N/A,N/A
Physical Support,Community Support - Physical Support,Community Support,GREENWICH GARDENS EXTRA CAS DCS,537476,11/08/2020,3513682,"1,442.92",0.00,N/A,N/A
Physical Support,Community Support - Physical Support,Community Support,GREENWICH GARDENS EXTRA CAS DCS,537476,11/08/2020,3513681,"1,238.52",0.00,N/A,N/A
Physical Support,Community Support - Physical Support,Community Support,GREENWICH GARDENS EXTRA CAS DCS,537476,11/08/2020,3513447,622.76,0.00,N/A,N/A
Physical Support,Community Support - Physical Support,Community Support,GREENWICH GARDENS EXTRA CAS DCS,537476,11/08/2020,3513445,"1,481.40",0.00,N/A,N/A
Physical Support,Community Support - Physical Support,Community Support,GREENWICH GARDENS EXTRA CAS DCS,537476,11/08/2020,3513213,933.32,0.00,N/A,N/A
Physical Support,Community Support - Physical Support,Community Support,GREENWICH GARDENS EXTRA CAS DCS,537476,11/08/2020,3513212,918.12,0.00,N/A,N/A
Physical Support,Community Support - Physical Support,Community Support,GREENWICH GARDENS EXTRA CAS DCS,537476,11/08/2020,3513211,545.60,0.00,N/A,N/A
Physical Support,Community Support - Physical Support,Community Support,GREENWICH GARDENS EXTRA CAS DCS,537476,11/08/2020,3513137,"1,238.52",0.00,N/A,N/A
Physical Support,Community Support - Physical Support,Community Support,GREENWICH GARDENS EXTRA CAS DCS,537476,11/08/2020,3513375,"1,442.92",0.00,N/A,N/A
Physical Support,Community Support - Physical Support,Community Support,GREENWICH GARDENS EXTRA CAS DCS,537476,11/08/2020,3513525,"1,355.08",0.00,N/A,N/A
Physical Support,Community Support - Physical Support,Community Support,GREENWICH GARDENS EXTRA CAS DCS,537476,11/08/2020,3513288,"1,543.06",0.00,N/A,N/A
Physical Support,Community Support - Physical Support,Community Support,GREENWICH GARDENS EXTRA CAS DCS,537476,11/08/2020,3513287,"1,476.44",0.00,N/A,N/A
Physical Support,Community Support - Physical Support,Community Support,GREENWICH GARDENS EXTRA CAS DCS,537476,11/08/2020,3513680,"1,607.00",0.00,N/A,N/A
Physical Support,Community Support - Physical Support,Community Support,GREENWICH GARDENS EXTRA CAS DCS,537476,11/08/2020,3513210,"1,415.88",0.00,N/A,N/A
Physical Support,Community Support - Physical Support,Community Support,GREENWICH GARDENS EXTRA CAS DCS,537476,11/08/2020,3513209,887.72,0.00,N/A,N/A
Sensory Support,Community Support - Sensory Support,Community Support,GREENWICH GARDENS EXTRA CAS DCS,537476,11/08/2020,3513215,759.59,0.00,N/A,N/A
Sensory Support,Community Support - Sensory Support,Community Support,GREENWICH GARDENS EXTRA CAS DCS,537476,11/08/2020,3513376,"1,139.48",0.00,N/A,N/A
Support with Memory and Cognition,Community Support - Support with Memory and Cognition,Community Support,GREENWICH GARDENS EXTRA CAS DCS,537476,11/08/2020,3513217,"1,292.36",0.00,N/A,N/A
Support with Memory and Cognition,Community Support - Support with Memory and Cognition,Community Support,GREENWICH GARDENS EXTRA CAS DCS,537476,11/08/2020,3513602,"1,292.36",0.00,N/A,N/A
Support with Memory and Cognition,Community Support - Support with Memory and Cognition,Community Support,GREENWICH GARDENS EXTRA CAS DCS,537476,11/08/2020,3513218,622.76,0.00,N/A,N/A
"Highways, Gounds Maintenance and Flood Defence",Grounds Maintenance,Public Protection and Streetride,GTM GO TRAFFIC MANAGEMENT,200402,11/08/2020,3511508,750.00,0.00,Communities & Place,Defense and Law Enforcement and Security
"Waste, Street Cleansing & Fleet",Stores Road Depot & Fleet Management,Public Protection and Streetride,H20 UTILITIES LTD,16749,11/08/2020,3509241,"2,350.00",0.00,Communities & Place,Structures and Building and Construction
Corporate,Corporate Resources Other,Corporate,HARROW GREEN LIMITED,1188477,11/08/2020,3509533,"1,279.45",0.00,Corporate,Transportation and Storage and Mail Serv
Digital Services & Customer Management,Digital Services,Digital Services & Customer Management,HAS TECHNOLOGY LTD,1204479,11/08/2020,3512855,"1,938.77",0.00,Corporate Resources,Management and Business Professionals an
Commissioning - Schools Block,Recoupment - Independent Special School Fees,Schools Block,HIGH GRANGE SPECIALIST SCHOOL,898469,11/08/2020,3513829,"2,738.85",0.00,People Services - Children & Young People,Education and Training Services
Adults Health and Housing,Adults Health and Housing,Adults Health and Housing,HIGHFIELD JOINERY AND BUILD SERVS LTD,1895,11/08/2020,3512918,"5,674.88",0.00,REFCUS - Disabled Facilities Grant 96 Act,Building and Construction Machinery and
Early Help & Children�s Safeguarding,Children's Safeguarding Services Locality 3/4,Non-Schools,HILBROKE HOUSE LTD,1002472,11/08/2020,3513888,900.00,0.00,People Services - Children & Young People,Travel and Food and Lodging and Entertai
Early Help & Children�s Safeguarding,Children's Safeguarding Services Locality 3/4,Non-Schools,HILBROKE HOUSE LTD,1002472,11/08/2020,3513887,525.00,0.00,People Services - Children & Young People,Travel and Food and Lodging and Entertai
Strategic Housing,Housing and Advice,City Development & Growth,HOSTING SYSTEMS LIMITED,697461,11/08/2020,3513929,606.65,0.00,Communities & Place,Personal and Domestic Services
Learning Disability Support,Community Support - Learning Disability Support,Community Support,HOUSING 21,1116470,11/08/2020,3513656,539.16,0.00,N/A,N/A
Learning Disability Support,Community Support - Learning Disability Support,Community Support,HOUSING 21,1116470,11/08/2020,3513499,"1,076.76",0.00,N/A,N/A
Mental Health Support,Community Support - Mental Health Support,Community Support,HOUSING 21,1116470,11/08/2020,3513500,"1,126.88",0.00,N/A,N/A
Physical Support,Community Support - Physical Support,Community Support,HOUSING 21,1116470,11/08/2020,3513338,"1,227.32",0.00,N/A,N/A
Physical Support,Community Support - Physical Support,Community Support,HOUSING 21,1116470,11/08/2020,3513337,769.58,0.00,N/A,N/A
Physical Support,Community Support - Physical Support,Community Support,HOUSING 21,1116470,11/08/2020,3513257,"1,288.12",0.00,N/A,N/A
Physical Support,Community Support - Physical Support,Community Support,HOUSING 21,1116470,11/08/2020,3513341,787.76,0.00,N/A,N/A
Physical Support,Community Support - Physical Support,Community Support,HOUSING 21,1116470,11/08/2020,3513733,"1,139.48",0.00,N/A,N/A
Physical Support,Community Support - Physical Support,Community Support,HOUSING 21,1116470,11/08/2020,3513498,986.52,0.00,N/A,N/A
Physical Support,Community Support - Physical Support,Community Support,HOUSING 21,1116470,11/08/2020,3513655,622.76,0.00,N/A,N/A
Physical Support,Community Support - Physical Support,Community Support,HOUSING 21,1116470,11/08/2020,3513182,"1,139.48",0.00,N/A,N/A
Physical Support,Community Support - Physical Support,Community Support,HOUSING 21,1116470,11/08/2020,3513181,988.92,0.00,N/A,N/A
Physical Support,Community Support - Physical Support,Community Support,HOUSING 21,1116470,11/08/2020,3513574,985.16,0.00,N/A,N/A
Physical Support,Community Support - Physical Support,Community Support,HOUSING 21,1116470,11/08/2020,3513418,801.80,0.00,N/A,N/A
Sensory Support,Community Support - Sensory Support,Community Support,HOUSING 21,1116470,11/08/2020,3513342,991.36,0.00,N/A,N/A
Sensory Support,Community Support - Sensory Support,Community Support,HOUSING 21,1116470,11/08/2020,3513734,"1,236.00",0.00,N/A,N/A
Support with Memory and Cognition,Community Support - Support with Memory and Cognition,Community Support,HOUSING 21,1116470,11/08/2020,3513735,572.16,0.00,N/A,N/A
Support with Memory and Cognition,Community Support - Support with Memory and Cognition,Community Support,HOUSING 21,1116470,11/08/2020,3513344,622.76,0.00,N/A,N/A
Learning Disability Support,Community Support - Learning Disability Support,Community Support,I CARE GB LTD,471255,11/08/2020,3513593,726.48,0.00,N/A,N/A
Learning Disability Support,Community Support - Learning Disability Support,Community Support,I CARE GB LTD,471255,11/08/2020,3513592,726.48,0.00,N/A,N/A
Mental Health Support,Community Support - Mental Health Support,Community Support,I CARE GB LTD,471255,11/08/2020,3513369,"1,020.00",0.00,N/A,N/A
Mental Health Support,Community Support - Mental Health Support,Community Support,I CARE GB LTD,471255,11/08/2020,3513284,"1,020.00",0.00,N/A,N/A
Mental Health Support,Mental Health - Mental Health Support,Mental Health,I CARE GB LTD,471255,11/08/2020,3513204,520.32,0.00,N/A,N/A
Physical Support,Community Support - Physical Support,Community Support,I CARE GB LTD,471255,11/08/2020,3513522,521.02,0.00,N/A,N/A
Physical Support,Community Support - Physical Support,Community Support,I CARE GB LTD,471255,11/08/2020,3513286,"1,127.29",0.00,N/A,N/A
Physical Support,Community Support - Physical Support,Community Support,I CARE GB LTD,471255,11/08/2020,3513676,"1,138.56",0.00,N/A,N/A
Physical Support,Community Support - Physical Support,Community Support,I CARE GB LTD,471255,11/08/2020,3513133,552.06,0.00,N/A,N/A
Physical Support,Community Support - Physical Support,Community Support,I CARE GB LTD,471255,11/08/2020,3513206,521.15,0.00,N/A,N/A
Physical Support,Community Support - Physical Support,Community Support,I CARE GB LTD,471255,11/08/2020,3513203,544.86,0.00,N/A,N/A
Physical Support,Community Support - Physical Support,Community Support,I CARE GB LTD,471255,11/08/2020,3513366,526.46,0.00,N/A,N/A
Physical Support,Community Support - Physical Support,Community Support,I CARE GB LTD,471255,11/08/2020,3513198,559.66,0.00,N/A,N/A
Social Care Activities,Home First - Social Care Activities,Home First,IMPERIAL,2285,11/08/2020,3511521,755.10,0.00,People Services - Adults and Health,Industrial Cleaning Services
Leisure,"Leisure - Management,Sales, Marketing & Catering","Leisure, Culture and Tourism",INSTITUTE OF SWIMMING,28949,11/08/2020,3513848,550.00,0.00,Communities & Place,Education and Training Services
Adults Health and Housing,Adults Health and Housing,Adults Health and Housing,J & K DEVELOPMENTS LTD,955472,11/08/2020,3514295,"5,000.00",0.00,REFCUS - Disabled Facilities Grant 96 Act,Building and Construction Machinery and
Adults Health and Housing,Adults Health and Housing,Adults Health and Housing,J & K DEVELOPMENTS LTD,955472,11/08/2020,3514294,"7,000.00",0.00,REFCUS - Disabled Facilities Grant 96 Act,Building and Construction Machinery and
Traffic & Transportation,Parking Services,Planning & Transportation,KINGS ARMOURED SECURITY SERVICES LIMITED,2618,11/08/2020,3512038,955.73,0.00,Communities & Place,National Defense and Public Order and Se
Economic Development,DEGF,City Development & Growth,LA PRIVE LOUNGE LTD,1376473,11/08/2020,3511902,"8,474.00",0.00,N/A,N/A
Digital Services & Customer Management,Digital Services,Digital Services & Customer Management,LANGLEY GATES AND RAILINGS LTD,188101,11/08/2020,3514086,"1,600.00",0.00,N/A,N/A
Property Design & Maintenance,Building - Repairs & Maintenance,Property,LDC HERITAGE RESTORATION,188103,11/08/2020,3514053,"1,350.00",0.00,N/A,N/A
Non Delegated Schools Budget,Non Delegated School Expenditure,Schools Block,LEARNERS TRUST,1123468,11/08/2020,3513953,728.31,0.00,N/A,N/A
"Waste, Street Cleansing & Fleet",Cleansing,Public Protection and Streetride,MAGFERN RECYCLING 2018 LTD,956474,11/08/2020,3512815,"5,180.58",0.00,Communities & Place,Environmental Services
Property Design & Maintenance,Building - Repairs & Maintenance,Property,MANOR ELECTRICAL SERVICES,1125481,11/08/2020,3514062,775.00,0.00,N/A,N/A
Traffic & Transportation,Network Mgmnt & Highway Dev Control,Planning & Transportation,MCCONNELLS (MIDLANDS) LTD,2917,11/08/2020,3513855,"11,051.28",0.00,Communities & Place,Editorial and Design and Graphic and Fin
Learning Disability Support,Community Support - Learning Disability Support,Community Support,MEDILINE HOME CARE LIMITED,1242472,11/08/2020,3513724,"1,736.92",0.00,N/A,N/A
Mental Health Support,Mental Health - Mental Health Support,Mental Health,MEDILINE HOME CARE LIMITED,1242472,11/08/2020,3513639,813.69,0.00,N/A,N/A
Physical Support,Community Support - Physical Support,Community Support,MEDILINE HOME CARE LIMITED,1242472,11/08/2020,3513695,"2,029.32",0.00,N/A,N/A
Physical Support,Community Support - Physical Support,Community Support,MEDILINE HOME CARE LIMITED,1242472,11/08/2020,3513694,"1,063.74",0.00,N/A,N/A
Physical Support,Community Support - Physical Support,Community Support,MEDILINE HOME CARE LIMITED,1242472,11/08/2020,3513226,"2,029.32",0.00,N/A,N/A
Physical Support,Community Support - Physical Support,Community Support,MEDILINE HOME CARE LIMITED,1242472,11/08/2020,3513382,"1,063.74",0.00,N/A,N/A
Physical Support,Community Support - Physical Support,Community Support,MEDILINE HOME CARE LIMITED,1242472,11/08/2020,3513475,622.76,0.00,N/A,N/A
Physical Support,Community Support - Physical Support,Community Support,MEDILINE HOME CARE LIMITED,1242472,11/08/2020,3513241,964.88,0.00,N/A,N/A
Physical Support,Community Support - Physical Support,Community Support,MEDILINE HOME CARE LIMITED,1242472,11/08/2020,3513552,"1,230.68",0.00,N/A,N/A
Physical Support,Community Support - Physical Support,Community Support,MEDILINE HOME CARE LIMITED,1242472,11/08/2020,3513551,"1,030.77",0.00,N/A,N/A
Physical Support,Community Support - Physical Support,Community Support,MEDILINE HOME CARE LIMITED,1242472,11/08/2020,3513550,942.08,0.00,N/A,N/A
Physical Support,Community Support - Physical Support,Community Support,MEDILINE HOME CARE LIMITED,1242472,11/08/2020,3513714,"1,508.44",0.00,N/A,N/A
Physical Support,Community Support - Physical Support,Community Support,MEDILINE HOME CARE LIMITED,1242472,11/08/2020,3513710,968.64,0.00,N/A,N/A
Physical Support,Community Support - Physical Support,Community Support,MEDILINE HOME CARE LIMITED,1242472,11/08/2020,3513321,"1,508.44",0.00,N/A,N/A
Physical Support,Community Support - Physical Support,Community Support,MEDILINE HOME CARE LIMITED,1242472,11/08/2020,3513315,"1,062.32",0.00,N/A,N/A
Physical Support,Community Support - Physical Support,Community Support,MEDILINE HOME CARE LIMITED,1242472,11/08/2020,3513314,"1,039.52",0.00,N/A,N/A
Physical Support,Community Support - Physical Support,Community Support,MEDILINE HOME CARE LIMITED,1242472,11/08/2020,3513313,622.76,0.00,N/A,N/A
Physical Support,Community Support - Physical Support,Community Support,MEDILINE HOME CARE LIMITED,1242472,11/08/2020,3513312,555.20,0.00,N/A,N/A
Physical Support,Community Support - Physical Support,Community Support,MEDILINE HOME CARE LIMITED,1242472,11/08/2020,3513470,"1,139.48",0.00,N/A,N/A
Physical Support,Community Support - Physical Support,Community Support,MEDILINE HOME CARE LIMITED,1242472,11/08/2020,3513469,"1,062.32",0.00,N/A,N/A
Physical Support,Community Support - Physical Support,Community Support,MEDILINE HOME CARE LIMITED,1242472,11/08/2020,3513468,823.92,0.00,N/A,N/A
Physical Support,Community Support - Physical Support,Community Support,MEDILINE HOME CARE LIMITED,1242472,11/08/2020,3513467,770.92,0.00,N/A,N/A
Physical Support,Community Support - Physical Support,Community Support,MEDILINE HOME CARE LIMITED,1242472,11/08/2020,3513466,698.52,0.00,N/A,N/A
Physical Support,Community Support - Physical Support,Community Support,MEDILINE HOME CARE LIMITED,1242472,11/08/2020,3513237,"1,030.77",0.00,N/A,N/A
Physical Support,Community Support - Physical Support,Community Support,MEDILINE HOME CARE LIMITED,1242472,11/08/2020,3513236,972.48,0.00,N/A,N/A
Physical Support,Community Support - Physical Support,Community Support,MEDILINE HOME CARE LIMITED,1242472,11/08/2020,3513235,864.92,0.00,N/A,N/A
Physical Support,Community Support - Physical Support,Community Support,MEDILINE HOME CARE LIMITED,1242472,11/08/2020,3513161,"1,395.16",0.00,N/A,N/A
Physical Support,Community Support - Physical Support,Community Support,MEDILINE HOME CARE LIMITED,1242472,11/08/2020,3513626,"1,238.52",0.00,N/A,N/A
Physical Support,Community Support - Physical Support,Community Support,MEDILINE HOME CARE LIMITED,1242472,11/08/2020,3513625,968.64,0.00,N/A,N/A
Physical Support,Community Support - Physical Support,Community Support,MEDILINE HOME CARE LIMITED,1242472,11/08/2020,3513157,"1,139.48",0.00,N/A,N/A
Physical Support,Community Support - Physical Support,Community Support,MEDILINE HOME CARE LIMITED,1242472,11/08/2020,3513156,"1,139.48",0.00,N/A,N/A
Physical Support,Community Support - Physical Support,Community Support,MEDILINE HOME CARE LIMITED,1242472,11/08/2020,3513155,"1,042.04",0.00,N/A,N/A
Physical Support,Community Support - Physical Support,Community Support,MEDILINE HOME CARE LIMITED,1242472,11/08/2020,3513154,698.52,0.00,N/A,N/A
Physical Support,Community Support - Physical Support,Community Support,MEDILINE HOME CARE LIMITED,1242472,11/08/2020,3513397,"1,161.36",0.00,N/A,N/A
Physical Support,Community Support - Physical Support,Community Support,MEDILINE HOME CARE LIMITED,1242472,11/08/2020,3513396,"1,066.08",0.00,N/A,N/A
Physical Support,Community Support - Physical Support,Community Support,MEDILINE HOME CARE LIMITED,1242472,11/08/2020,3513395,"1,066.08",0.00,N/A,N/A
Physical Support,Community Support - Physical Support,Community Support,MEDILINE HOME CARE LIMITED,1242472,11/08/2020,3513394,649.32,0.00,N/A,N/A
Physical Support,Community Support - Physical Support,Community Support,MEDILINE HOME CARE LIMITED,1242472,11/08/2020,3513393,504.60,0.00,N/A,N/A
Physical Support,Community Support - Physical Support,Community Support,MEDILINE HOME CARE LIMITED,1242472,11/08/2020,3513559,964.88,0.00,N/A,N/A
Physical Support,Community Support - Physical Support,Community Support,MEDILINE HOME CARE LIMITED,1242472,11/08/2020,3513723,"1,139.48",0.00,N/A,N/A
Physical Support,Community Support - Physical Support,Community Support,MEDILINE HOME CARE LIMITED,1242472,11/08/2020,3513722,"1,139.48",0.00,N/A,N/A
Physical Support,Community Support - Physical Support,Community Support,MEDILINE HOME CARE LIMITED,1242472,11/08/2020,3513721,"1,042.04",0.00,N/A,N/A
Physical Support,Community Support - Physical Support,Community Support,MEDILINE HOME CARE LIMITED,1242472,11/08/2020,3513327,"1,139.48",0.00,N/A,N/A
Physical Support,Community Support - Physical Support,Community Support,MEDILINE HOME CARE LIMITED,1242472,11/08/2020,3513322,"1,042.04",0.00,N/A,N/A
Physical Support,Community Support - Physical Support,Community Support,MEDILINE HOME CARE LIMITED,1242472,11/08/2020,3513716,699.92,0.00,N/A,N/A
Physical Support,Community Support - Physical Support,Community Support,MEDILINE HOME CARE LIMITED,1242472,11/08/2020,3513480,581.76,0.00,N/A,N/A
Physical Support,Community Support - Physical Support,Community Support,MEDILINE HOME CARE LIMITED,1242472,11/08/2020,3513479,581.76,0.00,N/A,N/A
Physical Support,Community Support - Physical Support,Community Support,MEDILINE HOME CARE LIMITED,1242472,11/08/2020,3513249,"1,133.24",0.00,N/A,N/A
Physical Support,Community Support - Physical Support,Community Support,MEDILINE HOME CARE LIMITED,1242472,11/08/2020,3513243,581.76,0.00,N/A,N/A
Physical Support,Community Support - Physical Support,Community Support,MEDILINE HOME CARE LIMITED,1242472,11/08/2020,3513637,"1,139.48",0.00,N/A,N/A
Physical Support,Community Support - Physical Support,Community Support,MEDILINE HOME CARE LIMITED,1242472,11/08/2020,3513636,"1,139.48",0.00,N/A,N/A
Physical Support,Community Support - Physical Support,Community Support,MEDILINE HOME CARE LIMITED,1242472,11/08/2020,3513172,"1,238.52",0.00,N/A,N/A
Physical Support,Community Support - Physical Support,Community Support,MEDILINE HOME CARE LIMITED,1242472,11/08/2020,3513171,"1,139.48",0.00,N/A,N/A
Physical Support,Community Support - Physical Support,Community Support,MEDILINE HOME CARE LIMITED,1242472,11/08/2020,3513170,"1,139.48",0.00,N/A,N/A
Physical Support,Community Support - Physical Support,Community Support,MEDILINE HOME CARE LIMITED,1242472,11/08/2020,3513163,746.76,0.00,N/A,N/A
Physical Support,Community Support - Physical Support,Community Support,MEDILINE HOME CARE LIMITED,1242472,11/08/2020,3513632,844.96,0.00,N/A,N/A
Physical Support,Community Support - Physical Support,Community Support,MEDILINE HOME CARE LIMITED,1242472,11/08/2020,3513631,530.80,0.00,N/A,N/A
Physical Support,Community Support - Physical Support,Community Support,MEDILINE HOME CARE LIMITED,1242472,11/08/2020,3513404,"1,238.52",0.00,N/A,N/A
Physical Support,Community Support - Physical Support,Community Support,MEDILINE HOME CARE LIMITED,1242472,11/08/2020,3513403,720.20,0.00,N/A,N/A
Physical Support,Community Support - Physical Support,Community Support,MEDILINE HOME CARE LIMITED,1242472,11/08/2020,3513562,"1,139.48",0.00,N/A,N/A
Physical Support,Community Support - Physical Support,Community Support,MEDILINE HOME CARE LIMITED,1242472,11/08/2020,3513534,"1,375.99",0.00,N/A,N/A
Physical Support,Community Support - Physical Support,Community Support,MEDILINE HOME CARE LIMITED,1242472,11/08/2020,3513533,"1,139.48",0.00,N/A,N/A
Physical Support,Community Support - Physical Support,Community Support,MEDILINE HOME CARE LIMITED,1242472,11/08/2020,3513700,"1,139.48",0.00,N/A,N/A
Physical Support,Community Support - Physical Support,Community Support,MEDILINE HOME CARE LIMITED,1242472,11/08/2020,3513699,874.84,0.00,N/A,N/A
Physical Support,Community Support - Physical Support,Community Support,MEDILINE HOME CARE LIMITED,1242472,11/08/2020,3513698,649.32,0.00,N/A,N/A
Physical Support,Community Support - Physical Support,Community Support,MEDILINE HOME CARE LIMITED,1242472,11/08/2020,3513144,"1,086.92",0.00,N/A,N/A
Physical Support,Community Support - Physical Support,Community Support,MEDILINE HOME CARE LIMITED,1242472,11/08/2020,3513383,"1,203.72",0.00,N/A,N/A
Sensory Support,Community Support - Sensory Support,Community Support,MEDILINE HOME CARE LIMITED,1242472,11/08/2020,3513329,"1,139.48",0.00,N/A,N/A
Sensory Support,Community Support - Sensory Support,Community Support,MEDILINE HOME CARE LIMITED,1242472,11/08/2020,3513638,"1,139.48",0.00,N/A,N/A
Support with Memory and Cognition,Community Support - Support with Memory and Cognition,Community Support,MEDILINE HOME CARE LIMITED,1242472,11/08/2020,3513173,572.16,0.00,N/A,N/A
Support with Memory and Cognition,Community Support - Support with Memory and Cognition,Community Support,MEDILINE HOME CARE LIMITED,1242472,11/08/2020,3513725,"1,012.16",0.00,N/A,N/A
Support with Memory and Cognition,Community Support - Support with Memory and Cognition,Community Support,MEDILINE HOME CARE LIMITED,1242472,11/08/2020,3513250,864.92,0.00,N/A,N/A
Support with Memory and Cognition,Community Support - Support with Memory and Cognition,Community Support,MEDILINE HOME CARE LIMITED,1242472,11/08/2020,3513405,"1,062.32",0.00,N/A,N/A
Property Design & Maintenance,Building - Repairs & Maintenance,Property,MIDLAND COUNTIES HEATING SERVICES,188123,11/08/2020,3514089,701.48,0.00,N/A,N/A
Property Design & Maintenance,Building - Repairs & Maintenance,Property,MIDLAND COUNTIES HEATING SERVICES,188123,11/08/2020,3514056,643.00,0.00,N/A,N/A
Property Design & Maintenance,Building - Repairs & Maintenance,Property,MIDLAND COUNTIES HEATING SERVICES,188123,11/08/2020,3514082,"2,643.75",0.00,N/A,N/A
Property Design & Maintenance,Building - Repairs & Maintenance,Property,MIDLAND COUNTIES HEATING SERVICES,188123,11/08/2020,3514061,824.22,0.00,N/A,N/A
Property Design & Maintenance,Building - Repairs & Maintenance,Property,MIDLAND COUNTIES HEATING SERVICES,188123,11/08/2020,3514050,848.00,0.00,N/A,N/A
Social Care Activities,Community Support - Social Care Activities,Community Support,NELSONS SOLICITORS,3574,11/08/2020,3513974,"2,302.39",0.00,People Services - Adults and Health,Management and Business Professionals an
Property Design & Maintenance,Building - Repairs & Maintenance,Property,NOVAR SYSTEMS LTD,188143,11/08/2020,3514095,734.00,0.00,N/A,N/A
Learning Disability Support,Community Support - Learning Disability Support,Community Support,OAKLANDS SUPPORT LIMITED,1056472,11/08/2020,3511996,"9,555.52",0.00,People Services - Adults and Health,Healthcare Services
Learning Disability Support,Community Support - Learning Disability Support,Community Support,OAKLANDS SUPPORT LIMITED,1056472,11/08/2020,3511993,"2,887.82",0.00,People Services - Adults and Health,Healthcare Services
Learning Disability Support,Community Support - Learning Disability Support,Community Support,OAKLANDS SUPPORT LIMITED,1056472,11/08/2020,3511992,"2,774.72",0.00,People Services - Adults and Health,Healthcare Services
Learning Disability Support,Community Support - Learning Disability Support,Community Support,OAKLANDS SUPPORT LIMITED,1056472,11/08/2020,3511992,"4,131.92",0.00,People Services - Adults and Health,Healthcare Services
Learning Disability Support,Community Support - Learning Disability Support,Community Support,OAKLANDS SUPPORT LIMITED,1056472,11/08/2020,3511480,"4,131.92",0.00,People Services - Adults and Health,Healthcare Services
Learning Disability Support,Transitions and Ordinary Lives - Learning Disability Support,Transitions and Ordinary Lives,OAKLANDS SUPPORT LIMITED,1056472,11/08/2020,3512003,"19,128.88",0.00,People Services - Adults and Health,Healthcare Services
Learning Disability Support,Transitions and Ordinary Lives - Learning Disability Support,Transitions and Ordinary Lives,OAKLANDS SUPPORT LIMITED,1056472,11/08/2020,3511476,"2,442.96",0.00,People Services - Adults and Health,Healthcare Services
Physical Support,Community Support - Physical Support,Community Support,OAKLANDS SUPPORT LIMITED,1056472,11/08/2020,3511989,"1,719.12",0.00,People Services - Adults and Health,Healthcare Services
Non Delegated Schools Budget,Non Delegated School Expenditure,Schools Block,ODYSSEY COLLABORATIVE TRUST,1082477,11/08/2020,3513951,"5,672.71",0.00,N/A,N/A
Non Delegated Schools Budget,Non Delegated School Expenditure,Schools Block,ODYSSEY COLLABORATIVE TRUST,1061483,11/08/2020,3513946,"7,212.67",0.00,N/A,N/A
Digital Services & Customer Management,Customer Management,Digital Services & Customer Management,PAYPOINT PAYMENT SERVICES LTD,1128473,11/08/2020,3514146,"3,252.64",0.00,N/A,N/A
Non Delegated Schools Budget,Non Delegated School Expenditure,Schools Block,PEAK MULTI ACADEMY TRUST,1285477,11/08/2020,3513961,"1,873.46",0.00,N/A,N/A
Non Delegated Schools Budget,Non Delegated School Expenditure,Schools Block,PEAK MULTI ACADEMY TRUST,1065485,11/08/2020,3513959,"6,714.15",0.00,N/A,N/A
Non Delegated Schools Budget,Non Delegated School Expenditure,Schools Block,PEAK MULTI ACADEMY TRUST,1285477,11/08/2020,3513958,"7,910.44",0.00,N/A,N/A
Learning Disability Support,Transitions and Ordinary Lives - Learning Disability Support,Transitions and Ordinary Lives,PHOENIX LEARNING AND CARE LIMITED,653451,11/08/2020,3512001,"8,678.60",0.00,People Services - Adults and Health,Education and Training Services
Learning Disability Support,Transitions and Ordinary Lives - Learning Disability Support,Transitions and Ordinary Lives,PHOENIX LEARNING AND CARE LIMITED,653451,11/08/2020,3512000,"8,678.60",0.00,People Services - Adults and Health,Education and Training Services
Learning Disability Support,Transitions and Ordinary Lives - Learning Disability Support,Transitions and Ordinary Lives,PHOENIX LEARNING AND CARE LIMITED,653451,11/08/2020,3511999,"8,678.60",0.00,People Services - Adults and Health,Education and Training Services
Learning Disability Support,Transitions and Ordinary Lives - Learning Disability Support,Transitions and Ordinary Lives,PHOENIX LEARNING AND CARE LIMITED,653451,11/08/2020,3511998,"8,678.60",0.00,People Services - Adults and Health,Education and Training Services
Learning Disability Support,Transitions and Ordinary Lives - Learning Disability Support,Transitions and Ordinary Lives,PHOENIX LEARNING AND CARE LIMITED,653451,11/08/2020,3511997,"8,678.60",0.00,People Services - Adults and Health,Education and Training Services
Parks & Healthy Living,Parks & Outdoor Recreation,"Leisure, Culture and Tourism",PHS GROUP PLC,3958,11/08/2020,3512895,759.05,0.00,Communities & Place,Cleaning Equipment and Supplies
Financial Services,Business Support,Financial Services,PITNEY BOWES LIMITED,927483,11/08/2020,3437663,"4,208.40",0.00,N/A,N/A
Property Design & Maintenance,Building - Repairs & Maintenance,Property,POOL SENTRY LTD,188402,11/08/2020,3514069,"1,457.50",0.00,N/A,N/A
Property Design & Maintenance,Building - Repairs & Maintenance,Property,POOL SENTRY LTD,188402,11/08/2020,3514068,"1,250.50",0.00,N/A,N/A
Adults Health and Housing,Adults Health and Housing,Adults Health and Housing,PRISM MEDICAL UK,899482,11/08/2020,3512981,"14,796.00",0.00,UPRN 10000H&B - Disability Adaptions,Medical Equipment and Accessories and Su
Physical Support,Community Support - Physical Support,Community Support,PROFAD CARE AGENCY LIMITED,1323505,11/08/2020,3513413,973.90,0.00,N/A,N/A
"Policy, Insight and Commuications","Policy, Insight and Commuications",Coroprate Core,PUBLIC PERSPECTIVES LTD,1275476,11/08/2020,3512811,"5,000.00",0.00,Corporate Resources,Management and Business Professionals an
Mental Health Support,Community Support - Mental Health Support,Community Support,QUALITY CARE SERVICES,388475,11/08/2020,3513711,"1,163.52",0.00,N/A,N/A
Mental Health Support,Community Support - Mental Health Support,Community Support,QUALITY CARE SERVICES,388475,11/08/2020,3513159,"1,528.32",0.00,N/A,N/A
Mental Health Support,Community Support - Mental Health Support,Community Support,QUALITY CARE SERVICES,388475,11/08/2020,3513399,810.56,0.00,N/A,N/A
Mental Health Support,Mental Health - Mental Health Support,Mental Health,QUALITY CARE SERVICES,388475,11/08/2020,3513158,860.68,0.00,N/A,N/A
Physical Support,Community Support - Physical Support,Community Support,QUALITY CARE SERVICES,388475,11/08/2020,3513548,"1,165.12",0.00,N/A,N/A
Physical Support,Community Support - Physical Support,Community Support,QUALITY CARE SERVICES,388475,11/08/2020,3513547,"1,165.12",0.00,N/A,N/A
Physical Support,Community Support - Physical Support,Community Support,QUALITY CARE SERVICES,388475,11/08/2020,3513546,"1,143.28",0.00,N/A,N/A
Physical Support,Community Support - Physical Support,Community Support,QUALITY CARE SERVICES,388475,11/08/2020,3513545,"1,033.36",0.00,N/A,N/A
Physical Support,Community Support - Physical Support,Community Support,QUALITY CARE SERVICES,388475,11/08/2020,3513544,"1,023.43",0.00,N/A,N/A
Physical Support,Community Support - Physical Support,Community Support,QUALITY CARE SERVICES,388475,11/08/2020,3513543,957.28,0.00,N/A,N/A
Physical Support,Community Support - Physical Support,Community Support,QUALITY CARE SERVICES,388475,11/08/2020,3513542,787.76,0.00,N/A,N/A
Physical Support,Community Support - Physical Support,Community Support,QUALITY CARE SERVICES,388475,11/08/2020,3513541,726.48,0.00,N/A,N/A
Physical Support,Community Support - Physical Support,Community Support,QUALITY CARE SERVICES,388475,11/08/2020,3513536,572.16,0.00,N/A,N/A
Physical Support,Community Support - Physical Support,Community Support,QUALITY CARE SERVICES,388475,11/08/2020,3513709,969.36,0.00,N/A,N/A
Physical Support,Community Support - Physical Support,Community Support,QUALITY CARE SERVICES,388475,11/08/2020,3513311,969.36,0.00,N/A,N/A
Physical Support,Community Support - Physical Support,Community Support,QUALITY CARE SERVICES,388475,11/08/2020,3513310,669.60,0.00,N/A,N/A
Physical Support,Community Support - Physical Support,Community Support,QUALITY CARE SERVICES,388475,11/08/2020,3513309,591.60,0.00,N/A,N/A
Physical Support,Community Support - Physical Support,Community Support,QUALITY CARE SERVICES,388475,11/08/2020,3513304,572.16,0.00,N/A,N/A
Physical Support,Community Support - Physical Support,Community Support,QUALITY CARE SERVICES,388475,11/08/2020,3513303,555.20,0.00,N/A,N/A
Physical Support,Community Support - Physical Support,Community Support,QUALITY CARE SERVICES,388475,11/08/2020,3513465,962.36,0.00,N/A,N/A
Physical Support,Community Support - Physical Support,Community Support,QUALITY CARE SERVICES,388475,11/08/2020,3513457,572.16,0.00,N/A,N/A
Physical Support,Community Support - Physical Support,Community Support,QUALITY CARE SERVICES,388475,11/08/2020,3513456,523.72,0.00,N/A,N/A
Physical Support,Community Support - Physical Support,Community Support,QUALITY CARE SERVICES,388475,11/08/2020,3513234,"1,143.28",0.00,N/A,N/A
Physical Support,Community Support - Physical Support,Community Support,QUALITY CARE SERVICES,388475,11/08/2020,3513233,983.84,0.00,N/A,N/A
Physical Support,Community Support - Physical Support,Community Support,QUALITY CARE SERVICES,388475,11/08/2020,3513232,968.22,0.00,N/A,N/A
Physical Support,Community Support - Physical Support,Community Support,QUALITY CARE SERVICES,388475,11/08/2020,3513623,"1,042.04",0.00,N/A,N/A
Physical Support,Community Support - Physical Support,Community Support,QUALITY CARE SERVICES,388475,11/08/2020,3513622,608.00,0.00,N/A,N/A
Physical Support,Community Support - Physical Support,Community Support,QUALITY CARE SERVICES,388475,11/08/2020,3513231,891.48,0.00,N/A,N/A
Physical Support,Community Support - Physical Support,Community Support,QUALITY CARE SERVICES,388475,11/08/2020,3513230,796.30,0.00,N/A,N/A
Physical Support,Community Support - Physical Support,Community Support,QUALITY CARE SERVICES,388475,11/08/2020,3513153,"1,185.08",0.00,N/A,N/A
Physical Support,Community Support - Physical Support,Community Support,QUALITY CARE SERVICES,388475,11/08/2020,3513152,814.32,0.00,N/A,N/A
Physical Support,Community Support - Physical Support,Community Support,QUALITY CARE SERVICES,388475,11/08/2020,3513149,531.32,0.00,N/A,N/A
Physical Support,Community Support - Physical Support,Community Support,QUALITY CARE SERVICES,388475,11/08/2020,3513392,987.76,0.00,N/A,N/A
Physical Support,Community Support - Physical Support,Community Support,QUALITY CARE SERVICES,388475,11/08/2020,3513391,962.36,0.00,N/A,N/A
Physical Support,Community Support - Physical Support,Community Support,QUALITY CARE SERVICES,388475,11/08/2020,3513390,891.48,0.00,N/A,N/A
Physical Support,Community Support - Physical Support,Community Support,QUALITY CARE SERVICES,388475,11/08/2020,3513389,672.12,0.00,N/A,N/A
Physical Support,Community Support - Physical Support,Community Support,QUALITY CARE SERVICES,388475,11/08/2020,3513388,572.16,0.00,N/A,N/A
Physical Support,Community Support - Physical Support,Community Support,QUALITY CARE SERVICES,388475,11/08/2020,3513385,555.20,0.00,N/A,N/A
Physical Support,Community Support - Physical Support,Community Support,QUALITY CARE SERVICES,388475,11/08/2020,3513610,874.69,0.00,N/A,N/A
Physical Support,Community Support - Physical Support,Community Support,QUALITY CARE SERVICES,388475,11/08/2020,3513692,"1,236.92",0.00,N/A,N/A
Physical Support,Community Support - Physical Support,Community Support,QUALITY CARE SERVICES,388475,11/08/2020,3513297,"1,236.92",0.00,N/A,N/A
Sensory Support,Community Support - Sensory Support,Community Support,QUALITY CARE SERVICES,388475,11/08/2020,3513240,"1,139.48",0.00,N/A,N/A
Sensory Support,Community Support - Sensory Support,Community Support,QUALITY CARE SERVICES,388475,11/08/2020,3513624,612.16,0.00,N/A,N/A
Support with Memory and Cognition,Community Support - Support with Memory and Cognition,Community Support,QUALITY CARE SERVICES,388475,11/08/2020,3513398,"1,066.08",0.00,N/A,N/A
Physical Support,Community Support - Physical Support,Community Support,QUALITY HOME CARE UK LTD,388476,11/08/2020,3513127,999.04,0.00,N/A,N/A
Physical Support,Community Support - Physical Support,Community Support,QUALITY HOME CARE UK LTD,388476,11/08/2020,3513585,"1,120.64",0.00,N/A,N/A
Adults Health and Housing,Adults Health and Housing,Adults Health and Housing,RAWSONS (DERBY),4417,11/08/2020,3512914,"4,781.81",0.00,REFCUS - Disabled Facilities Grant 96 Act,Furniture and Furnishings
Commissioning,Commissioned Providers,Non-Schools,REDACTED - PERSONAL DATA,473955,11/08/2020,3512147,"1,120.00",0.00,N/A,N/A
Commissioning,Commissioned Providers,Non-Schools,REDACTED - PERSONAL DATA,683467,11/08/2020,3512148,840.00,0.00,N/A,N/A
Commissioning,Commissioned Providers,Non-Schools,REDACTED - PERSONAL DATA,1161493,11/08/2020,3512149,560.00,0.00,N/A,N/A
Early Help & Children�s Safeguarding,Children's Safeguarding Services Locality 1/5,Non-Schools,REDACTED - PERSONAL DATA,425400,11/08/2020,3512260,614.05,0.00,N/A,N/A
Early Help & Children�s Safeguarding,Children's Safeguarding Services Locality 1/5,Non-Schools,REDACTED - PERSONAL DATA,1210469,11/08/2020,3512300,506.40,0.00,N/A,N/A
Early Help & Children�s Safeguarding,Children's Safeguarding Services Locality 1/5,Non-Schools,REDACTED - PERSONAL DATA,1300473,11/08/2020,3512612,634.48,0.00,N/A,N/A
Early Help & Children�s Safeguarding,Children's Safeguarding Services Locality 2,Non-Schools,REDACTED - PERSONAL DATA,1189470,11/08/2020,3511825,"1,670.00",0.00,N/A,N/A
Integrated Services,Children In Care,Non-Schools,REDACTED - PERSONAL DATA,1380479,11/08/2020,3514165,"1,000.00",0.00,N/A,N/A
Integrated Services,Children In Care,Non-Schools,REDACTED - PERSONAL DATA,1279470,11/08/2020,3512523,836.54,0.00,N/A,N/A
Integrated Services,Children In Care,Non-Schools,REDACTED - PERSONAL DATA,1349495,11/08/2020,3514158,608.00,0.00,N/A,N/A
Integrated Services,Fostering,Non-Schools,REDACTED - PERSONAL DATA,1344472,11/08/2020,3514161,"1,000.00",0.00,N/A,N/A
Integrated Services,Fostering,Non-Schools,REDACTED - PERSONAL DATA,1339491,11/08/2020,3514162,"1,000.00",0.00,N/A,N/A
Integrated Services,Fostering,Non-Schools,REDACTED - PERSONAL DATA,1379471,11/08/2020,3514168,"1,000.00",0.00,N/A,N/A
Integrated Services,Fostering,Non-Schools,REDACTED - PERSONAL DATA,1349498,11/08/2020,3514160,"1,000.00",0.00,N/A,N/A
Integrated Services,Fostering,Non-Schools,REDACTED - PERSONAL DATA,1344477,11/08/2020,3514157,"1,000.00",0.00,N/A,N/A
Physical Support,Community Support - Physical Support,Community Support,REDACTED - PERSONAL DATA,1377473,11/08/2020,3511598,"1,020.00",0.00,N/A,N/A
Physical Support,Community Support - Physical Support,Community Support,REDACTED - PERSONAL DATA,1379473,11/08/2020,3512923,"3,003.04",0.00,N/A,N/A
Senior Management,Senior Management,Senior Management,REDACTED - PERSONAL DATA,1071474,11/08/2020,3509139,600.00,0.00,People Services - Adults and Health,Management and Business Professionals an
Shared Lives,Community Support - Shared Lives,Community Support,REDACTED - PERSONAL DATA,496494,11/08/2020,3513752,603.48,0.00,N/A,N/A
Traffic & Transportation,Traffic and Transport other,Planning & Transportation,REDACTED - PERSONAL DATA,268421,11/08/2020,3513071,"1,703.00",0.00,N/A,N/A
Traffic & Transportation,Traffic and Transport other,Planning & Transportation,REDACTED - PERSONAL DATA,407411,11/08/2020,3513113,"1,020.20",0.00,N/A,N/A
Traffic & Transportation,Traffic and Transport other,Planning & Transportation,REDACTED - PERSONAL DATA,113035,11/08/2020,3513033,615.60,0.00,N/A,N/A
Traffic & Transportation,Traffic and Transport other,Planning & Transportation,REDACTED - PERSONAL DATA,1223476,11/08/2020,3513117,"1,513.80",0.00,N/A,N/A
Traffic & Transportation,Traffic and Transport other,Planning & Transportation,REDACTED - PERSONAL DATA,1223476,11/08/2020,3513075,942.58,0.00,N/A,N/A
Traffic & Transportation,Traffic and Transport other,Planning & Transportation,REDACTED - PERSONAL DATA,1006469,11/08/2020,3513096,"1,324.80",0.00,N/A,N/A
Traffic & Transportation,Traffic and Transport other,Planning & Transportation,REDACTED - PERSONAL DATA,113016,11/08/2020,3513106,781.20,0.00,N/A,N/A
Traffic & Transportation,Traffic and Transport other,Planning & Transportation,REDACTED - PERSONAL DATA,113031,11/08/2020,3513059,"1,525.79",0.00,N/A,N/A
Traffic & Transportation,Traffic and Transport other,Planning & Transportation,REDACTED - PERSONAL DATA,113031,11/08/2020,3513028,793.40,0.00,N/A,N/A
Traffic & Transportation,Traffic and Transport other,Planning & Transportation,REDACTED - PERSONAL DATA,143381,11/08/2020,3513041,"1,707.55",0.00,N/A,N/A
Traffic & Transportation,Traffic and Transport other,Planning & Transportation,REDACTED - PERSONAL DATA,930468,11/08/2020,3513094,520.65,0.00,N/A,N/A
Traffic & Transportation,Traffic and Transport other,Planning & Transportation,REDACTED - PERSONAL DATA,1283476,11/08/2020,3513076,559.00,0.00,N/A,N/A
Traffic & Transportation,Traffic and Transport other,Planning & Transportation,REDACTED - PERSONAL DATA,113041,11/08/2020,3513107,756.60,0.00,N/A,N/A
Traffic & Transportation,Traffic and Transport other,Planning & Transportation,REDACTED - PERSONAL DATA,113060,11/08/2020,3513010,"1,504.23",0.00,N/A,N/A
Traffic & Transportation,Traffic and Transport other,Planning & Transportation,REDACTED - PERSONAL DATA,266415,11/08/2020,3513119,923.00,0.00,N/A,N/A
Traffic & Transportation,Traffic and Transport other,Planning & Transportation,REDACTED - PERSONAL DATA,266415,11/08/2020,3513111,757.35,0.00,N/A,N/A
Traffic & Transportation,Traffic and Transport other,Planning & Transportation,REDACTED - PERSONAL DATA,266415,11/08/2020,3513095,759.50,0.00,N/A,N/A
Traffic & Transportation,Traffic and Transport other,Planning & Transportation,REDACTED - PERSONAL DATA,266415,11/08/2020,3513093,"1,636.74",0.00,N/A,N/A
Traffic & Transportation,Traffic and Transport other,Planning & Transportation,REDACTED - PERSONAL DATA,266415,11/08/2020,3513091,"1,075.50",0.00,N/A,N/A
Traffic & Transportation,Traffic and Transport other,Planning & Transportation,REDACTED - PERSONAL DATA,266415,11/08/2020,3513087,"1,440.75",0.00,N/A,N/A
Traffic & Transportation,Traffic and Transport other,Planning & Transportation,REDACTED - PERSONAL DATA,266415,11/08/2020,3513032,"3,210.00",0.00,N/A,N/A
Traffic & Transportation,Traffic and Transport other,Planning & Transportation,REDACTED - PERSONAL DATA,266415,11/08/2020,3513021,"1,069.20",0.00,N/A,N/A
Traffic & Transportation,Traffic and Transport other,Planning & Transportation,REDACTED - PERSONAL DATA,266415,11/08/2020,3513011,"1,853.35",0.00,N/A,N/A
Traffic & Transportation,Traffic and Transport other,Planning & Transportation,REDACTED - PERSONAL DATA,266415,11/08/2020,3513007,"1,352.94",0.00,N/A,N/A
Traffic & Transportation,Traffic and Transport other,Planning & Transportation,REDACTED - PERSONAL DATA,266415,11/08/2020,3512987,"1,883.70",0.00,N/A,N/A
Traffic & Transportation,Traffic and Transport other,Planning & Transportation,REDACTED - PERSONAL DATA,266415,11/08/2020,3513078,981.55,0.00,N/A,N/A
Traffic & Transportation,Traffic and Transport other,Planning & Transportation,REDACTED - PERSONAL DATA,385431,11/08/2020,3512984,"2,454.90",0.00,N/A,N/A
Traffic & Transportation,Traffic and Transport other,Planning & Transportation,REDACTED - PERSONAL DATA,1202483,11/08/2020,3513045,767.00,0.00,N/A,N/A
Traffic & Transportation,Traffic and Transport other,Planning & Transportation,REDACTED - PERSONAL DATA,221423,11/08/2020,3513042,721.50,0.00,N/A,N/A
Traffic & Transportation,Traffic and Transport other,Planning & Transportation,REDACTED - PERSONAL DATA,113034,11/08/2020,3513102,"2,085.30",0.00,N/A,N/A
Traffic & Transportation,Traffic and Transport other,Planning & Transportation,REDACTED - PERSONAL DATA,113034,11/08/2020,3513051,"2,548.04",0.00,N/A,N/A
Traffic & Transportation,Traffic and Transport other,Planning & Transportation,REDACTED - PERSONAL DATA,1058485,11/08/2020,3512986,"2,685.00",0.00,N/A,N/A
Traffic & Transportation,Traffic and Transport other,Planning & Transportation,REDACTED - PERSONAL DATA,113056,11/08/2020,3513115,595.95,0.00,N/A,N/A
Traffic & Transportation,Traffic and Transport other,Planning & Transportation,REDACTED - PERSONAL DATA,113056,11/08/2020,3513037,"1,872.66",0.00,N/A,N/A
Traffic & Transportation,Traffic and Transport other,Planning & Transportation,REDACTED - PERSONAL DATA,112981,11/08/2020,3512988,854.48,0.00,N/A,N/A
Traffic & Transportation,Traffic and Transport other,Planning & Transportation,REDACTED - PERSONAL DATA,400427,11/08/2020,3513069,567.00,0.00,N/A,N/A
Traffic & Transportation,Traffic and Transport other,Planning & Transportation,REDACTED - PERSONAL DATA,113088,11/08/2020,3513055,"1,398.70",0.00,N/A,N/A
Traffic & Transportation,Traffic and Transport other,Planning & Transportation,REDACTED - PERSONAL DATA,113088,11/08/2020,3513030,"1,292.20",0.00,N/A,N/A
Traffic & Transportation,Traffic and Transport other,Planning & Transportation,REDACTED - PERSONAL DATA,1353473,11/08/2020,3513060,"1,449.00",0.00,N/A,N/A
Traffic & Transportation,Traffic and Transport other,Planning & Transportation,REDACTED - PERSONAL DATA,904480,11/08/2020,3513044,"1,428.00",0.00,N/A,N/A
Traffic & Transportation,Traffic and Transport other,Planning & Transportation,REDACTED - PERSONAL DATA,914471,11/08/2020,3513012,873.18,0.00,N/A,N/A
Traffic & Transportation,Traffic and Transport other,Planning & Transportation,REDACTED - PERSONAL DATA,1145475,11/08/2020,3512990,686.35,0.00,N/A,N/A
Traffic & Transportation,Traffic and Transport other,Planning & Transportation,REDACTED - PERSONAL DATA,118398,11/08/2020,3513114,"2,783.00",0.00,N/A,N/A
Traffic & Transportation,Traffic and Transport other,Planning & Transportation,REDACTED - PERSONAL DATA,118398,11/08/2020,3513103,"1,381.59",0.00,N/A,N/A
Traffic & Transportation,Traffic and Transport other,Planning & Transportation,REDACTED - PERSONAL DATA,118398,11/08/2020,3513081,734.76,0.00,N/A,N/A
Traffic & Transportation,Traffic and Transport other,Planning & Transportation,REDACTED - PERSONAL DATA,118398,11/08/2020,3513066,529.21,0.00,N/A,N/A
Traffic & Transportation,Traffic and Transport other,Planning & Transportation,REDACTED - PERSONAL DATA,118398,11/08/2020,3513054,"1,475.14",0.00,N/A,N/A
Traffic & Transportation,Traffic and Transport other,Planning & Transportation,REDACTED - PERSONAL DATA,118398,11/08/2020,3513014,"1,053.00",0.00,N/A,N/A
Traffic & Transportation,Traffic and Transport other,Planning & Transportation,REDACTED - PERSONAL DATA,118398,11/08/2020,3513008,"3,309.73",0.00,N/A,N/A
Traffic & Transportation,Traffic and Transport other,Planning & Transportation,REDACTED - PERSONAL DATA,118398,11/08/2020,3513002,"1,189.62",0.00,N/A,N/A
Traffic & Transportation,Traffic and Transport other,Planning & Transportation,REDACTED - PERSONAL DATA,118398,11/08/2020,3512997,"1,592.46",0.00,N/A,N/A
Traffic & Transportation,Traffic and Transport other,Planning & Transportation,REDACTED - PERSONAL DATA,424412,11/08/2020,3513089,629.30,0.00,N/A,N/A
Traffic & Transportation,Traffic and Transport other,Planning & Transportation,REDACTED - PERSONAL DATA,715463,11/08/2020,3512996,656.42,0.00,N/A,N/A
Traffic & Transportation,Traffic and Transport other,Planning & Transportation,REDACTED - PERSONAL DATA,1202478,11/08/2020,3513100,589.05,0.00,N/A,N/A
Traffic & Transportation,Traffic and Transport other,Planning & Transportation,REDACTED - PERSONAL DATA,872443,11/08/2020,3513004,558.90,0.00,N/A,N/A
Traffic & Transportation,Traffic and Transport other,Planning & Transportation,REDACTED - PERSONAL DATA,113004,11/08/2020,3513003,710.74,0.00,N/A,N/A
Traffic & Transportation,Traffic and Transport other,Planning & Transportation,REDACTED - PERSONAL DATA,113032,11/08/2020,3513056,704.70,0.00,N/A,N/A
Traffic & Transportation,Traffic and Transport other,Planning & Transportation,REDACTED - PERSONAL DATA,113032,11/08/2020,3513016,567.00,0.00,N/A,N/A
Traffic & Transportation,Traffic and Transport other,Planning & Transportation,REDACTED - PERSONAL DATA,1265484,11/08/2020,3513022,702.00,0.00,N/A,N/A
Traffic & Transportation,Traffic and Transport other,Planning & Transportation,REDACTED - PERSONAL DATA,113014,11/08/2020,3513034,"1,503.50",0.00,N/A,N/A
Traffic & Transportation,Traffic and Transport other,Planning & Transportation,REDACTED - PERSONAL DATA,113027,11/08/2020,3513105,"1,286.05",0.00,N/A,N/A
Traffic & Transportation,Traffic and Transport other,Planning & Transportation,REDACTED - PERSONAL DATA,185532,11/08/2020,3513112,"2,895.40",0.00,N/A,N/A
Traffic & Transportation,Traffic and Transport other,Planning & Transportation,REDACTED - PERSONAL DATA,969477,11/08/2020,3513090,814.61,0.00,N/A,N/A
Traffic & Transportation,Traffic and Transport other,Planning & Transportation,REDACTED - PERSONAL DATA,969477,11/08/2020,3513070,"1,104.00",0.00,N/A,N/A
Emergency Planning,Emergency Planning,Commissioning,RETHINK MENTAL ILLNESS,390396,11/08/2020,3513976,"7,998.71",0.00,People Services - Adults and Health,Education and Training Services
Emergency Planning,Emergency Planning,Commissioning,RICHMOND FELLOWSHIP,1345468,11/08/2020,3514040,"7,498.79",0.00,N/A,N/A
Mental Health Support,Mental Health - Mental Health Support,Mental Health,ROSE MOUNT SUPPORTED LIVING LTD,470867,11/08/2020,3511991,"1,299.96",0.00,People Services - Adults and Health,Politics and Civic Affairs Services
Emergency Planning,Emergency Planning,Commissioning,ROSECARE HOMES LTD,4184,11/08/2020,3513982,"18,497.02",0.00,N/A,N/A
Public Health,Drugs and Alcohol,Public Health,ROSEHILL PHARMACY LTD,187661,11/08/2020,3512943,"1,972.35",0.00,N/A,N/A
Economic Development,Connect Project,City Development & Growth,S S SYSTEMS LTD,188339,11/08/2020,3514060,"1,608.34",0.00,N/A,N/A
Property Design & Maintenance,Building - Repairs & Maintenance,Property,S S SYSTEMS LTD,188339,11/08/2020,3514080,842.64,0.00,N/A,N/A
Property Design & Maintenance,Building - Repairs & Maintenance,Property,S S SYSTEMS LTD,188339,11/08/2020,3514065,604.25,0.00,N/A,N/A
Property Design & Maintenance,Building - Repairs & Maintenance,Property,S S SYSTEMS LTD,188339,11/08/2020,3514058,705.91,0.00,N/A,N/A
Adults Health and Housing,Adults Health and Housing,Adults Health and Housing,SAFESPACES CORNHOLME LTD,238464,11/08/2020,3480100,"1,198.00",0.00,REFCUS - Disabled Facilities Grant 96 Act,Healthcare Services
Children and Young People,Children and Young People,Children and Young People,SEDDON CONSTRUCTION LTD,912470,11/08/2020,3514079,"56,009.90",0.00,N/A,N/A
Parks & Healthy Living,Parks & Outdoor Recreation,"Leisure, Culture and Tourism",SOLOPROTECT LIMITED,408404,11/08/2020,3509069,"1,161.60",0.00,Communities & Place,Politics and Civic Affairs Services
Integrated Services,Integrated Disabled Children's Service,Non-Schools,SOUTHERN DERBYSHIRE LIFT PROJECT COMPANY (NO 1) LTD,1049485,11/08/2020,3512100,"37,507.94",0.00,People Services - Children & Young People,Healthcare Services
Integrated Services,Integrated Disabled Children's Service,Non-Schools,SOUTHERN DERBYSHIRE LIFT PROJECT COMPANY (NO 1) LTD,1049485,11/08/2020,3512100,"2,944.00",0.00,People Services - Children & Young People,Healthcare Services
Human Resources and Organisational Development,Human Resources,Human Resources and Organisational Development,SPACEHOUSE LTD,474162,11/08/2020,3511855,"1,250.00",0.00,Corporate Resources,Editorial and Design and Graphic and Fin
Learning Disability Support,Community Support - Learning Disability Support,Community Support,ST JAMES CENTRE,801445,11/08/2020,3513263,"1,062.60",0.00,N/A,N/A
Learning Disability Support,Community Support - Learning Disability Support,Community Support,ST JAMES CENTRE,801445,11/08/2020,3513183,"1,062.60",0.00,N/A,N/A
Learning Disability Support,Transitions and Ordinary Lives - Learning Disability Support,Transitions and Ordinary Lives,ST JAMES CENTRE,801445,11/08/2020,3513184,637.56,0.00,N/A,N/A
Learning Disability Support,Transitions and Ordinary Lives - Learning Disability Support,Transitions and Ordinary Lives,ST JAMES CENTRE,801445,11/08/2020,3513501,680.06,0.00,N/A,N/A
Emergency Planning,Emergency Planning,Commissioning,STANLEY HOUSE,1337473,11/08/2020,3513983,"20,996.62",0.00,N/A,N/A
Social Care Activities,Home First - Social Care Activities,Home First,STANNAH LIFT SERVICES LTD,4627,11/08/2020,3513123,"1,222.98",0.00,People Services - Adults and Health,Medical Equipment and Accessories and Su
"Highways, Gounds Maintenance and Flood Defence",Grounds Maintenance,Public Protection and Streetride,STATON YOUNG ANGLESEY,269406,11/08/2020,3504567,775.00,0.00,N/A,N/A
"Highways, Gounds Maintenance and Flood Defence","Highways Maintenance, Street Lighting and Flood Defence",Public Protection and Streetride,SUNBELT RENTALS LIMITED,1329482,11/08/2020,3512795,"1,395.88",0.00,Communities & Place,Building and Construction Machinery and
"Highways, Gounds Maintenance and Flood Defence","Highways Maintenance, Street Lighting and Flood Defence",Public Protection and Streetride,SUNBELT RENTALS LIMITED,1329482,11/08/2020,3512807,"1,017.00",0.00,Communities & Place,Building and Construction Machinery and
Traffic & Transportation,Traffic and Transport other,Planning & Transportation,SWIFT CABS MIDLANDS LTD,113024,11/08/2020,3513108,997.35,0.00,N/A,N/A
Traffic & Transportation,Traffic and Transport other,Planning & Transportation,SWIFT CABS MIDLANDS LTD,113024,11/08/2020,3513068,"3,483.00",0.00,N/A,N/A
Traffic & Transportation,Traffic and Transport other,Planning & Transportation,SWIFT CABS MIDLANDS LTD,113024,11/08/2020,3513057,732.00,0.00,N/A,N/A
Traffic & Transportation,Traffic and Transport other,Planning & Transportation,SWIFT CABS MIDLANDS LTD,113024,11/08/2020,3513052,"5,883.00",0.00,N/A,N/A
Traffic & Transportation,Traffic and Transport other,Planning & Transportation,SWIFT CABS MIDLANDS LTD,113024,11/08/2020,3513027,"2,664.00",0.00,N/A,N/A
Traffic & Transportation,Traffic and Transport other,Planning & Transportation,SWIFT CABS MIDLANDS LTD,113024,11/08/2020,3513026,"1,012.50",0.00,N/A,N/A
Traffic & Transportation,Traffic and Transport other,Planning & Transportation,SWIFT CABS MIDLANDS LTD,113024,11/08/2020,3512985,"2,338.20",0.00,N/A,N/A
Non Delegated Schools Budget,Non Delegated School Expenditure,Schools Block,THE CITY OF DERBY ACADEMY,170473,11/08/2020,3513962,"21,888.71",0.00,N/A,N/A
Emergency Planning,Emergency Planning,Commissioning,THE GABLES,5152,11/08/2020,3513975,"13,997.75",0.00,N/A,N/A
Non Delegated Schools Budget,Non Delegated School Expenditure,Schools Block,THE HARMONY TRUST LTD,874448,11/08/2020,3513955,"3,496.81",0.00,N/A,N/A
Non Delegated Schools Budget,Non Delegated School Expenditure,Schools Block,THE HARMONY TRUST LTD,1108478,11/08/2020,3513954,"28,641.99",0.00,N/A,N/A
Non Delegated Schools Budget,Non Delegated School Expenditure,Schools Block,THE HARMONY TRUST LTD,874450,11/08/2020,3513944,"7,052.11",0.00,N/A,N/A
Social Care Activities,Mental Health - Social Care Activities,Mental Health,THE OT PRACTICE LTD,872457,11/08/2020,3513917,"16,875.00",0.00,People Services - Adults and Health,Education and Training Services
Non Delegated Schools Budget,Non Delegated School Expenditure,Schools Block,THE SPENCER ACADEMIES TRUST,942472,11/08/2020,3513945,"5,564.54",0.00,People Services - Children & Young People,Education and Training Services
Neighbourhoods,Neighbourhoods,Neighbourhoods,THOMAS BOW LTD,40570,11/08/2020,3513878,"202,146.73",0.00,UPRN 10110 - Asset Management - Highways Maintenance,Building and Construction and Maintenanc-Building construction and support and ma
Traffic & Transportation,Traffic and Transport other,Planning & Transportation,TONYS TRAVEL,113007,11/08/2020,3513086,"1,550.00",0.00,N/A,N/A
Traffic & Transportation,Traffic and Transport other,Planning & Transportation,TONYS TRAVEL,113007,11/08/2020,3513053,"1,890.00",0.00,N/A,N/A
Non Delegated Schools Budget,Non Delegated School Expenditure,Schools Block,TRANSFORM TRUST,1149489,11/08/2020,3513941,"17,211.85",0.00,N/A,N/A
Traffic & Transportation,Traffic and Transport other,Planning & Transportation,TRENTBARTON,113006,11/08/2020,3513062,"7,313.24",0.00,N/A,N/A
Economic Development,DEGF,City Development & Growth,UMI COMMERCIAL LIMITED,1096486,11/08/2020,3512101,"1,200.00",0.00,Communities & Place,Management and Business Professionals an
Economic Development,DEGF,City Development & Growth,UMI COMMERCIAL LIMITED,1096486,11/08/2020,3512784,"1,134.00",0.00,Communities & Place,Management and Business Professionals an
Learning Disability Support,Community Support - Learning Disability Support,Community Support,UNITED RESPONSE,1232483,11/08/2020,3513278,"2,872.72",0.00,N/A,N/A
Learning Disability Support,Transitions and Ordinary Lives - Learning Disability Support,Transitions and Ordinary Lives,UNITED RESPONSE,1232483,11/08/2020,3513512,"5,323.52",0.00,N/A,N/A
Learning Disability Support,Transitions and Ordinary Lives - Learning Disability Support,Transitions and Ordinary Lives,UNITED RESPONSE,1232483,11/08/2020,3513280,"8,724.32",0.00,N/A,N/A
Learning Disability Support,Transitions and Ordinary Lives - Learning Disability Support,Transitions and Ordinary Lives,UNITED RESPONSE,1232483,11/08/2020,3513279,"7,452.12",0.00,N/A,N/A
Learning Disability Support,Transitions and Ordinary Lives - Learning Disability Support,Transitions and Ordinary Lives,UNITED RESPONSE,1232483,11/08/2020,3513669,"12,966.96",0.00,N/A,N/A
Learning Disability Support,Transitions and Ordinary Lives - Learning Disability Support,Transitions and Ordinary Lives,UNITED RESPONSE,1232483,11/08/2020,3513668,"4,377.40",0.00,N/A,N/A
Learning Disability Support,Transitions and Ordinary Lives - Learning Disability Support,Transitions and Ordinary Lives,UNITED RESPONSE,1232483,11/08/2020,3513435,"10,038.96",0.00,N/A,N/A
Learning Disability Support,Transitions and Ordinary Lives - Learning Disability Support,Transitions and Ordinary Lives,UNITED RESPONSE,1232483,11/08/2020,3513434,"5,107.40",0.00,N/A,N/A
Learning Disability Support,Transitions and Ordinary Lives - Learning Disability Support,Transitions and Ordinary Lives,UNITED RESPONSE,1232483,11/08/2020,3513589,"8,724.32",0.00,N/A,N/A
Learning Disability Support,Transitions and Ordinary Lives - Learning Disability Support,Transitions and Ordinary Lives,UNITED RESPONSE,1232483,11/08/2020,3513588,"7,452.20",0.00,N/A,N/A
Learning Disability Support,Transitions and Ordinary Lives - Learning Disability Support,Transitions and Ordinary Lives,UNITED RESPONSE,1232483,11/08/2020,3513587,"5,107.40",0.00,N/A,N/A
Learning Disability Support,Transitions and Ordinary Lives - Learning Disability Support,Transitions and Ordinary Lives,UNITED RESPONSE,1232483,11/08/2020,3513586,"5,107.40",0.00,N/A,N/A
Learning Disability Support,Transitions and Ordinary Lives - Learning Disability Support,Transitions and Ordinary Lives,UNITED RESPONSE,1232483,11/08/2020,3513193,"7,529.20",0.00,N/A,N/A
Learning Disability Support,Transitions and Ordinary Lives - Learning Disability Support,Transitions and Ordinary Lives,UNITED RESPONSE,1232483,11/08/2020,3513192,"6,081.64",0.00,N/A,N/A
Physical Support,Community Support - Physical Support,Community Support,UP24 SEVEN SERVICES LTD,1166483,11/08/2020,3513613,951.69,0.00,N/A,N/A
Physical Support,Community Support - Physical Support,Community Support,UP24 SEVEN SERVICES LTD,1166483,11/08/2020,3513381,906.09,0.00,N/A,N/A
Traffic & Transportation,Traffic and Transport other,Planning & Transportation,VILLAGE CARS,1166477,11/08/2020,3513043,"1,318.90",0.00,N/A,N/A
Traffic & Transportation,Traffic and Transport other,Planning & Transportation,VILLAGE CARS,1166477,11/08/2020,3512989,558.90,0.00,N/A,N/A
Emergency Planning,Emergency Planning,Commissioning,VINEGAR HOUSE,1333473,11/08/2020,3514144,"6,498.95",0.00,N/A,N/A
"Waste, Street Cleansing & Fleet",Stores Road Depot & Fleet Management,Public Protection and Streetride,WASTE PARTS UK LTD,146378,11/08/2020,3512007,790.00,0.00,Communities & Place,Commercial and Military and Private Vehi
Public Health,Drugs and Alcohol,Public Health,WELFARE PHARMACY,194497,11/08/2020,3513759,"2,500.00",0.00,N/A,N/A
Public Health,Drugs and Alcohol,Public Health,WELFARE PHARMACY,194498,11/08/2020,3512945,"1,090.26",0.00,N/A,N/A
Traffic & Transportation,Traffic and Transport other,Planning & Transportation,WESTERN CARS CO,1062473,11/08/2020,3513083,778.25,0.00,N/A,N/A
Traffic & Transportation,Traffic and Transport other,Planning & Transportation,WESTERN CARS CO,1062473,11/08/2020,3513024,760.45,0.00,N/A,N/A
"Highways, Gounds Maintenance and Flood Defence","Highways Maintenance, Street Lighting and Flood Defence",Public Protection and Streetride,WILSON AND SCOTT HIGHWAYS LIMITED,909474,11/08/2020,3512785,"6,501.56",0.00,Communities & Place,Environmental Services
Public Health,Sexual Health,Public Health,WILSON STREET SURGERY,254482,11/08/2020,3512958,698.70,0.00,N/A,N/A
Early Help & Children�s Safeguarding,Early Help Services Locality 2,Non-Schools,YORKSHIRE ADOPTION AGENCY LTD,1348473,11/08/2020,3488463,"4,950.00",0.00,N/A,N/A
Adults Health and Housing,Adults Health and Housing,Adults Health and Housing,A M PROPERTY SERVICES LTD,121,13/08/2020,3514500,725.00,0.00,REFCUS - Healthy Housing Assistance,Building and Construction and Maintenanc
Regeneration and Major Projects,Markets,City Development & Growth,A R TENNANT LTD,905493,13/08/2020,3512864,525.00,0.00,Communities & Place,Mineral and Textile and Inedible Plant a
Property Design & Maintenance,Building - Repairs & Maintenance,Property,ABBEY GLASS DERBY LTD,187834,13/08/2020,3514719,760.00,0.00,N/A,N/A
Non Delegated Schools Budget,Non Delegated School Expenditure,Schools Block,ACE NURSERY,553444,13/08/2020,3514788,800.00,0.00,N/A,N/A
Early Help & Children�s Safeguarding,Children's Safeguarding Services Locality 3/4,Non-Schools,ADFAN LIMITED,470777,13/08/2020,3515065,"1,120.00",0.00,People Services - Children & Young People,Travel and Food and Lodging and Entertai
Early Help & Children�s Safeguarding,Children's Safeguarding Services Locality 3/4,Non-Schools,ADFAN LIMITED,470777,13/08/2020,3515064,"1,120.00",0.00,People Services - Children & Young People,Travel and Food and Lodging and Entertai
Early Help & Children�s Safeguarding,Children's Safeguarding Services Locality 2,Non-Schools,ADVANCED CHILD CARE ASSESSMENTS LTD,1280477,13/08/2020,3514233,"1,764.90",0.00,People Services - Children & Young People,Management and Business Professionals an
Non Delegated Schools Budget,Non Delegated School Expenditure,Schools Block,ALVASTON ACHIEVERS DAY NURSERY LIMITED,937504,13/08/2020,3514847,600.00,0.00,N/A,N/A
"Culture, Business Development & Tourism",Libraries,"Leisure, Culture and Tourism",ARROW SPECIALISED TRANSPORT LIMITED,1141493,13/08/2020,3515034,"3,431.60",0.00,Communities & Place,Transportation and Storage and Mail Serv
Community Safety,Partnerships,Public Protection and Streetride,ATLAS ENFORCEMENT LTD,904472,13/08/2020,3515088,"3,076.92",0.00,Communities & Place,Transportation and Storage and Mail Serv
Community Safety,Partnerships,Public Protection and Streetride,ATLAS ENFORCEMENT LTD,904472,13/08/2020,3515089,959.04,0.00,Communities & Place,Transportation and Storage and Mail Serv
Property Design & Maintenance,Building - Repairs & Maintenance,Property,B & K PROPERTY SERVICES LTD,187862,13/08/2020,3514714,556.00,0.00,N/A,N/A
Non Delegated Schools Budget,Non Delegated School Expenditure,Schools Block,BRAMBLEBROOK PRE SCHOOL PLAYGROUP,932518,13/08/2020,3514774,550.00,0.00,N/A,N/A
Neighbourhoods,Neighbourhoods,Neighbourhoods,BSG ECOLOGY,1359519,13/08/2020,3514700,"1,942.00",0.00,N/A,N/A
Non Delegated Schools Budget,Non Delegated School Expenditure,Schools Block,BUSY BEES,1201475,13/08/2020,3514787,950.00,0.00,N/A,N/A
Non Delegated Schools Budget,Non Delegated School Expenditure,Schools Block,CARLTON PRIVATE DAY NURSERY,932481,13/08/2020,3514758,"1,600.00",0.00,N/A,N/A
Strategic Housing,Housing and Advice,City Development & Growth,CLEVER DIGITAL,1375469,13/08/2020,3514432,834.00,0.00,N/A,N/A
Emergency Planning,Emergency Planning,Commissioning,CLOVA HOUSE,1334480,13/08/2020,3514504,"9,998.39",0.00,N/A,N/A
Non Delegated Schools Budget,Non Delegated School Expenditure,Schools Block,COTTAGE PRIVATE  DAY NURSERY,932497,13/08/2020,3514854,"1,875.00",0.00,N/A,N/A
Digital Services & Customer Management,Digital Services,Digital Services & Customer Management,CROWN HOSTING DATA CENTRES LTD,470548,13/08/2020,3511513,"2,249.62",0.00,Corporate Resources,Information Technology Broadcasting and
Non Delegated Schools Budget,Non Delegated School Expenditure,Schools Block,DA VINCI ACADEMY,696442,13/08/2020,3515117,"27,038.61",0.00,N/A,N/A
Digital Services & Customer Management,Digital Services,Digital Services & Customer Management,DAISY CORPORATE SERVICES TRADING LIMITED,1280471,13/08/2020,3503639,745.30,0.00,Corporate Resources,Information Technology Broadcasting and
"Waste, Street Cleansing & Fleet",Stores Road Depot & Fleet Management,Public Protection and Streetride,DAWSONGROUP SWEEPERS LTD,1311477,13/08/2020,3514174,"1,760.00",0.00,Communities & Place,Transportation and Storage and Mail Serv
"Waste, Street Cleansing & Fleet",Stores Road Depot & Fleet Management,Public Protection and Streetride,DAWSONGROUP SWEEPERS LTD,1311477,13/08/2020,3514174,"1,460.00",0.00,Communities & Place,Transportation and Storage and Mail Serv
Adults Health and Housing,Adults Health and Housing,Adults Health and Housing,DEERAY CONTRACTS LTD,14161,13/08/2020,3514172,"2,500.00",0.00,UPRN 10000H&B - Estates Pride - General,Building and Construction and Maintenanc
Adults Health and Housing,Adults Health and Housing,Adults Health and Housing,DEERAY CONTRACTS LTD,14161,13/08/2020,3514172,"3,788.00",0.00,UPRN 10000H&B - Estates Pride - General,Building and Construction and Maintenanc
Strategic Housing,Housing and Advice,City Development & Growth,DERBY CITY COUNCIL C/TAX,1036478,13/08/2020,3515110,759.95,0.00,N/A,N/A
Strategic Housing,Housing and Advice,City Development & Growth,DERBY CITY COUNCIL C/TAX,1036478,13/08/2020,3514503,790.19,0.00,N/A,N/A
Non Delegated Schools Budget,Non Delegated School Expenditure,Schools Block,DERBY DIOCESAN ACADEMY TRUST,1376472,13/08/2020,3512110,"46,352.00",0.00,N/A,N/A
Non Delegated Schools Budget,Non Delegated School Expenditure,Schools Block,DERBY DIOCESAN ACADEMY TRUST 2,1100474,13/08/2020,3515123,"9,903.34",0.00,N/A,N/A
Early Help & Children�s Safeguarding,Children's Safeguarding Services Locality 1/5,Non-Schools,DERBY GUESTHOUSE LTD,255426,13/08/2020,3514257,980.00,0.00,People Services - Children & Young People,Travel and Food and Lodging and Entertai
Non Delegated Schools Budget,Non Delegated School Expenditure,Schools Block,DERBY MONTESSORI SCHOOL,932513,13/08/2020,3514790,"1,500.00",0.00,N/A,N/A
Neighbourhoods,Neighbourhoods,Neighbourhoods,DERBYSHIRE COUNTY COUNCIL,9786,13/08/2020,3513980,"77,596.40",0.00,Waste Disposal - New Treatment Plant,Building and Construction and Maintenanc
Neighbourhoods,Neighbourhoods,Neighbourhoods,DERBYSHIRE COUNTY COUNCIL,9786,13/08/2020,3513980,"77,596.40",0.00,Waste Disposal - New Treatment Plant,Politics and Civic Affairs Services
Neighbourhoods,Neighbourhoods,Neighbourhoods,DERBYSHIRE COUNTY COUNCIL,9786,13/08/2020,3513980,"79,051.00",0.00,Waste Disposal - New Treatment Plant,Building and Construction and Maintenanc
Neighbourhoods,Neighbourhoods,Neighbourhoods,DERBYSHIRE COUNTY COUNCIL,9786,13/08/2020,3513980,"79,051.00",0.00,Waste Disposal - New Treatment Plant,Politics and Civic Affairs Services
Non Delegated Schools Budget,Non Delegated School Expenditure,Schools Block,DERWENT STEPPING STONES,1247468,13/08/2020,3514836,"1,900.00",0.00,N/A,N/A
"Culture, Business Development & Tourism",Libraries,"Leisure, Culture and Tourism",DIRECT HELP AND ADVICE,231416,13/08/2020,3515114,"24,658.00",0.00,Communities & Place,Management and Business Professionals an
